{"text_format":"1","workbook":"xlsx","n_sheets":6,"sheets":["SAPBEXqueriesDefunct","SAPBEXfiltersDefunct","BExRepositorySheet","Summary","Breakdown","Query"],"not_rendered":{"charts":0,"images":4,"macros":0,"external_links":1,"defined_names":148,"comments":0,"pivot_tables":0},"unopened":[],"bounds":{"document_bytes":16777216,"sheet_cells":100000,"rows_first":2000,"rows_last":500,"rows_between":2000,"halvings":0,"cell_chars":16384,"cell_head_chars":4096},"cells_cut":0,"cells_raw":0,"read":"whole","date_system":"1900"}

{"sheet":"SAPBEXqueriesDefunct","index":0,"n_rows":1515,"n_cols":233,"rows_kept":281,"cut":true,"hidden":true,"merged":[],"bounds":{"rows_first":125,"rows_last":31,"rows_between":125,"halvings":4}}
[9]
[8,null,null,null,null,null,null,null,null,null,null,null,null,null,null,null,null,null,null,null,null,null,null,null,null,null,null,null,null,null,72,null,null,null,null,null,null,null,null,null,null,null,null,null,null,null,null,null,null,null,null,null,null,null,null,null,null,null,null,null,null,null,null,null,null,null,null,null,null,null,null,null,null,null,null,null,null,null,null,null,null,null,null,null,null,null,null,null,null,null,300,null,null,null,null,null,null,null,null,null,null,null,null,null,null,null,null,null,null,null,208,null,null,null,null,null,null,null,null,null,null,null,null,null,null,null,null,null,null,null,1512,null,null,null,null,null,null,null,null,null,null,null,null,null,null,null,null,null,null,null,0,null,null,null,null,null,null,null,null,null,null,null,null,null,null,null,null,null,null,null,null,null,null,null,null,null,null,null,null,null,33,null,null,null,null,null,null,null,null,null,null,null,null,null,null,null,null,null,null,null,null,null,null,null,null,null,null,null,null,null,null,null,null,null,null,null,null,null,null,null,null,null,null,null,null,null,null,null,null,null,248]
[24,null,null,null,null,null,null,null,null,null,null,null,null,null,null,null,null,null,null,null,null,null,null,null,null,null,null,null,null,null,59,null,null,null,null,null,null,null,null,null,null,null,null,null,null,null,null,null,null,null,null,null,null,null,null,null,null,null,null,null,null,null,null,null,null,null,null,null,null,null,null,null,null,null,null,null,null,null,null,null,null,null,null,null,null,null,null,null,null,null,13,null,null,null,null,null,null,null,null,null,null,null,null,null,null,null,null,null,null,null,14,null,null,null,null,null,null,null,null,null,null,null,null,null,null,null,null,null,null,null,13,null,null,null,null,null,null,null,null,null,null,null,null,null,null,null,null,null,null,null,11,null,null,null,null,null,null,null,null,null,null,null,null,null,null,null,null,null,null,null,null,null,null,null,null,null,null,null,null,null,21,null,null,null,null,null,null,null,null,null,null,null,null,null,null,null,null,null,null,null,null,null,null,null,null,null,null,null,null,null,null,null,null,null,null,null,null,null,null,null,null,null,null,null,null,null,null,null,null,null,2]
[null,441,"DA5GMC5Q7C0P8X8EGK6XEOEM1",true,true,"SAPBEXq0011",2,2,false,null,null,true,false,null,true,false,0,null,5,true,true,null,null,false,false,false,null,null,null,null,11,"0PAYRL_AREA","Payroll Area","X","","","0001","","","","","","","","0","03","","","","00000000","K","0PAYRL_AREA","A","","","H","","","","","","00000000","0000","","0","","","","","1","1","1","0","0","","","","","","DA5N022H38J9WS4RRDINF30U1","","","","","","","0000","","","",11,"D4O2P4A3SH8H6WZIVSYIIRP4P","D4O2P4A3SHBJXEAK5YOYSHA7T","Teacher F/T","0001","","S","","L","","","","","",null,null,null,null,null,null,11,"0ORGUNIT","0BBPPURGRPX","Ind.Purchasing Group","0000","X","2","0","0","","","","","0000","",null,null,null,null,null,11,"D4O2P4A3SHBJXEAK5YOYSHA7T","DA5GNUVDNUSS0I3R190AYAR5L","","","","","","00","X","0","0","","",null,null,null,null,null,null,null,null,null,null,null,null,null,null,null,null,null,null,null,null,null,null,null,null,null,null,null,null,null,null,null,null,null,null,null,null,11,"ZS_DT_1","1","P","I","EQ","20150930","30/09/2015","","","","0","","0","","0","Target date 1","60","","","ZEMP_STRT","20150930",null,null,null,null,null,null,null,null,null,null,null,null,null,null,null,null,null,null,null,null,null,null,null,null,null,null,null,null,11,"0000000107","DA5N022H38D4FTIP721QVNUNT"]
[null,437,"DA5GMC5Q7C0P8X8EGK6XEOEM1",true,true,"SAPBEXq0012",2,2,false,null,null,true,false,null,true,false,0,null,5,true,true,null,null,false,false,false,null,null,null,null,11,"ZPERSAREA","ZPersonal Area","X","","","0002","","","","","","","","2","03","","","","00000000","K","ZPERSAREA","A","","","H","","","","","","00000000","0000","","0","","","","","1","1","1","0","0","","","","","","DA5N022H38K1LEGJ2WY9HIF3T","","","","","","","0000","","","",11,"DA5GNUVDNUS0BVRZPPKOVVCVT","DA5GNUVDNUSS0I3R190AYAR5L","Bi-Sexual","0001","","S","","L","X","","","","",null,null,null,null,null,null,11,"0ORGUNIT","0BBPPURORGX","Ind. Purchasing Org.","0000","X","2","0","0","","","","","0000","",null,null,null,null,null,11,"D4O2P4A3SHBJXEAK5YOYSHA7T","DA5GNUVDNUTJP4FICSFX0Q5FD","","","","","","00","X","0","0","","",null,null,null,null,null,null,null,null,null,null,null,null,null,null,null,null,null,null,null,null,null,null,null,null,null,null,null,null,null,null,null,null,null,null,null,null,11,"ZS_PSAR2","1","P","","","","","","","","0","","0","","0","Pers. Sub-Area - optional","60","","","0PERS_SAREA","",null,null,null,null,null,null,null,null,null,null,null,null,null,null,null,null,null,null,null,null,null,null,null,null,null,null,null,null,11,"0000000100","X"]
[null,433,"DA5GMC5Q7C0P8X8EGK6XEOEM1",true,true,"SAPBEXq0013",2,2,false,null,null,true,false,null,true,false,0,null,5,true,true,null,null,false,false,false,null,null,null,null,11,"0ORGUNIT","Organizational Unit","X","","","0003","","","","","","","","1","03","X","ORGEH","000","20150930","K","0ORGUNIT","A","","","H","0ORGUNIT","A","","","","00000000","0000","","0","","","","2","1","1","1","0","0","","","","","","DA5N022H38KTA0SAEGDVJXTDL","","","","","","","0000","","","",11,"DA5GNUVDNUS0BVRZPPKOVVCVT","DA5GNUVDNUTJP4FICSFX0Q5FD","Heterosexual","0002","","S","","L","X","","","","",null,null,null,null,null,null,11,"0ORGUNIT","0BBP_BUYID","Buyer ID","0000","X","5","0","0","","","","","0000","",null,null,null,null,null,11,"D4O2P4A3SHBJXEAK5YOYSHA7T","DA5GNUVDNUUBDQR9OBVJ35JP5","","","","","","00","X","0","0","","",null,null,null,null,null,null,null,null,null,null,null,null,null,null,null,null,null,null,null,null,null,null,null,null,null,null,null,null,null,null,null,null,null,null,null,null,11,"ZP_ORGUN","2","M","","","","","","","","0","","0","","0","Org Unit Hierarchy (Selection option, optional)","60","","","0ORGUNIT","",null,null,null,null,null,null,null,null,null,null,null,null,null,null,null,null,null,null,null,null,null,null,null,null,null,null,null,null,11,"0000000101",""]
[null,429,"DA5GMC5Q7C0P8X8EGK6XEOEM1",true,true,"SAPBEXq0014",2,2,false,null,null,true,false,null,true,false,0,null,5,true,true,null,null,false,false,false,null,null,null,null,11,"0PERS_SAREA","Personnel Subarea","X","","","0004","","","","","","","U","1","03","","","","00000000","K","0PERS_SAREA","A","","","H","","","","","","00000000","0000","","0","","","","","1","1","1","0","0","","","","","","DA5N022H38LKYN41PZTHMD7ND","","","","","","","0000","","","",11,"D4O2P4A3SH8H6WZIVSYIIRP4P","DEN9FTLAHPZM13J0WXXO1VFND","Teacher P/T","0002","","S","","L","","","","","",null,null,null,null,null,null,11,"0ORGUNIT","0BBP_ISCOMP","Organizational Unit is Company","0000","X","1","0","0","","","","","0000","",null,null,null,null,null,11,"D4O2P4A3SHBJXEAK5YOYSHA7T","DA5GNUVDNUV32D30ZVB55KXYX","","","","","","00","X","0","0","","",null,null,null,null,null,null,null,null,null,null,null,null,null,null,null,null,null,null,null,null,null,null,null,null,null,null,null,null,null,null,null,null,null,null,null,null,11,"ZBUDH","1","P","I","EQ","20150930","30/09/2015","","","","0","","0","","0","Master Data Key Date","60","","","0DATE","20150930",null,null,null,null,null,null,null,null,null,null,null,null,null,null,null,null,null,null,null,null,null,null,null,null,null,null,null,null,11,"0000000104","1"]
[null,425,"DA5GMC5Q7C0P8X8EGK6XEOEM1",true,true,"SAPBEXq0015",2,2,false,null,null,true,false,null,true,false,0,null,5,true,true,null,null,false,false,false,null,null,null,null,11,"ZTEILK","Checkbox for Part-Ti","X","","","0005","","","","","","","","1","03","","","","00000000","K","ZTEILK","A","","","H","","","","","","00000000","0000","","0","","","","","1","1","1","0","0","","","","","","DA5N022H38MCN9FT1J93OSLX5","","","","","","","0000","","","",11,"DA5GNUVDNUS0BVRZPPKOVVCVT","DA5GNUVDNUUBDQR9OBVJ35JP5","Lesbian/Gay","0003","","S","","L","X","","","","",null,null,null,null,null,null,11,"0ORGUNIT","0BUS_AREA","Business area","0000","X","0","0","0","","","","","0000","",null,null,null,null,null,11,"D4O2P4A3SHBJXEAK5YOYSHA7T","DA5GNUVDNUVUQZESBEQR80C8P","","","","","","00","X","0","0","","",null,null,null,null,null,null,null,null,null,null,null,null,null,null,null,null,null,null,null,null,null,null,null,null,null,null,null,null,null,null,null,null,null,null,null,null,11,"ZZPERAR","1","M","","","","","","","","0","","0","","0","ZPersonnel Area","60","","","ZPERSAREA","",null,null,null,null,null,null,null,null,null,null,null,null,null,null,null,null,null,null,null,null,null,null,null,null,null,null,null,null,11,"0000000103",""]
[null,421,"DA5GMC5Q7C0P8X8EGK6XEOEM1",true,true,"SAPBEXq0016",2,2,false,null,null,true,false,null,true,false,0,null,5,true,true,null,null,false,false,false,null,null,null,null,11,"ZPRIM_ID","ZPrimary Employee ID","X","","","0006","","","","","","","","2","03","","","","00000000","K","ZPRIM_ID","A","","","H","","","","","","00000000","0000","","0","","","","","1","1","1","0","0","","","","","","DA5N022H38N4BVRKD2OPR806X","","","","","","","0000","","","",11,"D4O2P4A3SH8H6WZIVSYIIRP4P","DEN9GQ7MCHA8Y0DFMMJUL514P","Teacher Total","0003","","S","","L","","","","","",null,null,null,null,null,null,11,"0ORGUNIT","0COMP_CODE","Company code","0000","X","0","0","0","","","","","0000","",null,null,null,null,null,11,"D4O2P4A3SHBJXEAK5YOYSHA7T","DA5GNUVDNUWMFLQJMY6DAFQIH","","","","","","00","X","0","0","","",null,null,null,null,null,null,null,null,null,null,null,null,null,null,null,null,null,null,null,null,null,null,null,null,null,null,null,null,null,null,null,null,null,null,null,null,10,"ZS_DT_1","1","P","I","EQ","20150930","30/09/2015","","","","0","","0","","0","Target date 1","60","","","ZEMP_STRT","20150930",null,null,null,null,null,null,null,null,null,null,null,null,null,null,null,null,null,null,null,null,null,null,null,null,null,null,null,null,11,"0000000102","1"]
[null,417,"DA5GMC5Q7C0P8X8EGK6XEOEM1",true,true,"SAPBEXq0017",2,2,false,null,null,true,false,null,true,false,0,null,5,true,true,null,null,false,false,false,null,null,null,null,11,"0CNTRCTTYPE","Contract Type","X","","","0007","","","","","","","","1","03","","","","00000000","K","0CNTRCTTYPE","A","","","H","","","","","","00000000","0000","","0","","","","","1","1","1","0","0","","","","","","DB0ZMJSGTZKZAIQ84S6SUKE0P","","","","","","","0000","","","",11,"D4O2P4A3SH8H6WZIVSYIIRP4P","D4O2P4A3SHEMNVLLG4FF26VAX","Principal Teacher F/T","0004","","S","","L","","","","","",null,null,null,null,null,null,11,"0ORGUNIT","0CO_MST_AR","Controlling Area of Master Cost Center","0000","X","0","0","0","","","","","0000","",null,null,null,null,null,11,"D4O2P4A3SHEMNVLLG4FF26VAX","DA5GNUVDNUSS0I3R190AYAR5L","","","","","","00","X","0","0","","",null,null,null,null,null,null,null,null,null,null,null,null,null,null,null,null,null,null,null,null,null,null,null,null,null,null,null,null,null,null,null,null,null,null,null,null,10,"ZP_ORGUN","2","M","","","","","","","","0","","0","","0","Org Unit Hierarchy (Selection option, optional)","60","","","0ORGUNIT","",null,null,null,null,null,null,null,null,null,null,null,null,null,null,null,null,null,null,null,null,null,null,null,null,null,null,null,null,11,"0000000108",""]
[null,413,"DA5N022H38ONP4F305JXW2SQH",true,true,"SAPBEXq0019",2,2,false,null,null,true,false,null,true,false,0,null,5,true,true,null,null,false,false,false,null,null,null,null,11,"DA5GNUVDNUS0BVRZPPKOVVCVT","Sexual Orientation - Rev 2011","","X","X","0001","","","","","","","U","","00","","","","","K","DA5GNUVDNUS0BVRZPPKOVVCVT","A","","","","","","","","","00000000","0000","X","0","","","","","0","0","0","0","0","","","","","","DA5GNUVDNUS0BVRZPPKOVVCVT","","","","","","","0000","","","",11,"DA5GNUVDNUS0BVRZPPKOVVCVT","DA5GNUVDNUV32D30ZVB55KXYX","Transgender","0004","","S","","L","X","","","","",null,null,null,null,null,null,11,"0ORGUNIT","0CRMSALGRPX","Sls Group: Indicator","0000","X","2","0","0","","","","","0000","",null,null,null,null,null,11,"D4O2P4A3SHEMNVLLG4FF26VAX","DA5GNUVDNUTJP4FICSFX0Q5FD","","","","","","00","X","0","0","","",null,null,null,null,null,null,null,null,null,null,null,null,null,null,null,null,null,null,null,null,null,null,null,null,null,null,null,null,null,null,null,null,null,null,null,null,10,"ZBUDH","1","P","I","EQ","20150930","30/09/2015","","","","0","","0","","0","Master Data Key Date","60","","","0DATE","20150930",null,null,null,null,null,null,null,null,null,null,null,null,null,null,null,null,null,null,null,null,null,null,null,null,null,null,null,null,11,"0000009002","D4O2P4A3SH8H6WZIVSYIIRP4P"]
[null,null,null,null,null,null,null,null,null,null,null,null,null,null,null,null,null,null,null,null,null,null,null,null,null,false,null,null,null,null,11,"D4O2P4A3SH8H6WZIVSYIIRP4P","WP Teachers Bandings","","X","Y","0001","","","","","","","U","","00","","","","","K","D4O2P4A3SH8H6WZIVSYIIRP4P","A","","","","","","","","","00000000","0000","","0","","","","","0","0","0","0","0","","","","","","D4O2P4A3SH8H6WZIVSYIIRP4P","","","","","","","0000","","","",11,"D4O2P4A3SH8H6WZIVSYIIRP4P","DEN9FTLAHQ0DPPUS8HDA4ATX5","Principal Teacher P/T","0005","","S","","L","","","","","",null,null,null,null,null,null,11,"0ORGUNIT","0CRMSALOFFX","Sls Office:Indicator","0000","X","2","0","0","","","","","0000","",null,null,null,null,null,11,"D4O2P4A3SHEMNVLLG4FF26VAX","DA5GNUVDNUUBDQR9OBVJ35JP5","","","","","","00","X","0","0","","",null,null,null,null,null,null,null,null,null,null,null,null,null,null,null,null,null,null,null,null,null,null,null,null,null,null,null,null,null,null,null,null,null,null,null,null,10,"ZZPERAR","1","M","","","","","","","","0","","0","","0","ZPersonnel Area","60","","","ZPERSAREA","",null,null,null,null,null,null,null,null,null,null,null,null,null,null,null,null,null,null,null,null,null,null,null,null,null,null,null,null,11,"0000009000",""]
[null,null,null,null,null,null,null,null,null,null,null,null,null,null,null,null,null,null,null,null,null,null,null,null,null,false,null,null,null,null,10,"0PAYRL_AREA","Payroll Area","X","","","0001","","","","","","","","0","03","","","","00000000","K","0PAYRL_AREA","A","","","H","","","","","","00000000","0000","","0","","","","","1","1","1","0","0","","","","","","DA5GMC5Q7BVBGKY37S5MXOMPL","","","","","","","0000","","","",11,"DA5GNUVDNUS0BVRZPPKOVVCVT","DA5GNUVDNUVUQZESBEQR80C8P","Other","0005","","S","","L","X","","","","",null,null,null,null,null,null,11,"0ORGUNIT","0CRMSALORGX","Sales Org. Indicator","0000","X","2","0","0","","","","","0000","",null,null,null,null,null,11,"D4O2P4A3SHEMNVLLG4FF26VAX","DA5GNUVDNUV32D30ZVB55KXYX","","","","","","00","X","0","0","","",null,null,null,null,null,null,null,null,null,null,null,null,null,null,null,null,null,null,null,null,null,null,null,null,null,null,null,null,null,null,null,null,null,null,null,null,9,"ZS_DT_1","1","P","I","EQ","20150930","30/09/2015","","","","0","","0","","0","Target date 1","60","","","ZEMP_STRT","20150930",null,null,null,null,null,null,null,null,null,null,null,null,null,null,null,null,null,null,null,null,null,null,null,null,null,null,null,null,11,"0000000010",""]
[null,null,null,null,null,null,null,null,null,null,null,null,null,null,null,null,null,null,null,null,null,null,null,null,null,false,null,null,null,null,10,"ZPERSAREA","ZPersonal Area","X","","","0002","","Education","","","","","","2","03","","","","00000000","K","ZPERSAREA","A","","","H","","","","","","00000000","0000","","0","","1","","","1","1","1","0","0","","","","","","DA5GMC5Q7BW3579UJBL9040ZD","","","","","","","0000","","","",11,"D4O2P4A3SH8H6WZIVSYIIRP4P","DEN9GQ7MCHB0MMP6Y5ZGNKFEH","Principal Teacher Total","0006","","S","","L","","","","","",null,null,null,null,null,null,11,"0ORGUNIT","0CRMSRVTGRP","Ex. CRM Service Org.","0000","X","1","0","0","","","","","0000","",null,null,null,null,null,11,"D4O2P4A3SHEMNVLLG4FF26VAX","DA5GNUVDNUVUQZESBEQR80C8P","","","","","","00","X","0","0","","",null,null,null,null,null,null,null,null,null,null,null,null,null,null,null,null,null,null,null,null,null,null,null,null,null,null,null,null,null,null,null,null,null,null,null,null,9,"ZP_ORGUN","2","M","","","","","","","","0","","0","","0","Org Unit Hierarchy (Selection option, optional)","60","","","0ORGUNIT","",null,null,null,null,null,null,null,null,null,null,null,null,null,null,null,null,null,null,null,null,null,null,null,null,null,null,null,null,11,"0000000021",""]
[null,null,null,null,null,null,null,null,null,null,null,null,null,null,null,null,null,null,null,null,null,null,null,null,null,false,null,null,null,null,10,"0ORGUNIT","Organizational Unit","X","","","0003","","","","","","","","1","03","X","ORGEH","000","20150930","K","0ORGUNIT","A","","","H","0ORGUNIT","A","","","","00000000","0000","","0","","","","2","1","1","1","0","0","","","","","","DA5GMC5Q7BWUTTLLUV0V2JF95","","","","","","","0000","","","",11,"DA5GNUVDNUS0BVRZPPKOVVCVT","DA5GNUVDNUWMFLQJMY6DAFQIH","Not Disclosed","0006","","S","","L","X","","","","",null,null,null,null,null,null,11,"0ORGUNIT","0CRM_SALGRP","CRM Sales Group","0000","X","1","0","0","","","","","0000","",null,null,null,null,null,11,"D4O2P4A3SHEMNVLLG4FF26VAX","DA5GNUVDNUWMFLQJMY6DAFQIH","","","","","","00","X","0","0","","",null,null,null,null,null,null,null,null,null,null,null,null,null,null,null,null,null,null,null,null,null,null,null,null,null,null,null,null,null,null,null,null,null,null,null,null,9,"ZBUDH","1","P","I","EQ","20150930","30/09/2015","","","","0","","0","","0","Master Data Key Date","60","","","0DATE","20150930",null,null,null,null,null,null,null,null,null,null,null,null,null,null,null,null,null,null,null,null,null,null,null,null,null,null,null,null,11,"0000000022",""]
[null,null,null,null,null,null,null,null,null,null,null,null,null,null,null,null,null,null,null,null,null,null,null,null,null,false,null,null,null,null,10,"0PERS_SAREA","Personnel Subarea","X","","","0004","","","","","","","U","1","03","","","","00000000","K","0PERS_SAREA","A","","","H","","","","","","00000000","0000","","0","","","","","1","1","1","0","0","","","","","","DA5GMC5Q7BXMIFXD6EGH4YTIX","","","","","","","0000","","","",11,"D4O2P4A3SH8H6WZIVSYIIRP4P","D4O2P4A3SHHPECWMQA5VBWGE1","AHT/DHT F/T","0007","","S","","L","","","","","",null,null,null,null,null,null,11,"0ORGUNIT","0CRM_SALOFF","CRM Sales Office","0000","X","1","0","0","","","","","0000","",null,null,null,null,null,11,"D4O2P4A3SHHPECWMQA5VBWGE1","DA5GNUVDNUSS0I3R190AYAR5L","","","","","","00","X","0","0","","",null,null,null,null,null,null,null,null,null,null,null,null,null,null,null,null,null,null,null,null,null,null,null,null,null,null,null,null,null,null,null,null,null,null,null,null,9,"ZZPERAR","1","M","","","","","","","","0","","0","","0","ZPersonnel Area","60","","","ZPERSAREA","",null,null,null,null,null,null,null,null,null,null,null,null,null,null,null,null,null,null,null,null,null,null,null,null,null,null,null,null,11,"0000000023",""]
[null,null,null,null,null,null,null,null,null,null,null,null,null,null,null,null,null,null,null,null,null,null,null,null,null,false,null,null,null,null,10,"ZTEILK","Checkbox for Part-Ti","X","","","0005","","","","","","","","1","03","","","","00000000","K","ZTEILK","A","","","H","","","","","","00000000","0000","","0","","","","","1","1","1","0","0","","","","","","DA5GMC5Q7BYE7294HXW37E7SP","","","","","","","0000","","","",11,"D4O2P4A3SH8H6WZIVSYIIRP4P","DEN9FTLAHQ15EC6JK0SW6Q86X","AHT/DHT P/T","0008","","S","","L","","","","","",null,null,null,null,null,null,11,"0ORGUNIT","0CRM_SALORG","CRM Sales Org.","0000","X","1","0","0","","","","","0000","",null,null,null,null,null,11,"D4O2P4A3SHHPECWMQA5VBWGE1","DA5GNUVDNUTJP4FICSFX0Q5FD","","","","","","00","X","0","0","","",null,null,null,null,null,null,null,null,null,null,null,null,null,null,null,null,null,null,null,null,null,null,null,null,null,null,null,null,null,null,null,null,null,null,null,null,8,"ZS_DT_1","1","P","I","EQ","20150930","30/09/2015","","","","0","","0","","0","Target date 1","60","","","ZEMP_STRT","20150930",null,null,null,null,null,null,null,null,null,null,null,null,null,null,null,null,null,null,null,null,null,null,null,null,null,null,null,null,11,"0000000030",""]
[null,null,null,null,null,null,null,null,null,null,null,null,null,null,null,null,null,null,null,null,null,null,null,null,null,false,null,null,null,null,10,"ZPRIM_ID","ZPrimary Employee ID","X","","","0006","","","","","","","","2","03","","","","00000000","K","ZPRIM_ID","A","","","H","","","","","","00000000","0000","","0","","","","","1","1","1","0","0","","","","","","DA5GMC5Q7BZ5VOKVTHBP9TM2H","","","","","","","0000","","","",11,"D4O2P4A3SH8H6WZIVSYIIRP4P","DEN9GQ7MCHBSB90Y9PF2PZTO9","AHT/DHT Total","0009","","S","","L","","","","","",null,null,null,null,null,null,11,"0ORGUNIT","0CRM_SRVORG","Service Org. CRM","0000","X","1","0","0","","","","","0000","",null,null,null,null,null,11,"D4O2P4A3SHHPECWMQA5VBWGE1","DA5GNUVDNUUBDQR9OBVJ35JP5","","","","","","00","X","0","0","","",null,null,null,null,null,null,null,null,null,null,null,null,null,null,null,null,null,null,null,null,null,null,null,null,null,null,null,null,null,null,null,null,null,null,null,null,8,"ZP_ORGUN","2","M","","","","","","","","0","","0","","0","Org Unit Hierarchy (Selection option, optional)","60","","","0ORGUNIT","",null,null,null,null,null,null,null,null,null,null,null,null,null,null,null,null,null,null,null,null,null,null,null,null,null,null,null,null,11,"0000000040",""]
[null,null,null,null,null,null,null,null,null,null,null,null,null,null,null,null,null,null,null,null,null,null,null,null,null,false,null,null,null,null,10,"0CNTRCTTYPE","Contract Type","X","","","0007","","","","","","","","1","03","","","","00000000","K","0CNTRCTTYPE","A","","","H","","","","","","00000000","0000","","0","","","","","1","1","1","0","0","","","","","","DB0ZLJBMLZ1X022DVK6MFOZQX","","","","","","","0000","","","",11,"D4O2P4A3SH8H6WZIVSYIIRP4P","D4O2P4A3SHKS4U7O0FWBLM1H5","Head Teacher F/T","0010","","S","","L","","","","","",null,null,null,null,null,null,11,"0ORGUNIT","0LOGSYS","Source System","0000","X","1","0","0","","","","","0000","",null,null,null,null,null,11,"D4O2P4A3SHHPECWMQA5VBWGE1","DA5GNUVDNUV32D30ZVB55KXYX","","","","","","00","X","0","0","","",null,null,null,null,null,null,null,null,null,null,null,null,null,null,null,null,null,null,null,null,null,null,null,null,null,null,null,null,null,null,null,null,null,null,null,null,8,"ZBUDH","1","P","I","EQ","20150930","30/09/2015","","","","0","","0","","0","Master Data Key Date","60","","","0DATE","20150930",null,null,null,null,null,null,null,null,null,null,null,null,null,null,null,null,null,null,null,null,null,null,null,null,null,null,null,null,11,"0000000041",""]
[null,null,null,null,null,null,null,null,null,null,null,null,null,null,null,null,null,null,null,null,null,null,null,null,null,false,null,null,null,null,10,"DA5GNUVDNUS0BVRZPPKOVVCVT","Sexual Orientation - Rev 2011","","X","X","0001","","","","","","","U","","00","","","","","K","DA5GNUVDNUS0BVRZPPKOVVCVT","A","","","","","","","","","00000000","0000","X","0","","","","","0","0","0","0","0","","","","","","DA5GNUVDNUS0BVRZPPKOVVCVT","","","","","","","0000","","","",11,"D4O2P4A3SH8H6WZIVSYIIRP4P","DEN9FTLAHQ1X2YIAVK8I95MGP","Head Teacher P/T","0011","","S","","L","","","","","",null,null,null,null,null,null,11,"0ORGUNIT","0MAST_CCTR","Master Cost Center","0000","X","0","0","0","","","","","0000","",null,null,null,null,null,11,"D4O2P4A3SHHPECWMQA5VBWGE1","DA5GNUVDNUVUQZESBEQR80C8P","","","","","","00","X","0","0","","",null,null,null,null,null,null,null,null,null,null,null,null,null,null,null,null,null,null,null,null,null,null,null,null,null,null,null,null,null,null,null,null,null,null,null,null,8,"ZZPERAR","1","M","","","","","","","","0","","0","","0","ZPersonnel Area","60","","","ZPERSAREA","",null,null,null,null,null,null,null,null,null,null,null,null,null,null,null,null,null,null,null,null,null,null,null,null,null,null,null,null,11,"0000000042","0"]
[null,null,null,null,null,null,null,null,null,null,null,null,null,null,null,null,null,null,null,null,null,null,null,null,null,false,null,null,null,null,10,"D4O21W1IBUB3HEML1KWP5YGOP","WP Bandings","","X","Y","0001","","","","","","","U","","00","","","","","K","D4O21W1IBUB3HEML1KWP5YGOP","A","","","","","","","","","00000000","0000","","0","","","","","0","0","0","0","0","","","","","","D4O21W1IBUB3HEML1KWP5YGOP","","","","","","","0000","","","",11,"D4O2P4A3SH8H6WZIVSYIIRP4P","DEN9GQ7MCHCJZVCPL8UOSF7Y1","Head Teacher Total","0012","","S","","L","","","","","",null,null,null,null,null,null,11,"0ORGUNIT","0PERS_AREA","Personnel Area","0000","X","1","0","0","","","","","0000","",null,null,null,null,null,11,"D4O2P4A3SHHPECWMQA5VBWGE1","DA5GNUVDNUWMFLQJMY6DAFQIH","","","","","","00","X","0","0","","",null,null,null,null,null,null,null,null,null,null,null,null,null,null,null,null,null,null,null,null,null,null,null,null,null,null,null,null,null,null,null,null,null,null,null,null,7,"ZS_DT_1","1","P","I","EQ","20150930","30/09/2015","","","","0","","0","","0","Target date 1","60","","","ZEMP_STRT","20150930",null,null,null,null,null,null,null,null,null,null,null,null,null,null,null,null,null,null,null,null,null,null,null,null,null,null,null,null,11,"0000000043","0"]
[null,null,null,null,null,null,null,null,null,null,null,null,null,null,null,null,null,null,null,null,null,null,null,null,null,false,null,null,null,null,9,"0PAYRL_AREA","Payroll Area","X","","","0001","","","","","","","","0","03","","","","00000000","K","0PAYRL_AREA","A","","","H","","","","","","00000000","0000","","0","","","","","1","1","1","0","0","","","","","","DA5GMC5Q7BVBGKY37S5MXOMPL","","","","","","","0000","","","",11,"D4O2P4A3SH8H6WZIVSYIIRP4P","D4O2P4A3SHNUVBIPALMRVBMK9","Advisor F/T","0013","","S","","L","","","","","",null,null,null,null,null,null,11,"0ORGUNIT","0PERS_SAREA","Personnel Subarea","0000","X","1","0","0","","","","","0000","",null,null,null,null,null,11,"D4O2P4A3SHKS4U7O0FWBLM1H5","DA5GNUVDNUSS0I3R190AYAR5L","","","","","","00","X","0","0","","",null,null,null,null,null,null,null,null,null,null,null,null,null,null,null,null,null,null,null,null,null,null,null,null,null,null,null,null,null,null,null,null,null,null,null,null,7,"ZP_ORGUN","2","M","","","","","","","","0","","0","","0","Org Unit Hierarchy (Selection option, optional)","60","","","0ORGUNIT","",null,null,null,null,null,null,null,null,null,null,null,null,null,null,null,null,null,null,null,null,null,null,null,null,null,null,null,null,11,"0000000109","0"]
[null,null,null,null,null,null,null,null,null,null,null,null,null,null,null,null,null,null,null,null,null,null,null,null,null,null,null,null,null,null,9,"ZPERSAREA","ZPersonal Area","X","","","0002","","","","","","","","2","03","","","","00000000","K","ZPERSAREA","A","","","H","","","","","","00000000","0000","","0","","","","","1","1","1","0","0","","","","","","DA5GMC5Q7BW3579UJBL9040ZD","","","","","","","0000","","","",11,"D4O2P4A3SH8H6WZIVSYIIRP4P","DEN9FTLAHQ2ORKU273O4BL0QH","Advisor P/T","0014","","S","","L","","","","","",null,null,null,null,null,null,11,"0ORGUNIT","0PLANT","Plant","0000","X","0","0","0","","","","","0000","",null,null,null,null,null,11,"D4O2P4A3SHKS4U7O0FWBLM1H5","DA5GNUVDNUTJP4FICSFX0Q5FD","","","","","","00","X","0","0","","",null,null,null,null,null,null,null,null,null,null,null,null,null,null,null,null,null,null,null,null,null,null,null,null,null,null,null,null,null,null,null,null,null,null,null,null,7,"ZBUDH","1","P","I","EQ","20150930","30/09/2015","","","","0","","0","","0","Master Data Key Date","60","","","0DATE","20150930",null,null,null,null,null,null,null,null,null,null,null,null,null,null,null,null,null,null,null,null,null,null,null,null,null,null,null,null,11,"0000000113",""]
[null,null,null,null,null,null,null,null,null,null,null,null,null,null,null,null,null,null,null,null,null,null,null,null,null,null,null,null,null,null,9,"0ORGUNIT","Organizational Unit","X","","","0003","","Chief Executive Srv, Chief Executive Organisation Structu...","","","","","","1","03","X","ORGEH","000","20150930","K","0ORGUNIT","A","","","H","0ORGUNIT","A","","","","00000000","0000","","0","","X","","2","1","1","1","0","0","","","","","","DA5GMC5Q7BWUTTLLUV0V2JF95","","","","","","","0000","","","",11,"D4O2P4A3SH8H6WZIVSYIIRP4P","DEN9GQ7MCHDBOHOGWSAAUUM7T","Advisor Total","0015","","S","","L","","","","","",null,null,null,null,null,null,11,"0ORGUNIT","0PURCH_ORG","Purchasing org.","0000","X","0","0","0","","","","","0000","",null,null,null,null,null,11,"D4O2P4A3SHKS4U7O0FWBLM1H5","DA5GNUVDNUUBDQR9OBVJ35JP5","","","","","","00","X","0","0","","",null,null,null,null,null,null,null,null,null,null,null,null,null,null,null,null,null,null,null,null,null,null,null,null,null,null,null,null,null,null,null,null,null,null,null,null,7,"ZZPERAR","1","M","","","","","","","","0","","0","","0","ZPersonnel Area","60","","","ZPERSAREA","",null,null,null,null,null,null,null,null,null,null,null,null,null,null,null,null,null,null,null,null,null,null,null,null,null,null,null,null,11,"0000000120",""]
[null,null,null,null,null,null,null,null,null,null,null,null,null,null,null,null,null,null,null,null,null,null,null,null,null,null,null,null,null,null,9,"0PERS_SAREA","Personnel Subarea","X","","","0004","","","","","","","U","1","03","","","","00000000","K","0PERS_SAREA","A","","","H","","","","","","00000000","0000","","0","","","","","1","1","1","0","0","","","","","","DA5GMC5Q7BXMIFXD6EGH4YTIX","","","","","","","0000","","","",11,"D4O2P4A3SH8H6WZIVSYIIRP4P","D4O2P4A3SHQXLSTQKRD8517ND","Psychologist F/T","0016","","S","","L","","","","","",null,null,null,null,null,null,11,"0ORGUNIT","0PUR_GROUP","Purchasing group","0000","X","0","0","0","","","","","0000","",null,null,null,null,null,11,"D4O2P4A3SHKS4U7O0FWBLM1H5","DA5GNUVDNUV32D30ZVB55KXYX","","","","","","00","X","0","0","","",null,null,null,null,null,null,null,null,null,null,null,null,null,null,null,null,null,null,null,null,null,null,null,null,null,null,null,null,null,null,null,null,null,null,null,null,6,"ZS_DT_1","1","P","I","EQ","20150930","30/09/2015","","","","0","","0","","0","Target date 1","60","","","ZEMP_STRT","20150930",null,null,null,null,null,null,null,null,null,null,null,null,null,null,null,null,null,null,null,null,null,null,null,null,null,null,null,null,11,"0000000121",""]
[null,null,null,null,null,null,null,null,null,null,null,null,null,null,null,null,null,null,null,null,null,null,null,null,null,null,null,null,null,null,9,"ZTEILK","Checkbox for Part-Ti","X","","","0005","","","","","","","","1","03","","","","00000000","K","ZTEILK","A","","","H","","","","","","00000000","0000","","0","","","","","1","1","1","0","0","","","","","","DA5GMC5Q7BYE7294HXW37E7SP","","","","","","","0000","","","",11,"D4O2P4A3SH8H6WZIVSYIIRP4P","DEN9FTLAHQ3GG75TIN3QE0F09","Psychologist P/T","0017","","S","","L","","","","","",null,null,null,null,null,null,11,"0ORGUNIT","0SALESORG","Sales Organization","0000","X","0","0","0","","","","","0000","",null,null,null,null,null,11,"D4O2P4A3SHKS4U7O0FWBLM1H5","DA5GNUVDNUVUQZESBEQR80C8P","","","","","","00","X","0","0","","",null,null,null,null,null,null,null,null,null,null,null,null,null,null,null,null,null,null,null,null,null,null,null,null,null,null,null,null,null,null,null,null,null,null,null,null,6,"ZP_ORGUN","2","M","","","","","","","","0","","0","","0","Org Unit Hierarchy (Selection option, optional)","60","","","0ORGUNIT","",null,null,null,null,null,null,null,null,null,null,null,null,null,null,null,null,null,null,null,null,null,null,null,null,null,null,null,null,11,"0000010001","DA5N022H38ONP4F305JXW2SQH"]
[null,null,null,null,null,null,null,null,null,null,null,null,null,null,null,null,null,null,null,null,null,null,null,null,null,null,null,null,null,null,9,"ZPRIM_ID","ZPrimary Employee ID","X","","","0006","","","","","","","","2","03","","","","00000000","K","ZPRIM_ID","A","","","H","","","","","","00000000","0000","","0","","","","","1","1","1","0","0","","","","","","DA5GMC5Q7BZ5VOKVTHBP9TM2H","","","","","","","0000","","","",11,"D4O2P4A3SH8H6WZIVSYIIRP4P","DEN9GQ7MCHE3D4088BPWXA0HL","Psychologist Total","0018","","S","","L","","","","","",null,null,null,null,null,null,11,"0ORGUNIT","0SALES_GRP","Sales group","0000","X","0","0","0","","","","","0000","",null,null,null,null,null,11,"D4O2P4A3SHKS4U7O0FWBLM1H5","DA5GNUVDNUWMFLQJMY6DAFQIH","","","","","","00","X","0","0","","",null,null,null,null,null,null,null,null,null,null,null,null,null,null,null,null,null,null,null,null,null,null,null,null,null,null,null,null,null,null,null,null,null,null,null,null,6,"ZBUDH","1","P","I","EQ","20150930","30/09/2015","","","","0","","0","","0","Master Data Key Date","60","","","0DATE","20150930",null,null,null,null,null,null,null,null,null,null,null,null,null,null,null,null,null,null,null,null,null,null,null,null,null,null,null,null,11,"0000010002","DA5N022H38D4FTIP721QVNUNT"]
[null,null,null,null,null,null,null,null,null,null,null,null,null,null,null,null,null,null,null,null,null,null,null,null,null,null,null,null,null,null,9,"0CNTRCTTYPE","Contract Type","X","","","0007","","","","","","","","1","03","","","","00000000","K","0CNTRCTTYPE","A","","","H","","","","","","00000000","0000","","0","","","","","1","1","1","0","0","","","","","","DB0ZLJBMLZ1X022DVK6MFOZQX","","","","","","","0000","","","",11,"D4O2P4A3SH8H6WZIVSYIIRP4P","D4O2P4A3SHU0CA4RUX3OEQSQH","Total Workforce F/T","0019","","F","","L","","","","","",null,null,null,null,null,null,11,"0ORGUNIT","0SALES_OFF","Sales Office","0000","X","0","0","0","","","","","0000","",null,null,null,null,null,11,"D4O2P4A3SHNUVBIPALMRVBMK9","DA5GNUVDNUSS0I3R190AYAR5L","","","","","","00","X","0","0","","",null,null,null,null,null,null,null,null,null,null,null,null,null,null,null,null,null,null,null,null,null,null,null,null,null,null,null,null,null,null,null,null,null,null,null,null,6,"ZZPERAR","1","M","","","","","","","","0","","0","","0","ZPersonnel Area","60","","","ZPERSAREA","",null,null,null,null,null,null,null,null,null,null,null,null,null,null,null,null,null,null,null,null,null,null,null,null,null,null,null,null,11,"0000000105",""]
[null,null,null,null,null,null,null,null,null,null,null,null,null,null,null,null,null,null,null,null,null,null,null,null,null,null,null,null,null,null,9,"DA5GNUVDNUS0BVRZPPKOVVCVT","Sexual Orientation - Rev 2011","","X","X","0001","","","","","","","U","","00","","","","","K","DA5GNUVDNUS0BVRZPPKOVVCVT","A","","","","","","","","","00000000","0000","X","0","","","","","0","0","0","0","0","","","","","","DA5GNUVDNUS0BVRZPPKOVVCVT","","","","","","","0000","","","",11,"D4O2P4A3SH8H6WZIVSYIIRP4P","DEN9FTLAHQ484THKU6JCGFTA1","Total Workforce P/T","0020","","F","","L","","","","","",null,null,null,null,null,null,11,"0CNTRCTTYPE","0CNTRCTISFT","Fixed-Term Contract","0000","X","2","0","0","","","","","0000","",null,null,null,null,null,11,"D4O2P4A3SHNUVBIPALMRVBMK9","DA5GNUVDNUTJP4FICSFX0Q5FD","","","","","","00","X","0","0","","",null,null,null,null,null,null,null,null,null,null,null,null,null,null,null,null,null,null,null,null,null,null,null,null,null,null,null,null,null,null,null,null,null,null,null,null,5,"ZS_DT_1","1","P","I","EQ","20150930","30/09/2015","","","","0","","0","","0","Target date 1","60","","","ZEMP_STRT","20150930",null,null,null,null,null,null,null,null,null,null,null,null,null,null,null,null,null,null,null,null,null,null,null,null,null,null,null,null,11,"0000000106",""]
[null,null,null,null,null,null,null,null,null,null,null,null,null,null,null,null,null,null,null,null,null,null,null,null,null,null,null,null,null,null,9,"D4O21W1IBUB3HEML1KWP5YGOP","WP Bandings","","X","Y","0001","","","","","","","U","","00","","","","","K","D4O21W1IBUB3HEML1KWP5YGOP","A","","","","","","","","","00000000","0000","","0","","","","","0","0","0","0","0","","","","","","D4O21W1IBUB3HEML1KWP5YGOP","","","","","","","0000","","","",11,"D4O2P4A3SH8H6WZIVSYIIRP4P","DEN9GQ7MCHEV1QBZJV5IZPERD","Total Workforce Total","0021","","F","","L","","","","","",null,null,null,null,null,null,10,"0ORGUNIT","0BBPPURGRPX","Ind.Purchasing Group","0000","X","2","0","0","","","","","0000","",null,null,null,null,null,11,"D4O2P4A3SHNUVBIPALMRVBMK9","DA5GNUVDNUUBDQR9OBVJ35JP5","","","","","","00","X","0","0","","",null,null,null,null,null,null,null,null,null,null,null,null,null,null,null,null,null,null,null,null,null,null,null,null,null,null,null,null,null,null,null,null,null,null,null,null,5,"ZP_ORGUN","2","M","","","","","","","","0","","0","","0","Org Unit Hierarchy (Selection option, optional)","60","","","0ORGUNIT","",null,null,null,null,null,null,null,null,null,null,null,null,null,null,null,null,null,null,null,null,null,null,null,null,null,null,null,null,11,"0000000112","0"]
[null,null,null,null,null,null,null,null,null,null,null,null,null,null,null,null,null,null,null,null,null,null,null,null,null,null,null,null,null,null,8,"0PAYRL_AREA","Payroll Area","X","","","0001","","","","","","","","0","03","","","","00000000","K","0PAYRL_AREA","A","","","H","","","","","","00000000","0000","","0","","","","","1","1","1","0","0","","","","","","DA5GMC5Q7BVBGKY37S5MXOMPL","","","","","","","0000","","","",10,"D4O21W1IBUB3HEML1KWP5YGOP","D4O21W1IBUDEJ9LV077JD8NI1","Grade 1 - 4 F/T","0001","","S","","L","","","","","",null,null,null,null,null,null,10,"0ORGUNIT","0BBPPURORGX","Ind. Purchasing Org.","0000","X","2","0","0","","","","","0000","",null,null,null,null,null,11,"D4O2P4A3SHNUVBIPALMRVBMK9","DA5GNUVDNUV32D30ZVB55KXYX","","","","","","00","X","0","0","","",null,null,null,null,null,null,null,null,null,null,null,null,null,null,null,null,null,null,null,null,null,null,null,null,null,null,null,null,null,null,null,null,null,null,null,null,5,"ZBUDH","1","P","I","EQ","20150930","30/09/2015","","","","0","","0","","0","Master Data Key Date","60","","","0DATE","20150930",null,null,null,null,null,null,null,null,null,null,null,null,null,null,null,null,null,null,null,null,null,null,null,null,null,null,null,null,11,"0000000200","X"]
[null,null,null,null,null,null,null,null,null,null,null,null,null,null,null,null,null,null,null,null,null,null,null,null,null,null,null,null,null,null,8,"ZPERSAREA","ZPersonal Area","X","","","0002","","","","","","","","2","03","","","","00000000","K","ZPERSAREA","A","","","H","","","","","","00000000","0000","","0","","","","","1","1","1","0","0","","","","","","DA5GMC5Q7BW3579UJBL9040ZD","","","","","","","0000","","","",10,"DA5GNUVDNUS0BVRZPPKOVVCVT","DA5GNUVDNUSS0I3R190AYAR5L","Bi-Sexual","0001","","S","","L","X","","","","",null,null,null,null,null,null,10,"0ORGUNIT","0BBP_BUYID","Buyer ID","0000","X","5","0","0","","","","","0000","",null,null,null,null,null,11,"D4O2P4A3SHNUVBIPALMRVBMK9","DA5GNUVDNUVUQZESBEQR80C8P","","","","","","00","X","0","0","","",null,null,null,null,null,null,null,null,null,null,null,null,null,null,null,null,null,null,null,null,null,null,null,null,null,null,null,null,null,null,null,null,null,null,null,null,5,"ZZPERAR","1","M","","","","","","","","0","","0","","0","ZPersonnel Area","60","","","ZPERSAREA","",null,null,null,null,null,null,null,null,null,null,null,null,null,null,null,null,null,null,null,null,null,null,null,null,null,null,null,null,11,"0000004000","X"]
[null,null,null,null,null,null,null,null,null,null,null,null,null,null,null,null,null,null,null,null,null,null,null,null,null,null,null,null,null,null,8,"0ORGUNIT","Organizational Unit","X","","","0003","","Corporate Services","","","","","","1","03","X","ORGEH","000","20150930","K","0ORGUNIT","A","","","H","0ORGUNIT","A","","","","00000000","0000","","0","","1","","2","1","1","1","0","0","","","","","","DA5GMC5Q7BWUTTLLUV0V2JF95","","","","","","","0000","","","",10,"DA5GNUVDNUS0BVRZPPKOVVCVT","DA5GNUVDNUTJP4FICSFX0Q5FD","Heterosexual","0002","","S","","L","X","","","","",null,null,null,null,null,null,10,"0ORGUNIT","0BBP_ISCOMP","Organizational Unit is Company","0000","X","1","0","0","","","","","0000","",null,null,null,null,null,11,"D4O2P4A3SHNUVBIPALMRVBMK9","DA5GNUVDNUWMFLQJMY6DAFQIH","","","","","","00","X","0","0","","",null,null,null,null,null,null,null,null,null,null,null,null,null,null,null,null,null,null,null,null,null,null,null,null,null,null,null,null,null,null,null,null,null,null,null,null,4,"ZS_DT_1","1","P","I","EQ","20150930","30/09/2015","","","","0","","0","","0","Target date 1","60","","","ZEMP_STRT","20150930",null,null,null,null,null,null,null,null,null,null,null,null,null,null,null,null,null,null,null,null,null,null,null,null,null,null,null,null,11,"0000009001","Workforce Profile Sexual Orientation Teachers (2011) Revised"]
[null,null,null,null,null,null,null,null,null,null,null,null,null,null,null,null,null,null,null,null,null,null,null,null,null,null,null,null,null,null,8,"0PERS_SAREA","Personnel Subarea","X","","","0004","","","","","","","U","1","03","","","","00000000","K","0PERS_SAREA","A","","","H","","","","","","00000000","0000","","0","","","","","1","1","1","0","0","","","","","","DA5GMC5Q7BXMIFXD6EGH4YTIX","","","","","","","0000","","","",10,"D4O21W1IBUB3HEML1KWP5YGOP","D4O21W1IBUKBOUJOW241Z37Y1","Grade 1 - 4 P/T","0002","","S","","L","","","","","",null,null,null,null,null,null,10,"0ORGUNIT","0BUS_AREA","Business area","0000","X","0","0","0","","","","","0000","",null,null,null,null,null,11,"D4O2P4A3SHQXLSTQKRD8517ND","DA5GNUVDNUSS0I3R190AYAR5L","","","","","","00","X","0","0","","",null,null,null,null,null,null,null,null,null,null,null,null,null,null,null,null,null,null,null,null,null,null,null,null,null,null,null,null,null,null,null,null,null,null,null,null,4,"ZP_ORGUN","2","M","","","","","","","","0","","0","","0","Org Unit Hierarchy (Selection option, optional)","60","","","0ORGUNIT","",null,null,null,null,null,null,null,null,null,null,null,null,null,null,null,null,null,null,null,null,null,null,null,null,null,null,null,null,11,"0000000114","1"]
[null,null,null,null,null,null,null,null,null,null,null,null,null,null,null,null,null,null,null,null,null,null,null,null,null,null,null,null,null,null,8,"ZTEILK","Checkbox for Part-Ti","X","","","0005","","","","","","","","1","03","","","","00000000","K","ZTEILK","A","","","H","","","","","","00000000","0000","","0","","","","","1","1","1","0","0","","","","","","DA5GMC5Q7BYE7294HXW37E7SP","","","","","","","0000","","","",10,"DA5GNUVDNUS0BVRZPPKOVVCVT","DA5GNUVDNUUBDQR9OBVJ35JP5","Lesbian/Gay","0003","","S","","L","X","","","","",null,null,null,null,null,null,10,"0ORGUNIT","0COMP_CODE","Company code","0000","X","0","0","0","","","","","0000","",null,null,null,null,null,11,"D4O2P4A3SHQXLSTQKRD8517ND","DA5GNUVDNUTJP4FICSFX0Q5FD","","","","","","00","X","0","0","","",null,null,null,null,null,null,null,null,null,null,null,null,null,null,null,null,null,null,null,null,null,null,null,null,null,null,null,null,null,null,null,null,null,null,null,null,4,"ZBUDH","1","P","I","EQ","20150930","30/09/2015","","","","0","","0","","0","Master Data Key Date","60","","","0DATE","20150930",null,null,null,null,null,null,null,null,null,null,null,null,null,null,null,null,null,null,null,null,null,null,null,null,null,null,null,null,10,"0000000107","DA5GMC5Q7BOEB009BX94BU29L"]
[null,null,null,null,null,null,null,null,null,null,null,null,null,null,null,null,null,null,null,null,null,null,null,null,null,null,null,null,null,null,8,"ZPRIM_ID","ZPrimary Employee ID","X","","","0006","","","","","","","","2","03","","","","00000000","K","ZPRIM_ID","A","","","H","","","","","","00000000","0000","","0","","","","","1","1","1","0","0","","","","","","DA5GMC5Q7BZ5VOKVTHBP9TM2H","","","","","","","0000","","","",10,"D4O21W1IBUB3HEML1KWP5YGOP","DEMAFDB5LZ4S252XBVM7GJP4P","Grade 1 - 4 Total","0003","","S","","L","","","","","",null,null,null,null,null,null,10,"0ORGUNIT","0CO_MST_AR","Controlling Area of Master Cost Center","0000","X","0","0","0","","","","","0000","",null,null,null,null,null,11,"D4O2P4A3SHQXLSTQKRD8517ND","DA5GNUVDNUUBDQR9OBVJ35JP5","","","","","","00","X","0","0","","",null,null,null,null,null,null,null,null,null,null,null,null,null,null,null,null,null,null,null,null,null,null,null,null,null,null,null,null,null,null,null,null,null,null,null,null,4,"ZZPERAR","1","M","","","","","","","","0","","0","","0","ZPersonnel Area","60","","","ZPERSAREA","",null,null,null,null,null,null,null,null,null,null,null,null,null,null,null,null,null,null,null,null,null,null,null,null,null,null,null,null,10,"0000000100","X"]
[null,null,null,null,null,null,null,null,null,null,null,null,null,null,null,null,null,null,null,null,null,null,null,null,null,null,null,null,null,null,8,"0CNTRCTTYPE","Contract Type","X","","","0007","","","","","","","","1","03","","","","00000000","K","0CNTRCTTYPE","A","","","H","","","","","","00000000","0000","","0","","","","","1","1","1","0","0","","","","","","DB0ZLJBMLZ1X022DVK6MFOZQX","","","","","","","0000","","","",10,"DA5GNUVDNUS0BVRZPPKOVVCVT","DA5GNUVDNUV32D30ZVB55KXYX","Transgender","0004","","S","","L","X","","","","",null,null,null,null,null,null,10,"0ORGUNIT","0CRMSALGRPX","Sls Group: Indicator","0000","X","2","0","0","","","","","0000","",null,null,null,null,null,11,"D4O2P4A3SHQXLSTQKRD8517ND","DA5GNUVDNUV32D30ZVB55KXYX","","","","","","00","X","0","0","","",null,null,null,null,null,null,null,null,null,null,null,null,null,null,null,null,null,null,null,null,null,null,null,null,null,null,null,null,null,null,null,null,null,null,null,null,null,null,null,null,null,null,null,null,null,null,null,null,null,null,null,null,null,null,null,null,null,null,null,null,null,null,null,null,null,null,null,null,null,null,null,null,null,null,null,null,null,null,null,null,null,null,null,null,null,null,10,"0000000101",""]
[null,null,null,null,null,null,null,null,null,null,null,null,null,null,null,null,null,null,null,null,null,null,null,null,null,null,null,null,null,null,8,"DA5GNUVDNUS0BVRZPPKOVVCVT","Sexual Orientation - Rev 2011","","X","X","0001","","","","","","","U","","00","","","","","K","DA5GNUVDNUS0BVRZPPKOVVCVT","A","","","","","","","","","00000000","0000","X","0","","","","","0","0","0","0","0","","","","","","DA5GNUVDNUS0BVRZPPKOVVCVT","","","","","","","0000","","","",10,"D4O21W1IBUB3HEML1KWP5YGOP","D4O21W1IBUE67VXMBQN5FO1RT","Grade 5 - 7 F/T","0004","","S","","L","","","","","",null,null,null,null,null,null,10,"0ORGUNIT","0CRMSALOFFX","Sls Office:Indicator","0000","X","2","0","0","","","","","0000","",null,null,null,null,null,11,"D4O2P4A3SHQXLSTQKRD8517ND","DA5GNUVDNUVUQZESBEQR80C8P","","","","","","00","X","0","0","","",null,null,null,null,null,null,null,null,null,null,null,null,null,null,null,null,null,null,null,null,null,null,null,null,null,null,null,null,null,null,null,null,null,null,null,null,null,null,null,null,null,null,null,null,null,null,null,null,null,null,null,null,null,null,null,null,null,null,null,null,null,null,null,null,null,null,null,null,null,null,null,null,null,null,null,null,null,null,null,null,null,null,null,null,null,null,10,"0000000104","1"]
[null,null,null,null,null,null,null,null,null,null,null,null,null,null,null,null,null,null,null,null,null,null,null,null,null,null,null,null,null,null,8,"D4O21W1IBUB3HEML1KWP5YGOP","WP Bandings","","X","Y","0001","","","","","","","U","","00","","","","","K","D4O21W1IBUB3HEML1KWP5YGOP","A","","","","","","","","","00000000","0000","","0","","","","","0","0","0","0","0","","","","","","D4O21W1IBUB3HEML1KWP5YGOP","","","","","","","0000","","","",10,"D4O21W1IBUB3HEML1KWP5YGOP","D4O21W1IBUL3DGVG7LJO1IM7T","Grade 5 - 7 P/T","0005","","S","","L","","","","","",null,null,null,null,null,null,10,"0ORGUNIT","0CRMSALORGX","Sales Org. Indicator","0000","X","2","0","0","","","","","0000","",null,null,null,null,null,11,"D4O2P4A3SHQXLSTQKRD8517ND","DA5GNUVDNUWMFLQJMY6DAFQIH","","","","","","00","X","0","0","","",null,null,null,null,null,null,null,null,null,null,null,null,null,null,null,null,null,null,null,null,null,null,null,null,null,null,null,null,null,null,null,null,null,null,null,null,null,null,null,null,null,null,null,null,null,null,null,null,null,null,null,null,null,null,null,null,null,null,null,null,null,null,null,null,null,null,null,null,null,null,null,null,null,null,null,null,null,null,null,null,null,null,null,null,null,null,10,"0000000103",""]
[null,null,null,null,null,null,null,null,null,null,null,null,null,null,null,null,null,null,null,null,null,null,null,null,null,null,null,null,null,null,7,"0PAYRL_AREA","Payroll Area","X","","","0001","","","","","","","","0","03","","","","00000000","K","0PAYRL_AREA","A","","","H","","","","","","00000000","0000","","0","","","","","1","1","1","0","0","","","","","","DA5GMC5Q7BVBGKY37S5MXOMPL","","","","","","","0000","","","",10,"DA5GNUVDNUS0BVRZPPKOVVCVT","DA5GNUVDNUVUQZESBEQR80C8P","Other","0005","","S","","L","X","","","","",null,null,null,null,null,null,10,"0ORGUNIT","0CRMSRVTGRP","Ex. CRM Service Org.","0000","X","1","0","0","","","","","0000","",null,null,null,null,null,11,"D4O2P4A3SHU0CA4RUX3OEQSQH","DA5GNUVDNUSS0I3R190AYAR5L","","0","","","","00","X","0","0","","",null,null,null,null,null,null,null,null,null,null,null,null,null,null,null,null,null,null,null,null,null,null,null,null,null,null,null,null,null,null,null,null,null,null,null,null,null,null,null,null,null,null,null,null,null,null,null,null,null,null,null,null,null,null,null,null,null,null,null,null,null,null,null,null,null,null,null,null,null,null,null,null,null,null,null,null,null,null,null,null,null,null,null,null,null,null,10,"0000000102","1"]
[null,null,null,null,null,null,null,null,null,null,null,null,null,null,null,null,null,null,null,null,null,null,null,null,null,null,null,null,null,null,7,"ZPERSAREA","ZPersonal Area","X","","","0002","","Development and Regeneration","","","","","","2","03","","","","00000000","K","ZPERSAREA","A","","","H","","","","","","00000000","0000","","0","","1","","","1","1","1","0","0","","","","","","DA5GMC5Q7BW3579UJBL9040ZD","","","","","","","0000","","","",10,"DA5GNUVDNUS0BVRZPPKOVVCVT","DA5GNUVDNUWMFLQJMY6DAFQIH","Not Disclosed","0006","","S","","L","X","","","","",null,null,null,null,null,null,10,"0ORGUNIT","0CRM_SALGRP","CRM Sales Group","0000","X","1","0","0","","","","","0000","",null,null,null,null,null,11,"D4O2P4A3SHU0CA4RUX3OEQSQH","DA5GNUVDNUTJP4FICSFX0Q5FD","","0","","","","00","X","0","0","","",null,null,null,null,null,null,null,null,null,null,null,null,null,null,null,null,null,null,null,null,null,null,null,null,null,null,null,null,null,null,null,null,null,null,null,null,null,null,null,null,null,null,null,null,null,null,null,null,null,null,null,null,null,null,null,null,null,null,null,null,null,null,null,null,null,null,null,null,null,null,null,null,null,null,null,null,null,null,null,null,null,null,null,null,null,null,10,"0000000108",""]
[null,null,null,null,null,null,null,null,null,null,null,null,null,null,null,null,null,null,null,null,null,null,null,null,null,null,null,null,null,null,7,"0ORGUNIT","Organizational Unit","X","","","0003","","","","","","","","1","03","X","ORGEH","000","20150930","K","0ORGUNIT","A","","","H","0ORGUNIT","A","","","","00000000","0000","","0","","","","2","1","1","1","0","0","","","","","","DA5GMC5Q7BWUTTLLUV0V2JF95","","","","","","","0000","","","",10,"D4O21W1IBUB3HEML1KWP5YGOP","DEMAGSP8VDTMCQ2Z9KSRG7UGP","Grade 5 - 7 Total","0006","","S","","L","","","","","",null,null,null,null,null,null,10,"0ORGUNIT","0CRM_SALOFF","CRM Sales Office","0000","X","1","0","0","","","","","0000","",null,null,null,null,null,11,"D4O2P4A3SHU0CA4RUX3OEQSQH","DA5GNUVDNUUBDQR9OBVJ35JP5","","0","","","","00","X","0","0","","",null,null,null,null,null,null,null,null,null,null,null,null,null,null,null,null,null,null,null,null,null,null,null,null,null,null,null,null,null,null,null,null,null,null,null,null,null,null,null,null,null,null,null,null,null,null,null,null,null,null,null,null,null,null,null,null,null,null,null,null,null,null,null,null,null,null,null,null,null,null,null,null,null,null,null,null,null,null,null,null,null,null,null,null,null,null,10,"0000009002","D4O21W1IBUB3HEML1KWP5YGOP"]
[null,null,null,null,null,null,null,null,null,null,null,null,null,null,null,null,null,null,null,null,null,null,null,null,null,null,null,null,null,null,7,"0PERS_SAREA","Personnel Subarea","X","","","0004","","","","","","","U","1","03","","","","00000000","K","0PERS_SAREA","A","","","H","","","","","","00000000","0000","","0","","","","","1","1","1","0","0","","","","","","DA5GMC5Q7BXMIFXD6EGH4YTIX","","","","","","","0000","","","",10,"D4O21W1IBUB3HEML1KWP5YGOP","D4O21W1IBUEXWI9DNA2RI3G1L","Grade 8 F/T","0007","","S","","L","","","","","",null,null,null,null,null,null,10,"0ORGUNIT","0CRM_SALORG","CRM Sales Org.","0000","X","1","0","0","","","","","0000","",null,null,null,null,null,11,"D4O2P4A3SHU0CA4RUX3OEQSQH","DA5GNUVDNUV32D30ZVB55KXYX","","0","","","","00","X","0","0","","",null,null,null,null,null,null,null,null,null,null,null,null,null,null,null,null,null,null,null,null,null,null,null,null,null,null,null,null,null,null,null,null,null,null,null,null,null,null,null,null,null,null,null,null,null,null,null,null,null,null,null,null,null,null,null,null,null,null,null,null,null,null,null,null,null,null,null,null,null,null,null,null,null,null,null,null,null,null,null,null,null,null,null,null,null,null,10,"0000009000",""]
[null,null,null,null,null,null,null,null,null,null,null,null,null,null,null,null,null,null,null,null,null,null,null,null,null,null,null,null,null,null,7,"ZTEILK","Checkbox for Part-Ti","X","","","0005","","","","","","","","1","03","","","","00000000","K","ZTEILK","A","","","H","","","","","","00000000","0000","","0","","","","","1","1","1","0","0","","","","","","DA5GMC5Q7BYE7294HXW37E7SP","","","","","","","0000","","","",10,"D4O21W1IBUB3HEML1KWP5YGOP","D4O21W1IBULV2377J4ZA3Y0HL","Grade 8 P/T","0008","","S","","L","","","","","",null,null,null,null,null,null,10,"0ORGUNIT","0CRM_SRVORG","Service Org. CRM","0000","X","1","0","0","","","","","0000","",null,null,null,null,null,11,"D4O2P4A3SHU0CA4RUX3OEQSQH","DA5GNUVDNUVUQZESBEQR80C8P","","0","","","","00","X","0","0","","",null,null,null,null,null,null,null,null,null,null,null,null,null,null,null,null,null,null,null,null,null,null,null,null,null,null,null,null,null,null,null,null,null,null,null,null,null,null,null,null,null,null,null,null,null,null,null,null,null,null,null,null,null,null,null,null,null,null,null,null,null,null,null,null,null,null,null,null,null,null,null,null,null,null,null,null,null,null,null,null,null,null,null,null,null,null,10,"0000000010",""]
[null,null,null,null,null,null,null,null,null,null,null,null,null,null,null,null,null,null,null,null,null,null,null,null,null,null,null,null,null,null,7,"ZPRIM_ID","ZPrimary Employee ID","X","","","0006","","","","","","","","2","03","","","","00000000","K","ZPRIM_ID","A","","","H","","","","","","00000000","0000","","0","","","","","1","1","1","0","0","","","","","","DA5GMC5Q7BZ5VOKVTHBP9TM2H","","","","","","","0000","","","",10,"D4O21W1IBUB3HEML1KWP5YGOP","D4O21W1IBV18QHQDXXNJGHXX5","Grade 8 Total","0009","","S","","L","","","","","",null,null,null,null,null,null,10,"0ORGUNIT","0LOGSYS","Source System","0000","X","1","0","0","","","","","0000","",null,null,null,null,null,11,"D4O2P4A3SHU0CA4RUX3OEQSQH","DA5GNUVDNUWMFLQJMY6DAFQIH","","0","","","","00","X","0","0","","",null,null,null,null,null,null,null,null,null,null,null,null,null,null,null,null,null,null,null,null,null,null,null,null,null,null,null,null,null,null,null,null,null,null,null,null,null,null,null,null,null,null,null,null,null,null,null,null,null,null,null,null,null,null,null,null,null,null,null,null,null,null,null,null,null,null,null,null,null,null,null,null,null,null,null,null,null,null,null,null,null,null,null,null,null,null,10,"0000000021",""]
[null,null,null,null,null,null,null,null,null,null,null,null,null,null,null,null,null,null,null,null,null,null,null,null,null,null,null,null,null,null,7,"0CNTRCTTYPE","Contract Type","X","","","0007","","","","","","","","1","03","","","","00000000","K","0CNTRCTTYPE","A","","","H","","","","","","00000000","0000","","0","","","","","1","1","1","0","0","","","","","","DB0ZLJBMLZ1X022DVK6MFOZQX","","","","","","","0000","","","",10,"D4O21W1IBUB3HEML1KWP5YGOP","D4O21W1IBUFPL4L4YTIDKIUBD","ACZ Grade 8 F/T","0010","","S","","L","","","","","",null,null,null,null,null,null,10,"0ORGUNIT","0MAST_CCTR","Master Cost Center","0000","X","0","0","0","","","","","0000","",null,null,null,null,null,11,"DEN9FTLAHPZM13J0WXXO1VFND","DA5GNUVDNUSS0I3R190AYAR5L","","","","","","00","X","0","0","","",null,null,null,null,null,null,null,null,null,null,null,null,null,null,null,null,null,null,null,null,null,null,null,null,null,null,null,null,null,null,null,null,null,null,null,null,null,null,null,null,null,null,null,null,null,null,null,null,null,null,null,null,null,null,null,null,null,null,null,null,null,null,null,null,null,null,null,null,null,null,null,null,null,null,null,null,null,null,null,null,null,null,null,null,null,null,10,"0000000022",""]
[null,null,null,null,null,null,null,null,null,null,null,null,null,null,null,null,null,null,null,null,null,null,null,null,null,null,null,null,null,null,7,"DA5GNUVDNUS0BVRZPPKOVVCVT","Sexual Orientation - Rev 2011","","X","X","0001","","","","","","","U","","00","","","","","K","DA5GNUVDNUS0BVRZPPKOVVCVT","A","","","","","","","","","00000000","0000","X","0","","","","","0","0","0","0","0","","","","","","DA5GNUVDNUS0BVRZPPKOVVCVT","","","","","","","0000","","","",10,"D4O21W1IBUB3HEML1KWP5YGOP","D4O21W1IBUMMQPIYUOEW6DERD","ACZ Grade 8 P/T","0011","","S","","L","","","","","",null,null,null,null,null,null,10,"0ORGUNIT","0PERS_AREA","Personnel Area","0000","X","1","0","0","","","","","0000","",null,null,null,null,null,11,"DEN9FTLAHPZM13J0WXXO1VFND","DA5GNUVDNUTJP4FICSFX0Q5FD","","","","","","00","X","0","0","","",null,null,null,null,null,null,null,null,null,null,null,null,null,null,null,null,null,null,null,null,null,null,null,null,null,null,null,null,null,null,null,null,null,null,null,null,null,null,null,null,null,null,null,null,null,null,null,null,null,null,null,null,null,null,null,null,null,null,null,null,null,null,null,null,null,null,null,null,null,null,null,null,null,null,null,null,null,null,null,null,null,null,null,null,null,null,10,"0000000023",""]
[null,null,null,null,null,null,null,null,null,null,null,null,null,null,null,null,null,null,null,null,null,null,null,null,null,null,null,null,null,null,7,"D4O21W1IBUB3HEML1KWP5YGOP","WP Bandings","","X","Y","0001","","","","","","","U","","00","","","","","K","D4O21W1IBUB3HEML1KWP5YGOP","A","","","","","","","","","00000000","0000","","0","","","","","0","0","0","0","0","","","","","","D4O21W1IBUB3HEML1KWP5YGOP","","","","","","","0000","","","",10,"D4O21W1IBUB3HEML1KWP5YGOP","D4O21W1IBV0H1VEMME7XE2JND","ACZ Grade 8 Total","0012","","S","","L","","","","","",null,null,null,null,null,null,10,"0ORGUNIT","0PERS_SAREA","Personnel Subarea","0000","X","1","0","0","","","","","0000","",null,null,null,null,null,11,"DEN9FTLAHPZM13J0WXXO1VFND","DA5GNUVDNUUBDQR9OBVJ35JP5","","","","","","00","X","0","0","","",null,null,null,null,null,null,null,null,null,null,null,null,null,null,null,null,null,null,null,null,null,null,null,null,null,null,null,null,null,null,null,null,null,null,null,null,null,null,null,null,null,null,null,null,null,null,null,null,null,null,null,null,null,null,null,null,null,null,null,null,null,null,null,null,null,null,null,null,null,null,null,null,null,null,null,null,null,null,null,null,null,null,null,null,null,null,10,"0000000030",""]
[null,null,null,null,null,null,null,null,null,null,null,null,null,null,null,null,null,null,null,null,null,null,null,null,null,null,null,null,null,null,6,"0PAYRL_AREA","Payroll Area","X","","","0001","","","","","","","","0","03","","","","00000000","K","0PAYRL_AREA","A","","","H","","","","","","00000000","0000","","0","","","","","1","1","1","0","0","","","","","","DA5GMC5Q7BVBGKY37S5MXOMPL","","","","","","","0000","","","",10,"D4O21W1IBUB3HEML1KWP5YGOP","D4O21W1IBUH8YD8NLWDLPDMUX","Grade 9 - 15 F/T","0013","","S","","L","","","","","",null,null,null,null,null,null,10,"0ORGUNIT","0PLANT","Plant","0000","X","0","0","0","","","","","0000","",null,null,null,null,null,11,"DEN9FTLAHPZM13J0WXXO1VFND","DA5GNUVDNUV32D30ZVB55KXYX","","","","","","00","X","0","0","","",null,null,null,null,null,null,null,null,null,null,null,null,null,null,null,null,null,null,null,null,null,null,null,null,null,null,null,null,null,null,null,null,null,null,null,null,null,null,null,null,null,null,null,null,null,null,null,null,null,null,null,null,null,null,null,null,null,null,null,null,null,null,null,null,null,null,null,null,null,null,null,null,null,null,null,null,null,null,null,null,null,null,null,null,null,null,10,"0000000040",""]
[null,null,null,null,null,null,null,null,null,null,null,null,null,null,null,null,null,null,null,null,null,null,null,null,null,null,null,null,null,null,6,"ZPERSAREA","ZPersonal Area","X","","","0002","","Financial","","","","","","2","03","","","","00000000","K","ZPERSAREA","A","","","H","","","","","","00000000","0000","","0","","1","","","1","1","1","0","0","","","","","","DA5GMC5Q7BW3579UJBL9040ZD","","","","","","","0000","","","",10,"D4O21W1IBUB3HEML1KWP5YGOP","DEN03PYIT5FSSAA2U7ST53H15","Grade 9 - 15 P/T","0014","","S","","L","","","","","",null,null,null,null,null,null,10,"0ORGUNIT","0PURCH_ORG","Purchasing org.","0000","X","0","0","0","","","","","0000","",null,null,null,null,null,11,"DEN9FTLAHPZM13J0WXXO1VFND","DA5GNUVDNUVUQZESBEQR80C8P","","","","","","00","X","0","0","","",null,null,null,null,null,null,null,null,null,null,null,null,null,null,null,null,null,null,null,null,null,null,null,null,null,null,null,null,null,null,null,null,null,null,null,null,null,null,null,null,null,null,null,null,null,null,null,null,null,null,null,null,null,null,null,null,null,null,null,null,null,null,null,null,null,null,null,null,null,null,null,null,null,null,null,null,null,null,null,null,null,null,null,null,null,null,10,"0000000041",""]
[null,null,null,null,null,null,null,null,null,null,null,null,null,null,null,null,null,null,null,null,null,null,null,null,null,null,null,null,null,null,6,"0ORGUNIT","Organizational Unit","X","","","0003","","","","","","","","1","03","X","ORGEH","000","20150930","K","0ORGUNIT","A","","","H","0ORGUNIT","A","","","","00000000","0000","","0","","","","2","1","1","1","0","0","","","","","","DA5GMC5Q7BWUTTLLUV0V2JF95","","","","","","","0000","","","",10,"D4O21W1IBUB3HEML1KWP5YGOP","D4O21W1IBUO63Y6HHRA4B87AX","Grade 9 - 15 Total","0015","","S","","L","","","","","",null,null,null,null,null,null,10,"0ORGUNIT","0PUR_GROUP","Purchasing group","0000","X","0","0","0","","","","","0000","",null,null,null,null,null,11,"DEN9FTLAHPZM13J0WXXO1VFND","DA5GNUVDNUWMFLQJMY6DAFQIH","","","","","","00","X","0","0","","",null,null,null,null,null,null,null,null,null,null,null,null,null,null,null,null,null,null,null,null,null,null,null,null,null,null,null,null,null,null,null,null,null,null,null,null,null,null,null,null,null,null,null,null,null,null,null,null,null,null,null,null,null,null,null,null,null,null,null,null,null,null,null,null,null,null,null,null,null,null,null,null,null,null,null,null,null,null,null,null,null,null,null,null,null,null,10,"0000000042","0"]
[null,null,null,null,null,null,null,null,null,null,null,null,null,null,null,null,null,null,null,null,null,null,null,null,null,null,null,null,null,null,6,"0PERS_SAREA","Personnel Subarea","X","","","0004","","","","","","","U","1","03","","","","00000000","K","0PERS_SAREA","A","","","H","","","","","","00000000","0000","","0","","","","","1","1","1","0","0","","","","","","DA5GMC5Q7BXMIFXD6EGH4YTIX","","","","","","","0000","","","",10,"D4O21W1IBUB3HEML1KWP5YGOP","D4O21W1IBUGH9QWWACXZMY8L5","ACZ Grade 9 - 15 F/T","0016","","S","","L","","","","","",null,null,null,null,null,null,10,"0ORGUNIT","0SALESORG","Sales Organization","0000","X","0","0","0","","","","","0000","",null,null,null,null,null,11,"DEN9FTLAHQ0DPPUS8HDA4ATX5","DA5GNUVDNUSS0I3R190AYAR5L","","","","","","00","X","0","0","","",null,null,null,null,null,null,null,null,null,null,null,null,null,null,null,null,null,null,null,null,null,null,null,null,null,null,null,null,null,null,null,null,null,null,null,null,null,null,null,null,null,null,null,null,null,null,null,null,null,null,null,null,null,null,null,null,null,null,null,null,null,null,null,null,null,null,null,null,null,null,null,null,null,null,null,null,null,null,null,null,null,null,null,null,null,null,10,"0000000043","0"]
[null,null,null,null,null,null,null,null,null,null,null,null,null,null,null,null,null,null,null,null,null,null,null,null,null,null,null,null,null,null,6,"ZTEILK","Checkbox for Part-Ti","X","","","0005","","","","","","","","1","03","","","","00000000","K","ZTEILK","A","","","H","","","","","","00000000","0000","","0","","","","","1","1","1","0","0","","","","","","DA5GMC5Q7BYE7294HXW37E7SP","","","","","","","0000","","","",10,"D4O21W1IBUB3HEML1KWP5YGOP","D4O21W1IBUNEFBUQ67UI8ST15","ACZ Grade 9 - 15 P/T","0017","","S","","L","","","","","",null,null,null,null,null,null,10,"0ORGUNIT","0SALES_GRP","Sales group","0000","X","0","0","0","","","","","0000","",null,null,null,null,null,11,"DEN9FTLAHQ0DPPUS8HDA4ATX5","DA5GNUVDNUTJP4FICSFX0Q5FD","","","","","","00","X","0","0","","",null,null,null,null,null,null,null,null,null,null,null,null,null,null,null,null,null,null,null,null,null,null,null,null,null,null,null,null,null,null,null,null,null,null,null,null,null,null,null,null,null,null,null,null,null,null,null,null,null,null,null,null,null,null,null,null,null,null,null,null,null,null,null,null,null,null,null,null,null,null,null,null,null,null,null,null,null,null,null,null,null,null,null,null,null,null,10,"0000000109","0"]
[null,null,null,null,null,null,null,null,null,null,null,null,null,null,null,null,null,null,null,null,null,null,null,null,null,null,null,null,null,null,6,"ZPRIM_ID","ZPrimary Employee ID","X","","","0006","","","","","","","","2","03","","","","00000000","K","ZPRIM_ID","A","","","H","","","","","","00000000","0000","","0","","","","","1","1","1","0","0","","","","","","DA5GMC5Q7BZ5VOKVTHBP9TM2H","","","","","","","0000","","","",10,"D4O21W1IBUB3HEML1KWP5YGOP","DEN04FDC1K04NBJW47LA7T915","ACZ Grade 9 - 15 Total","0018","","S","","L","","","","","",null,null,null,null,null,null,10,"0ORGUNIT","0SALES_OFF","Sales Office","0000","X","0","0","0","","","","","0000","",null,null,null,null,null,11,"DEN9FTLAHQ0DPPUS8HDA4ATX5","DA5GNUVDNUUBDQR9OBVJ35JP5","","","","","","00","X","0","0","","",null,null,null,null,null,null,null,null,null,null,null,null,null,null,null,null,null,null,null,null,null,null,null,null,null,null,null,null,null,null,null,null,null,null,null,null,null,null,null,null,null,null,null,null,null,null,null,null,null,null,null,null,null,null,null,null,null,null,null,null,null,null,null,null,null,null,null,null,null,null,null,null,null,null,null,null,null,null,null,null,null,null,null,null,null,null,10,"0000000113",""]
[null,null,null,null,null,null,null,null,null,null,null,null,null,null,null,null,null,null,null,null,null,null,null,null,null,null,null,null,null,null,6,"0CNTRCTTYPE","Contract Type","X","","","0007","","","","","","","","1","03","","","","00000000","K","0CNTRCTTYPE","A","","","H","","","","","","00000000","0000","","0","","","","","1","1","1","0","0","","","","","","DB0ZLJBMLZ1X022DVK6MFOZQX","","","","","","","0000","","","",10,"D4O21W1IBUB3HEML1KWP5YGOP","D4O21W1IBUWMMRRU0P1V1XKAH","Other (Not Migrated) F/T","0019","","F","","L","","","","","",null,null,null,null,null,null,10,"0CNTRCTTYPE","0CNTRCTISFT","Fixed-Term Contract","0000","X","2","0","0","","","","","0000","",null,null,null,null,null,11,"DEN9FTLAHQ0DPPUS8HDA4ATX5","DA5GNUVDNUV32D30ZVB55KXYX","","","","","","00","X","0","0","","",null,null,null,null,null,null,null,null,null,null,null,null,null,null,null,null,null,null,null,null,null,null,null,null,null,null,null,null,null,null,null,null,null,null,null,null,null,null,null,null,null,null,null,null,null,null,null,null,null,null,null,null,null,null,null,null,null,null,null,null,null,null,null,null,null,null,null,null,null,null,null,null,null,null,null,null,null,null,null,null,null,null,null,null,null,null,10,"0000000120",""]
[null,null,null,null,null,null,null,null,null,null,null,null,null,null,null,null,null,null,null,null,null,null,null,null,null,null,null,null,null,null,6,"DA5GNUVDNUS0BVRZPPKOVVCVT","Sexual Orientation - Rev 2011","","X","X","0001","","","","","","","U","","00","","","","","K","DA5GNUVDNUS0BVRZPPKOVVCVT","A","","","","","","","","","00000000","0000","X","0","","","","","0","0","0","0","0","","","","","","DA5GNUVDNUS0BVRZPPKOVVCVT","","","","","","","0000","","","",10,"D4O21W1IBUB3HEML1KWP5YGOP","DEN07Y1DTSNAWTLQYCBLILED5","Other (Not Migrated) P/T","0020","","F","","L","","","","","",null,null,null,null,null,null,9,"0ORGUNIT","0BBPPURGRPX","Ind.Purchasing Group","0000","X","2","0","0","","","","","0000","",null,null,null,null,null,11,"DEN9FTLAHQ0DPPUS8HDA4ATX5","DA5GNUVDNUVUQZESBEQR80C8P","","","","","","00","X","0","0","","",null,null,null,null,null,null,null,null,null,null,null,null,null,null,null,null,null,null,null,null,null,null,null,null,null,null,null,null,null,null,null,null,null,null,null,null,null,null,null,null,null,null,null,null,null,null,null,null,null,null,null,null,null,null,null,null,null,null,null,null,null,null,null,null,null,null,null,null,null,null,null,null,null,null,null,null,null,null,null,null,null,null,null,null,null,null,10,"0000000121",""]
[null,null,null,null,null,null,null,null,null,null,null,null,null,null,null,null,null,null,null,null,null,null,null,null,null,null,null,null,null,null,6,"D4O21W1IBUB3HEML1KWP5YGOP","WP Bandings","","X","Y","0001","","","","","","","U","","00","","","","","K","D4O21W1IBUB3HEML1KWP5YGOP","A","","","","","","","","","00000000","0000","","0","","","","","0","0","0","0","0","","","","","","D4O21W1IBUB3HEML1KWP5YGOP","","","","","","","0000","","","",10,"D4O21W1IBUB3HEML1KWP5YGOP","DEN07Y1DTSPLYOL0WYMFPVL6H","Other (Not Migrated) Total","0021","","F","","L","","","","","",null,null,null,null,null,null,9,"0ORGUNIT","0BBPPURORGX","Ind. Purchasing Org.","0000","X","2","0","0","","","","","0000","",null,null,null,null,null,11,"DEN9FTLAHQ0DPPUS8HDA4ATX5","DA5GNUVDNUWMFLQJMY6DAFQIH","","","","","","00","X","0","0","","",null,null,null,null,null,null,null,null,null,null,null,null,null,null,null,null,null,null,null,null,null,null,null,null,null,null,null,null,null,null,null,null,null,null,null,null,null,null,null,null,null,null,null,null,null,null,null,null,null,null,null,null,null,null,null,null,null,null,null,null,null,null,null,null,null,null,null,null,null,null,null,null,null,null,null,null,null,null,null,null,null,null,null,null,null,null,10,"0000010001","DA5GMC5Q7C0P8X8EGK6XEOEM1"]
[null,null,null,null,null,null,null,null,null,null,null,null,null,null,null,null,null,null,null,null,null,null,null,null,null,null,null,null,null,null,5,"0PAYRL_AREA","Payroll Area","X","","","0001","","","","","","","","0","03","","","","00000000","K","0PAYRL_AREA","A","","","H","","","","","","00000000","0000","","0","","","","","1","1","1","0","0","","","","","","DA5GMC5Q7BVBGKY37S5MXOMPL","","","","","","","0000","","","",10,"D4O21W1IBUB3HEML1KWP5YGOP","D4O21W1IBUY600FCNRX36SCU1","Total Teaching Staff F/T","0022","","S","","L","","","","","",null,null,null,null,null,null,9,"0ORGUNIT","0BBP_BUYID","Buyer ID","0000","X","5","0","0","","","","","0000","",null,null,null,null,null,11,"DEN9FTLAHQ15EC6JK0SW6Q86X","DA5GNUVDNUSS0I3R190AYAR5L","","","","","","00","X","0","0","","",null,null,null,null,null,null,null,null,null,null,null,null,null,null,null,null,null,null,null,null,null,null,null,null,null,null,null,null,null,null,null,null,null,null,null,null,null,null,null,null,null,null,null,null,null,null,null,null,null,null,null,null,null,null,null,null,null,null,null,null,null,null,null,null,null,null,null,null,null,null,null,null,null,null,null,null,null,null,null,null,null,null,null,null,null,null,10,"0000010002","DA5GMC5Q7BOEB009BX94BU29L"]
[null,null,null,null,null,null,null,null,null,null,null,null,null,null,null,null,null,null,null,null,null,null,null,null,null,null,null,null,null,null,5,"ZPERSAREA","ZPersonal Area","X","","","0002","","Land and Environmental","","","","","","2","03","","","","00000000","K","ZPERSAREA","A","","","H","","","","","","00000000","0000","","0","","1","","","1","1","1","0","0","","","","","","DA5GMC5Q7BW3579UJBL9040ZD","","","","","","","0000","","","",10,"D4O21W1IBUB3HEML1KWP5YGOP","DEN0OSIFULCZTDTFE8U7RBQIH","Total Teaching Staff P/T","0023","","S","","L","","","","","",null,null,null,null,null,null,9,"0ORGUNIT","0BBP_ISCOMP","Organizational Unit is Company","0000","X","1","0","0","","","","","0000","",null,null,null,null,null,11,"DEN9FTLAHQ15EC6JK0SW6Q86X","DA5GNUVDNUTJP4FICSFX0Q5FD","","","","","","00","X","0","0","","",null,null,null,null,null,null,null,null,null,null,null,null,null,null,null,null,null,null,null,null,null,null,null,null,null,null,null,null,null,null,null,null,null,null,null,null,null,null,null,null,null,null,null,null,null,null,null,null,null,null,null,null,null,null,null,null,null,null,null,null,null,null,null,null,null,null,null,null,null,null,null,null,null,null,null,null,null,null,null,null,null,null,null,null,null,null,10,"0000000105",""]
[null,null,null,null,null,null,null,null,null,null,null,null,null,null,null,null,null,null,null,null,null,null,null,null,null,null,null,null,null,null,5,"0ORGUNIT","Organizational Unit","X","","","0003","","","","","","","","1","03","X","ORGEH","000","20150930","K","0ORGUNIT","A","","","H","0ORGUNIT","A","","","","00000000","0000","","0","","","","2","1","1","1","0","0","","","","","","DA5GMC5Q7BWUTTLLUV0V2JF95","","","","","","","0000","","","",10,"D4O21W1IBUB3HEML1KWP5YGOP","DEN0OSIFULDRI056PS9TTR4S9","Total Teaching Staff","0024","","S","","L","","","","","",null,null,null,null,null,null,9,"0ORGUNIT","0BUS_AREA","Business area","0000","X","0","0","0","","","","","0000","",null,null,null,null,null,11,"DEN9FTLAHQ15EC6JK0SW6Q86X","DA5GNUVDNUUBDQR9OBVJ35JP5","","","","","","00","X","0","0","","",null,null,null,null,null,null,null,null,null,null,null,null,null,null,null,null,null,null,null,null,null,null,null,null,null,null,null,null,null,null,null,null,null,null,null,null,null,null,null,null,null,null,null,null,null,null,null,null,null,null,null,null,null,null,null,null,null,null,null,null,null,null,null,null,null,null,null,null,null,null,null,null,null,null,null,null,null,null,null,null,null,null,null,null,null,null,10,"0000000106",""]
[null,null,null,null,null,null,null,null,null,null,null,null,null,null,null,null,null,null,null,null,null,null,null,null,null,null,null,null,null,null,5,"0PERS_SAREA","Personnel Subarea","X","","","0004","","","","","","","U","1","03","","","","00000000","K","0PERS_SAREA","A","","","H","","","","","","00000000","0000","","0","","","","","1","1","1","0","0","","","","","","DA5GMC5Q7BXMIFXD6EGH4YTIX","","","","","","","0000","","","",10,"D4O21W1IBUB3HEML1KWP5YGOP","DEN0OSIFULEJ6MGY1BPFW6J21","Total Non-Teaching Staff F/T","0025","","S","","L","","","","","",null,null,null,null,null,null,9,"0ORGUNIT","0COMP_CODE","Company code","0000","X","0","0","0","","","","","0000","",null,null,null,null,null,11,"DEN9FTLAHQ15EC6JK0SW6Q86X","DA5GNUVDNUV32D30ZVB55KXYX","","","","","","00","X","0","0","","",null,null,null,null,null,null,null,null,null,null,null,null,null,null,null,null,null,null,null,null,null,null,null,null,null,null,null,null,null,null,null,null,null,null,null,null,null,null,null,null,null,null,null,null,null,null,null,null,null,null,null,null,null,null,null,null,null,null,null,null,null,null,null,null,null,null,null,null,null,null,null,null,null,null,null,null,null,null,null,null,null,null,null,null,null,null,10,"0000000112","0"]
[null,null,null,null,null,null,null,null,null,null,null,null,null,null,null,null,null,null,null,null,null,null,null,null,null,null,null,null,null,null,5,"ZTEILK","Checkbox for Part-Ti","X","","","0005","","","","","","","","1","03","","","","00000000","K","ZTEILK","A","","","H","","","","","","00000000","0000","","0","","","","","1","1","1","0","0","","","","","","DA5GMC5Q7BYE7294HXW37E7SP","","","","","","","0000","","","",10,"D4O21W1IBUB3HEML1KWP5YGOP","DEN07Y1DTSOUA299LF6TNG6WP","Total Non-Teaching Staff P/T","0026","","S","","L","","","","","",null,null,null,null,null,null,9,"0ORGUNIT","0CO_MST_AR","Controlling Area of Master Cost Center","0000","X","0","0","0","","","","","0000","",null,null,null,null,null,11,"DEN9FTLAHQ15EC6JK0SW6Q86X","DA5GNUVDNUVUQZESBEQR80C8P","","","","","","00","X","0","0","","",null,null,null,null,null,null,null,null,null,null,null,null,null,null,null,null,null,null,null,null,null,null,null,null,null,null,null,null,null,null,null,null,null,null,null,null,null,null,null,null,null,null,null,null,null,null,null,null,null,null,null,null,null,null,null,null,null,null,null,null,null,null,null,null,null,null,null,null,null,null,null,null,null,null,null,null,null,null,null,null,null,null,null,null,null,null,10,"0000000200","X"]
[null,null,null,null,null,null,null,null,null,null,null,null,null,null,null,null,null,null,null,null,null,null,null,null,null,null,null,null,null,null,5,"ZPRIM_ID","ZPrimary Employee ID","X","","","0006","","","","","","","","2","03","","","","00000000","K","ZPRIM_ID","A","","","H","","","","","","00000000","0000","","0","","","","","1","1","1","0","0","","","","","","DA5GMC5Q7BZ5VOKVTHBP9TM2H","","","","","","","0000","","","",10,"D4O21W1IBUB3HEML1KWP5YGOP","DEN07Y1DTSR5BX8JK1HNUQDQ1","Total Non-Teaching Staff","0027","","S","","L","","","","","",null,null,null,null,null,null,9,"0ORGUNIT","0CRMSALGRPX","Sls Group: Indicator","0000","X","2","0","0","","","","","0000","",null,null,null,null,null,11,"DEN9FTLAHQ15EC6JK0SW6Q86X","DA5GNUVDNUWMFLQJMY6DAFQIH","","","","","","00","X","0","0","","",null,null,null,null,null,null,null,null,null,null,null,null,null,null,null,null,null,null,null,null,null,null,null,null,null,null,null,null,null,null,null,null,null,null,null,null,null,null,null,null,null,null,null,null,null,null,null,null,null,null,null,null,null,null,null,null,null,null,null,null,null,null,null,null,null,null,null,null,null,null,null,null,null,null,null,null,null,null,null,null,null,null,null,null,null,null,10,"0000004000","X"]
[null,null,null,null,null,null,null,null,null,null,null,null,null,null,null,null,null,null,null,null,null,null,null,null,null,null,null,null,null,null,5,"0CNTRCTTYPE","Contract Type","X","","","0007","","","","","","","","1","03","","","","00000000","K","0CNTRCTTYPE","A","","","H","","","","","","00000000","0000","","0","","","","","1","1","1","0","0","","","","","","DB0ZLJBMLZ1X022DVK6MFOZQX","","","","","","","0000","","","",10,"D4O21W1IBUB3HEML1KWP5YGOP","D4O21W1IBUXEBE3LC8HH4CYK9","Total - All WPBR Grades F/T","0028","","F","","L","","","","","",null,null,null,null,null,null,9,"0ORGUNIT","0CRMSALOFFX","Sls Office:Indicator","0000","X","2","0","0","","","","","0000","",null,null,null,null,null,11,"DEN9FTLAHQ1X2YIAVK8I95MGP","DA5GNUVDNUSS0I3R190AYAR5L","","","","","","00","X","0","0","","",null,null,null,null,null,null,null,null,null,null,null,null,null,null,null,null,null,null,null,null,null,null,null,null,null,null,null,null,null,null,null,null,null,null,null,null,null,null,null,null,null,null,null,null,null,null,null,null,null,null,null,null,null,null,null,null,null,null,null,null,null,null,null,null,null,null,null,null,null,null,null,null,null,null,null,null,null,null,null,null,null,null,null,null,null,null,10,"0000009001","Workforce Profile Sexual Orientation (2011) Revised"]
[null,null,null,null,null,null,null,null,null,null,null,null,null,null,null,null,null,null,null,null,null,null,null,null,null,null,null,null,null,null,5,"DA5GNUVDNUS0BVRZPPKOVVCVT","Sexual Orientation - Rev 2011","","X","X","0001","","","","","","","U","","00","","","","","K","DA5GNUVDNUS0BVRZPPKOVVCVT","A","","","","","","","","","00000000","0000","X","0","","","","","0","0","0","0","0","","","","","","DA5GNUVDNUS0BVRZPPKOVVCVT","","","","","","","0000","","","",10,"D4O21W1IBUB3HEML1KWP5YGOP","DEN07Y1DTSO2LFXI9VR7L0SMX","Total - All WPBR Grades P/T","0029","","F","","L","","","","","",null,null,null,null,null,null,9,"0ORGUNIT","0CRMSALORGX","Sales Org. Indicator","0000","X","2","0","0","","","","","0000","",null,null,null,null,null,11,"DEN9FTLAHQ1X2YIAVK8I95MGP","DA5GNUVDNUTJP4FICSFX0Q5FD","","","","","","00","X","0","0","","",null,null,null,null,null,null,null,null,null,null,null,null,null,null,null,null,null,null,null,null,null,null,null,null,null,null,null,null,null,null,null,null,null,null,null,null,null,null,null,null,null,null,null,null,null,null,null,null,null,null,null,null,null,null,null,null,null,null,null,null,null,null,null,null,null,null,null,null,null,null,null,null,null,null,null,null,null,null,null,null,null,null,null,null,null,null,10,"0000000114","1"]
[null,null,null,null,null,null,null,null,null,null,null,null,null,null,null,null,null,null,null,null,null,null,null,null,null,null,null,null,null,null,5,"D4O21W1IBUB3HEML1KWP5YGOP","WP Bandings","","X","Y","0001","","","","","","","U","","00","","","","","K","D4O21W1IBUB3HEML1KWP5YGOP","A","","","","","","","","","00000000","0000","","0","","","","","0","0","0","0","0","","","","","","D4O21W1IBUB3HEML1KWP5YGOP","","","","","","","0000","","","",10,"D4O21W1IBUB3HEML1KWP5YGOP","DEN07Y1DTSQDNAWS8I21SAZG9","Total Workforce - All WPBR Grades","0030","","F","","L","","","","","",null,null,null,null,null,null,9,"0ORGUNIT","0CRMSRVTGRP","Ex. CRM Service Org.","0000","X","1","0","0","","","","","0000","",null,null,null,null,null,11,"DEN9FTLAHQ1X2YIAVK8I95MGP","DA5GNUVDNUUBDQR9OBVJ35JP5","","","","","","00","X","0","0","","",null,null,null,null,null,null,null,null,null,null,null,null,null,null,null,null,null,null,null,null,null,null,null,null,null,null,null,null,null,null,null,null,null,null,null,null,null,null,null,null,null,null,null,null,null,null,null,null,null,null,null,null,null,null,null,null,null,null,null,null,null,null,null,null,null,null,null,null,null,null,null,null,null,null,null,null,null,null,null,null,null,null,null,null,null,null,9,"0000000107","DA5GMC5Q7BOEB009BX94BU29L"]
[null,null,null,null,null,null,null,null,null,null,null,null,null,null,null,null,null,null,null,null,null,null,null,null,null,null,null,null,null,null,4,"0PAYRL_AREA","Payroll Area","X","","","0001","","","","","","","","0","03","","","","00000000","K","0PAYRL_AREA","A","","","H","","","","","","00000000","0000","","0","","","","","1","1","1","0","0","","","","","","DA5GMC5Q7BVBGKY37S5MXOMPL","","","","","","","0000","","","",10,"D4O21W1IBUB3HEML1KWP5YGOP","D4O21W1IBV8XKOZZ5BZO4RWMX","Total Workforce (All) F/T","0031","","S","","L","","","","","",null,null,null,null,null,null,9,"0ORGUNIT","0CRM_SALGRP","CRM Sales Group","0000","X","1","0","0","","","","","0000","",null,null,null,null,null,11,"DEN9FTLAHQ1X2YIAVK8I95MGP","DA5GNUVDNUV32D30ZVB55KXYX","","","","","","00","X","0","0","","",null,null,null,null,null,null,null,null,null,null,null,null,null,null,null,null,null,null,null,null,null,null,null,null,null,null,null,null,null,null,null,null,null,null,null,null,null,null,null,null,null,null,null,null,null,null,null,null,null,null,null,null,null,null,null,null,null,null,null,null,null,null,null,null,null,null,null,null,null,null,null,null,null,null,null,null,null,null,null,null,null,null,null,null,null,null,9,"0000000100","X"]
[null,null,null,null,null,null,null,null,null,null,null,null,null,null,null,null,null,null,null,null,null,null,null,null,null,null,null,null,null,null,4,"ZPERSAREA","ZPersonal Area","X","","","0002","","Social Work","","","","","","2","03","","","","00000000","K","ZPERSAREA","A","","","H","","","","","","00000000","0000","","0","","1","","","1","1","1","0","0","","","","","","DA5GMC5Q7BW3579UJBL9040ZD","","","","","","","0000","","","",10,"D4O21W1IBUB3HEML1KWP5YGOP","DEN07Y1DTSRX0JKAVKX9X5RZT","Total Workforce (All) P/T","0032","","S","","L","","","","","",null,null,null,null,null,null,9,"0ORGUNIT","0CRM_SALOFF","CRM Sales Office","0000","X","1","0","0","","","","","0000","",null,null,null,null,null,11,"DEN9FTLAHQ1X2YIAVK8I95MGP","DA5GNUVDNUVUQZESBEQR80C8P","","","","","","00","X","0","0","","",null,null,null,null,null,null,null,null,null,null,null,null,null,null,null,null,null,null,null,null,null,null,null,null,null,null,null,null,null,null,null,null,null,null,null,null,null,null,null,null,null,null,null,null,null,null,null,null,null,null,null,null,null,null,null,null,null,null,null,null,null,null,null,null,null,null,null,null,null,null,null,null,null,null,null,null,null,null,null,null,null,null,null,null,null,null,9,"0000000101",""]
[null,null,null,null,null,null,null,null,null,null,null,null,null,null,null,null,null,null,null,null,null,null,null,null,null,null,null,null,null,null,4,"0ORGUNIT","Organizational Unit","X","","","0003","","","","","","","","1","03","X","ORGEH","000","20150930","K","0ORGUNIT","A","","","H","0ORGUNIT","A","","","","00000000","0000","","0","","","","2","1","1","1","0","0","","","","","","DA5GMC5Q7BWUTTLLUV0V2JF95","","","","","","","0000","","","",10,"D4O21W1IBUB3HEML1KWP5YGOP","DEN07Y1DTSSOP5W274CVZL69L","Total Workforce (All)","0033","","S","","L","","","","","",null,null,null,null,null,null,9,"0ORGUNIT","0CRM_SALORG","CRM Sales Org.","0000","X","1","0","0","","","","","0000","",null,null,null,null,null,11,"DEN9FTLAHQ1X2YIAVK8I95MGP","DA5GNUVDNUWMFLQJMY6DAFQIH","","","","","","00","X","0","0","","",null,null,null,null,null,null,null,null,null,null,null,null,null,null,null,null,null,null,null,null,null,null,null,null,null,null,null,null,null,null,null,null,null,null,null,null,null,null,null,null,null,null,null,null,null,null,null,null,null,null,null,null,null,null,null,null,null,null,null,null,null,null,null,null,null,null,null,null,null,null,null,null,null,null,null,null,null,null,null,null,null,null,null,null,null,null,9,"0000000104","1"]
[null,null,null,null,null,null,null,null,null,null,null,null,null,null,null,null,null,null,null,null,null,null,null,null,null,null,null,null,null,null,4,"0PERS_SAREA","Personnel Subarea","X","","","0004","","","","","","","U","1","03","","","","00000000","K","0PERS_SAREA","A","","","H","","","","","","00000000","0000","","0","","","","","1","1","1","0","0","","","","","","DA5GMC5Q7BXMIFXD6EGH4YTIX","","","","","","","0000","","","",9,"D4O21W1IBUB3HEML1KWP5YGOP","D4O21W1IBUDEJ9LV077JD8NI1","Grade 1 - 4 F/T","0001","","S","","L","","","","","",null,null,null,null,null,null,9,"0ORGUNIT","0CRM_SRVORG","Service Org. CRM","0000","X","1","0","0","","","","","0000","",null,null,null,null,null,11,"DEN9FTLAHQ2ORKU273O4BL0QH","DA5GNUVDNUSS0I3R190AYAR5L","","","","","","00","X","0","0","","",null,null,null,null,null,null,null,null,null,null,null,null,null,null,null,null,null,null,null,null,null,null,null,null,null,null,null,null,null,null,null,null,null,null,null,null,null,null,null,null,null,null,null,null,null,null,null,null,null,null,null,null,null,null,null,null,null,null,null,null,null,null,null,null,null,null,null,null,null,null,null,null,null,null,null,null,null,null,null,null,null,null,null,null,null,null,9,"0000000103",""]
[null,null,null,null,null,null,null,null,null,null,null,null,null,null,null,null,null,null,null,null,null,null,null,null,null,null,null,null,null,null,4,"ZTEILK","Checkbox for Part-Ti","X","","","0005","","","","","","","","1","03","","","","00000000","K","ZTEILK","A","","","H","","","","","","00000000","0000","","0","","","","","1","1","1","0","0","","","","","","DA5GMC5Q7BYE7294HXW37E7SP","","","","","","","0000","","","",9,"DA5GNUVDNUS0BVRZPPKOVVCVT","DA5GNUVDNUSS0I3R190AYAR5L","Bi-Sexual","0001","","S","","L","X","","","","",null,null,null,null,null,null,9,"0ORGUNIT","0LOGSYS","Source System","0000","X","1","0","0","","","","","0000","",null,null,null,null,null,11,"DEN9FTLAHQ2ORKU273O4BL0QH","DA5GNUVDNUTJP4FICSFX0Q5FD","","","","","","00","X","0","0","","",null,null,null,null,null,null,null,null,null,null,null,null,null,null,null,null,null,null,null,null,null,null,null,null,null,null,null,null,null,null,null,null,null,null,null,null,null,null,null,null,null,null,null,null,null,null,null,null,null,null,null,null,null,null,null,null,null,null,null,null,null,null,null,null,null,null,null,null,null,null,null,null,null,null,null,null,null,null,null,null,null,null,null,null,null,null,9,"0000000102","1"]
[null,null,null,null,null,null,null,null,null,null,null,null,null,null,null,null,null,null,null,null,null,null,null,null,null,null,null,null,null,null,4,"ZPRIM_ID","ZPrimary Employee ID","X","","","0006","","","","","","","","2","03","","","","00000000","K","ZPRIM_ID","A","","","H","","","","","","00000000","0000","","0","","","","","1","1","1","0","0","","","","","","DA5GMC5Q7BZ5VOKVTHBP9TM2H","","","","","","","0000","","","",9,"DA5GNUVDNUS0BVRZPPKOVVCVT","DA5GNUVDNUTJP4FICSFX0Q5FD","Heterosexual","0002","","S","","L","X","","","","",null,null,null,null,null,null,9,"0ORGUNIT","0MAST_CCTR","Master Cost Center","0000","X","0","0","0","","","","","0000","",null,null,null,null,null,11,"DEN9FTLAHQ2ORKU273O4BL0QH","DA5GNUVDNUUBDQR9OBVJ35JP5","","","","","","00","X","0","0","","",null,null,null,null,null,null,null,null,null,null,null,null,null,null,null,null,null,null,null,null,null,null,null,null,null,null,null,null,null,null,null,null,null,null,null,null,null,null,null,null,null,null,null,null,null,null,null,null,null,null,null,null,null,null,null,null,null,null,null,null,null,null,null,null,null,null,null,null,null,null,null,null,null,null,null,null,null,null,null,null,null,null,null,null,null,null,9,"0000000108",""]
[null,null,null,null,null,null,null,null,null,null,null,null,null,null,null,null,null,null,null,null,null,null,null,null,null,null,null,null,null,null,4,"0CNTRCTTYPE","Contract Type","X","","","0007","","","","","","","","1","03","","","","00000000","K","0CNTRCTTYPE","A","","","H","","","","","","00000000","0000","","0","","","","","1","1","1","0","0","","","","","","DB0ZLJBMLZ1X022DVK6MFOZQX","","","","","","","0000","","","",9,"D4O21W1IBUB3HEML1KWP5YGOP","D4O21W1IBUKBOUJOW241Z37Y1","Grade 1 - 4 P/T","0002","","S","","L","","","","","",null,null,null,null,null,null,9,"0ORGUNIT","0PERS_AREA","Personnel Area","0000","X","1","0","0","","","","","0000","",null,null,null,null,null,11,"DEN9FTLAHQ2ORKU273O4BL0QH","DA5GNUVDNUV32D30ZVB55KXYX","","","","","","00","X","0","0","","",null,null,null,null,null,null,null,null,null,null,null,null,null,null,null,null,null,null,null,null,null,null,null,null,null,null,null,null,null,null,null,null,null,null,null,null,null,null,null,null,null,null,null,null,null,null,null,null,null,null,null,null,null,null,null,null,null,null,null,null,null,null,null,null,null,null,null,null,null,null,null,null,null,null,null,null,null,null,null,null,null,null,null,null,null,null,9,"0000009002","D4O21W1IBUB3HEML1KWP5YGOP"]
[null,null,null,null,null,null,null,null,null,null,null,null,null,null,null,null,null,null,null,null,null,null,null,null,null,null,null,null,null,null,4,"DA5GNUVDNUS0BVRZPPKOVVCVT","Sexual Orientation - Rev 2011","","X","X","0001","","","","","","","U","","00","","","","","K","DA5GNUVDNUS0BVRZPPKOVVCVT","A","","","","","","","","","00000000","0000","X","0","","","","","0","0","0","0","0","","","","","","DA5GNUVDNUS0BVRZPPKOVVCVT","","","","","","","0000","","","",9,"DA5GNUVDNUS0BVRZPPKOVVCVT","DA5GNUVDNUUBDQR9OBVJ35JP5","Lesbian/Gay","0003","","S","","L","X","","","","",null,null,null,null,null,null,9,"0ORGUNIT","0PERS_SAREA","Personnel Subarea","0000","X","1","0","0","","","","","0000","",null,null,null,null,null,11,"DEN9FTLAHQ2ORKU273O4BL0QH","DA5GNUVDNUVUQZESBEQR80C8P","","","","","","00","X","0","0","","",null,null,null,null,null,null,null,null,null,null,null,null,null,null,null,null,null,null,null,null,null,null,null,null,null,null,null,null,null,null,null,null,null,null,null,null,null,null,null,null,null,null,null,null,null,null,null,null,null,null,null,null,null,null,null,null,null,null,null,null,null,null,null,null,null,null,null,null,null,null,null,null,null,null,null,null,null,null,null,null,null,null,null,null,null,null,9,"0000009000",""]
[null,null,null,null,null,null,null,null,null,null,null,null,null,null,null,null,null,null,null,null,null,null,null,null,null,null,null,null,null,null,4,"D4O21W1IBUB3HEML1KWP5YGOP","WP Bandings","","X","Y","0001","","","","","","","U","","00","","","","","K","D4O21W1IBUB3HEML1KWP5YGOP","A","","","","","","","","","00000000","0000","","0","","","","","0","0","0","0","0","","","","","","D4O21W1IBUB3HEML1KWP5YGOP","","","","","","","0000","","","",9,"D4O21W1IBUB3HEML1KWP5YGOP","DEMAFDB5LZ4S252XBVM7GJP4P","Grade 1 - 4 Total","0003","","S","","L","","","","","",null,null,null,null,null,null,9,"0ORGUNIT","0PLANT","Plant","0000","X","0","0","0","","","","","0000","",null,null,null,null,null,11,"DEN9FTLAHQ2ORKU273O4BL0QH","DA5GNUVDNUWMFLQJMY6DAFQIH","","","","","","00","X","0","0","","",null,null,null,null,null,null,null,null,null,null,null,null,null,null,null,null,null,null,null,null,null,null,null,null,null,null,null,null,null,null,null,null,null,null,null,null,null,null,null,null,null,null,null,null,null,null,null,null,null,null,null,null,null,null,null,null,null,null,null,null,null,null,null,null,null,null,null,null,null,null,null,null,null,null,null,null,null,null,null,null,null,null,null,null,null,null,9,"0000000010",""]
[null,null,null,null,null,null,null,null,null,null,null,null,null,null,null,null,null,null,null,null,null,null,null,null,null,null,null,null,null,null,null,null,null,null,null,null,null,null,null,null,null,null,null,null,null,null,null,null,null,null,null,null,null,null,null,null,null,null,null,null,null,null,null,null,null,null,null,null,null,null,null,null,null,null,null,null,null,null,null,null,null,null,null,null,null,null,null,null,null,null,9,"DA5GNUVDNUS0BVRZPPKOVVCVT","DA5GNUVDNUV32D30ZVB55KXYX","Transgender","0004","","S","","L","X","","","","",null,null,null,null,null,null,9,"0ORGUNIT","0PURCH_ORG","Purchasing org.","0000","X","0","0","0","","","","","0000","",null,null,null,null,null,11,"DEN9FTLAHQ3GG75TIN3QE0F09","DA5GNUVDNUSS0I3R190AYAR5L","","","","","","00","X","0","0","","",null,null,null,null,null,null,null,null,null,null,null,null,null,null,null,null,null,null,null,null,null,null,null,null,null,null,null,null,null,null,null,null,null,null,null,null,null,null,null,null,null,null,null,null,null,null,null,null,null,null,null,null,null,null,null,null,null,null,null,null,null,null,null,null,null,null,null,null,null,null,null,null,null,null,null,null,null,null,null,null,null,null,null,null,null,null,9,"0000000021",""]
[null,null,null,null,null,null,null,null,null,null,null,null,null,null,null,null,null,null,null,null,null,null,null,null,null,null,null,null,null,null,null,null,null,null,null,null,null,null,null,null,null,null,null,null,null,null,null,null,null,null,null,null,null,null,null,null,null,null,null,null,null,null,null,null,null,null,null,null,null,null,null,null,null,null,null,null,null,null,null,null,null,null,null,null,null,null,null,null,null,null,9,"D4O21W1IBUB3HEML1KWP5YGOP","D4O21W1IBUE67VXMBQN5FO1RT","Grade 5 - 7 F/T","0004","","S","","L","","","","","",null,null,null,null,null,null,9,"0ORGUNIT","0PUR_GROUP","Purchasing group","0000","X","0","0","0","","","","","0000","",null,null,null,null,null,11,"DEN9FTLAHQ3GG75TIN3QE0F09","DA5GNUVDNUTJP4FICSFX0Q5FD","","","","","","00","X","0","0","","",null,null,null,null,null,null,null,null,null,null,null,null,null,null,null,null,null,null,null,null,null,null,null,null,null,null,null,null,null,null,null,null,null,null,null,null,null,null,null,null,null,null,null,null,null,null,null,null,null,null,null,null,null,null,null,null,null,null,null,null,null,null,null,null,null,null,null,null,null,null,null,null,null,null,null,null,null,null,null,null,null,null,null,null,null,null,9,"0000000022",""]
[null,null,null,null,null,null,null,null,null,null,null,null,null,null,null,null,null,null,null,null,null,null,null,null,null,null,null,null,null,null,null,null,null,null,null,null,null,null,null,null,null,null,null,null,null,null,null,null,null,null,null,null,null,null,null,null,null,null,null,null,null,null,null,null,null,null,null,null,null,null,null,null,null,null,null,null,null,null,null,null,null,null,null,null,null,null,null,null,null,null,9,"D4O21W1IBUB3HEML1KWP5YGOP","D4O21W1IBUL3DGVG7LJO1IM7T","Grade 5 - 7 P/T","0005","","S","","L","","","","","",null,null,null,null,null,null,9,"0ORGUNIT","0SALESORG","Sales Organization","0000","X","0","0","0","","","","","0000","",null,null,null,null,null,11,"DEN9FTLAHQ3GG75TIN3QE0F09","DA5GNUVDNUUBDQR9OBVJ35JP5","","","","","","00","X","0","0","","",null,null,null,null,null,null,null,null,null,null,null,null,null,null,null,null,null,null,null,null,null,null,null,null,null,null,null,null,null,null,null,null,null,null,null,null,null,null,null,null,null,null,null,null,null,null,null,null,null,null,null,null,null,null,null,null,null,null,null,null,null,null,null,null,null,null,null,null,null,null,null,null,null,null,null,null,null,null,null,null,null,null,null,null,null,null,9,"0000000023",""]
[null,null,null,null,null,null,null,null,null,null,null,null,null,null,null,null,null,null,null,null,null,null,null,null,null,null,null,null,null,null,null,null,null,null,null,null,null,null,null,null,null,null,null,null,null,null,null,null,null,null,null,null,null,null,null,null,null,null,null,null,null,null,null,null,null,null,null,null,null,null,null,null,null,null,null,null,null,null,null,null,null,null,null,null,null,null,null,null,null,null,9,"DA5GNUVDNUS0BVRZPPKOVVCVT","DA5GNUVDNUVUQZESBEQR80C8P","Other","0005","","S","","L","X","","","","",null,null,null,null,null,null,9,"0ORGUNIT","0SALES_GRP","Sales group","0000","X","0","0","0","","","","","0000","",null,null,null,null,null,11,"DEN9FTLAHQ3GG75TIN3QE0F09","DA5GNUVDNUV32D30ZVB55KXYX","","","","","","00","X","0","0","","",null,null,null,null,null,null,null,null,null,null,null,null,null,null,null,null,null,null,null,null,null,null,null,null,null,null,null,null,null,null,null,null,null,null,null,null,null,null,null,null,null,null,null,null,null,null,null,null,null,null,null,null,null,null,null,null,null,null,null,null,null,null,null,null,null,null,null,null,null,null,null,null,null,null,null,null,null,null,null,null,null,null,null,null,null,null,9,"0000000030",""]
[null,null,null,null,null,null,null,null,null,null,null,null,null,null,null,null,null,null,null,null,null,null,null,null,null,null,null,null,null,null,null,null,null,null,null,null,null,null,null,null,null,null,null,null,null,null,null,null,null,null,null,null,null,null,null,null,null,null,null,null,null,null,null,null,null,null,null,null,null,null,null,null,null,null,null,null,null,null,null,null,null,null,null,null,null,null,null,null,null,null,9,"DA5GNUVDNUS0BVRZPPKOVVCVT","DA5GNUVDNUWMFLQJMY6DAFQIH","Not Disclosed","0006","","S","","L","X","","","","",null,null,null,null,null,null,9,"0ORGUNIT","0SALES_OFF","Sales Office","0000","X","0","0","0","","","","","0000","",null,null,null,null,null,11,"DEN9FTLAHQ3GG75TIN3QE0F09","DA5GNUVDNUVUQZESBEQR80C8P","","","","","","00","X","0","0","","",null,null,null,null,null,null,null,null,null,null,null,null,null,null,null,null,null,null,null,null,null,null,null,null,null,null,null,null,null,null,null,null,null,null,null,null,null,null,null,null,null,null,null,null,null,null,null,null,null,null,null,null,null,null,null,null,null,null,null,null,null,null,null,null,null,null,null,null,null,null,null,null,null,null,null,null,null,null,null,null,null,null,null,null,null,null,9,"0000000040",""]
[null,null,null,null,null,null,null,null,null,null,null,null,null,null,null,null,null,null,null,null,null,null,null,null,null,null,null,null,null,null,null,null,null,null,null,null,null,null,null,null,null,null,null,null,null,null,null,null,null,null,null,null,null,null,null,null,null,null,null,null,null,null,null,null,null,null,null,null,null,null,null,null,null,null,null,null,null,null,null,null,null,null,null,null,null,null,null,null,null,null,9,"D4O21W1IBUB3HEML1KWP5YGOP","DEMAGSP8VDTMCQ2Z9KSRG7UGP","Grade 5 - 7 Total","0006","","S","","L","","","","","",null,null,null,null,null,null,9,"0CNTRCTTYPE","0CNTRCTISFT","Fixed-Term Contract","0000","X","2","0","0","","","","","0000","",null,null,null,null,null,11,"DEN9FTLAHQ3GG75TIN3QE0F09","DA5GNUVDNUWMFLQJMY6DAFQIH","","","","","","00","X","0","0","","",null,null,null,null,null,null,null,null,null,null,null,null,null,null,null,null,null,null,null,null,null,null,null,null,null,null,null,null,null,null,null,null,null,null,null,null,null,null,null,null,null,null,null,null,null,null,null,null,null,null,null,null,null,null,null,null,null,null,null,null,null,null,null,null,null,null,null,null,null,null,null,null,null,null,null,null,null,null,null,null,null,null,null,null,null,null,9,"0000000041",""]
[null,null,null,null,null,null,null,null,null,null,null,null,null,null,null,null,null,null,null,null,null,null,null,null,null,null,null,null,null,null,null,null,null,null,null,null,null,null,null,null,null,null,null,null,null,null,null,null,null,null,null,null,null,null,null,null,null,null,null,null,null,null,null,null,null,null,null,null,null,null,null,null,null,null,null,null,null,null,null,null,null,null,null,null,null,null,null,null,null,null,9,"D4O21W1IBUB3HEML1KWP5YGOP","D4O21W1IBUEXWI9DNA2RI3G1L","Grade 8 F/T","0007","","S","","L","","","","","",null,null,null,null,null,null,8,"0ORGUNIT","0BBPPURGRPX","Ind.Purchasing Group","0000","X","2","0","0","","","","","0000","",null,null,null,null,null,11,"DEN9FTLAHQ484THKU6JCGFTA1","DA5GNUVDNUSS0I3R190AYAR5L","","0","","","","00","X","0","0","","",null,null,null,null,null,null,null,null,null,null,null,null,null,null,null,null,null,null,null,null,null,null,null,null,null,null,null,null,null,null,null,null,null,null,null,null,null,null,null,null,null,null,null,null,null,null,null,null,null,null,null,null,null,null,null,null,null,null,null,null,null,null,null,null,null,null,null,null,null,null,null,null,null,null,null,null,null,null,null,null,null,null,null,null,null,null,9,"0000000042","0"]
[null,null,null,null,null,null,null,null,null,null,null,null,null,null,null,null,null,null,null,null,null,null,null,null,null,null,null,null,null,null,null,null,null,null,null,null,null,null,null,null,null,null,null,null,null,null,null,null,null,null,null,null,null,null,null,null,null,null,null,null,null,null,null,null,null,null,null,null,null,null,null,null,null,null,null,null,null,null,null,null,null,null,null,null,null,null,null,null,null,null,9,"D4O21W1IBUB3HEML1KWP5YGOP","D4O21W1IBULV2377J4ZA3Y0HL","Grade 8 P/T","0008","","S","","L","","","","","",null,null,null,null,null,null,8,"0ORGUNIT","0BBPPURORGX","Ind. Purchasing Org.","0000","X","2","0","0","","","","","0000","",null,null,null,null,null,11,"DEN9FTLAHQ484THKU6JCGFTA1","DA5GNUVDNUTJP4FICSFX0Q5FD","","0","","","","00","X","0","0","","",null,null,null,null,null,null,null,null,null,null,null,null,null,null,null,null,null,null,null,null,null,null,null,null,null,null,null,null,null,null,null,null,null,null,null,null,null,null,null,null,null,null,null,null,null,null,null,null,null,null,null,null,null,null,null,null,null,null,null,null,null,null,null,null,null,null,null,null,null,null,null,null,null,null,null,null,null,null,null,null,null,null,null,null,null,null,9,"0000000043","0"]
[null,null,null,null,null,null,null,null,null,null,null,null,null,null,null,null,null,null,null,null,null,null,null,null,null,null,null,null,null,null,null,null,null,null,null,null,null,null,null,null,null,null,null,null,null,null,null,null,null,null,null,null,null,null,null,null,null,null,null,null,null,null,null,null,null,null,null,null,null,null,null,null,null,null,null,null,null,null,null,null,null,null,null,null,null,null,null,null,null,null,9,"D4O21W1IBUB3HEML1KWP5YGOP","D4O21W1IBV18QHQDXXNJGHXX5","Grade 8 Total","0009","","S","","L","","","","","",null,null,null,null,null,null,8,"0ORGUNIT","0BBP_BUYID","Buyer ID","0000","X","5","0","0","","","","","0000","",null,null,null,null,null,11,"DEN9FTLAHQ484THKU6JCGFTA1","DA5GNUVDNUUBDQR9OBVJ35JP5","","0","","","","00","X","0","0","","",null,null,null,null,null,null,null,null,null,null,null,null,null,null,null,null,null,null,null,null,null,null,null,null,null,null,null,null,null,null,null,null,null,null,null,null,null,null,null,null,null,null,null,null,null,null,null,null,null,null,null,null,null,null,null,null,null,null,null,null,null,null,null,null,null,null,null,null,null,null,null,null,null,null,null,null,null,null,null,null,null,null,null,null,null,null,9,"0000000109","0"]
[null,null,null,null,null,null,null,null,null,null,null,null,null,null,null,null,null,null,null,null,null,null,null,null,null,null,null,null,null,null,null,null,null,null,null,null,null,null,null,null,null,null,null,null,null,null,null,null,null,null,null,null,null,null,null,null,null,null,null,null,null,null,null,null,null,null,null,null,null,null,null,null,null,null,null,null,null,null,null,null,null,null,null,null,null,null,null,null,null,null,9,"D4O21W1IBUB3HEML1KWP5YGOP","D4O21W1IBUFPL4L4YTIDKIUBD","ACZ Grade 8 F/T","0010","","S","","L","","","","","",null,null,null,null,null,null,8,"0ORGUNIT","0BBP_ISCOMP","Organizational Unit is Company","0000","X","1","0","0","","","","","0000","",null,null,null,null,null,11,"DEN9FTLAHQ484THKU6JCGFTA1","DA5GNUVDNUV32D30ZVB55KXYX","","0","","","","00","X","0","0","","",null,null,null,null,null,null,null,null,null,null,null,null,null,null,null,null,null,null,null,null,null,null,null,null,null,null,null,null,null,null,null,null,null,null,null,null,null,null,null,null,null,null,null,null,null,null,null,null,null,null,null,null,null,null,null,null,null,null,null,null,null,null,null,null,null,null,null,null,null,null,null,null,null,null,null,null,null,null,null,null,null,null,null,null,null,null,9,"0000000113",""]
[null,null,null,null,null,null,null,null,null,null,null,null,null,null,null,null,null,null,null,null,null,null,null,null,null,null,null,null,null,null,null,null,null,null,null,null,null,null,null,null,null,null,null,null,null,null,null,null,null,null,null,null,null,null,null,null,null,null,null,null,null,null,null,null,null,null,null,null,null,null,null,null,null,null,null,null,null,null,null,null,null,null,null,null,null,null,null,null,null,null,9,"D4O21W1IBUB3HEML1KWP5YGOP","D4O21W1IBUMMQPIYUOEW6DERD","ACZ Grade 8 P/T","0011","","S","","L","","","","","",null,null,null,null,null,null,8,"0ORGUNIT","0BUS_AREA","Business area","0000","X","0","0","0","","","","","0000","",null,null,null,null,null,11,"DEN9FTLAHQ484THKU6JCGFTA1","DA5GNUVDNUVUQZESBEQR80C8P","","0","","","","00","X","0","0","","",null,null,null,null,null,null,null,null,null,null,null,null,null,null,null,null,null,null,null,null,null,null,null,null,null,null,null,null,null,null,null,null,null,null,null,null,null,null,null,null,null,null,null,null,null,null,null,null,null,null,null,null,null,null,null,null,null,null,null,null,null,null,null,null,null,null,null,null,null,null,null,null,null,null,null,null,null,null,null,null,null,null,null,null,null,null,9,"0000000120",""]
[null,null,null,null,null,null,null,null,null,null,null,null,null,null,null,null,null,null,null,null,null,null,null,null,null,null,null,null,null,null,null,null,null,null,null,null,null,null,null,null,null,null,null,null,null,null,null,null,null,null,null,null,null,null,null,null,null,null,null,null,null,null,null,null,null,null,null,null,null,null,null,null,null,null,null,null,null,null,null,null,null,null,null,null,null,null,null,null,null,null,9,"D4O21W1IBUB3HEML1KWP5YGOP","D4O21W1IBV0H1VEMME7XE2JND","ACZ Grade 8 Total","0012","","S","","L","","","","","",null,null,null,null,null,null,8,"0ORGUNIT","0COMP_CODE","Company code","0000","X","0","0","0","","","","","0000","",null,null,null,null,null,11,"DEN9FTLAHQ484THKU6JCGFTA1","DA5GNUVDNUWMFLQJMY6DAFQIH","","0","","","","00","X","0","0","","",null,null,null,null,null,null,null,null,null,null,null,null,null,null,null,null,null,null,null,null,null,null,null,null,null,null,null,null,null,null,null,null,null,null,null,null,null,null,null,null,null,null,null,null,null,null,null,null,null,null,null,null,null,null,null,null,null,null,null,null,null,null,null,null,null,null,null,null,null,null,null,null,null,null,null,null,null,null,null,null,null,null,null,null,null,null,9,"0000000121",""]
[null,null,null,null,null,null,null,null,null,null,null,null,null,null,null,null,null,null,null,null,null,null,null,null,null,null,null,null,null,null,null,null,null,null,null,null,null,null,null,null,null,null,null,null,null,null,null,null,null,null,null,null,null,null,null,null,null,null,null,null,null,null,null,null,null,null,null,null,null,null,null,null,null,null,null,null,null,null,null,null,null,null,null,null,null,null,null,null,null,null,9,"D4O21W1IBUB3HEML1KWP5YGOP","D4O21W1IBUH8YD8NLWDLPDMUX","Grade 9 - 15 F/T","0013","","S","","L","","","","","",null,null,null,null,null,null,8,"0ORGUNIT","0CO_MST_AR","Controlling Area of Master Cost Center","0000","X","0","0","0","","","","","0000","",null,null,null,null,null,11,"DEN9GQ7MCHA8Y0DFMMJUL514P","DA5GNUVDNUSS0I3R190AYAR5L","","","","","","00","X","0","0","","",null,null,null,null,null,null,null,null,null,null,null,null,null,null,null,null,null,null,null,null,null,null,null,null,null,null,null,null,null,null,null,null,null,null,null,null,null,null,null,null,null,null,null,null,null,null,null,null,null,null,null,null,null,null,null,null,null,null,null,null,null,null,null,null,null,null,null,null,null,null,null,null,null,null,null,null,null,null,null,null,null,null,null,null,null,null,9,"0000010001","DA5GMC5Q7C0P8X8EGK6XEOEM1"]
[null,null,null,null,null,null,null,null,null,null,null,null,null,null,null,null,null,null,null,null,null,null,null,null,null,null,null,null,null,null,null,null,null,null,null,null,null,null,null,null,null,null,null,null,null,null,null,null,null,null,null,null,null,null,null,null,null,null,null,null,null,null,null,null,null,null,null,null,null,null,null,null,null,null,null,null,null,null,null,null,null,null,null,null,null,null,null,null,null,null,9,"D4O21W1IBUB3HEML1KWP5YGOP","DEN03PYIT5FSSAA2U7ST53H15","Grade 9 - 15 P/T","0014","","S","","L","","","","","",null,null,null,null,null,null,8,"0ORGUNIT","0CRMSALGRPX","Sls Group: Indicator","0000","X","2","0","0","","","","","0000","",null,null,null,null,null,11,"DEN9GQ7MCHA8Y0DFMMJUL514P","DA5GNUVDNUTJP4FICSFX0Q5FD","","","","","","00","X","0","0","","",null,null,null,null,null,null,null,null,null,null,null,null,null,null,null,null,null,null,null,null,null,null,null,null,null,null,null,null,null,null,null,null,null,null,null,null,null,null,null,null,null,null,null,null,null,null,null,null,null,null,null,null,null,null,null,null,null,null,null,null,null,null,null,null,null,null,null,null,null,null,null,null,null,null,null,null,null,null,null,null,null,null,null,null,null,null,9,"0000010002","DA5GMC5Q7BOEB009BX94BU29L"]
[null,null,null,null,null,null,null,null,null,null,null,null,null,null,null,null,null,null,null,null,null,null,null,null,null,null,null,null,null,null,null,null,null,null,null,null,null,null,null,null,null,null,null,null,null,null,null,null,null,null,null,null,null,null,null,null,null,null,null,null,null,null,null,null,null,null,null,null,null,null,null,null,null,null,null,null,null,null,null,null,null,null,null,null,null,null,null,null,null,null,9,"D4O21W1IBUB3HEML1KWP5YGOP","D4O21W1IBUO63Y6HHRA4B87AX","Grade 9 - 15 Total","0015","","S","","L","","","","","",null,null,null,null,null,null,8,"0ORGUNIT","0CRMSALOFFX","Sls Office:Indicator","0000","X","2","0","0","","","","","0000","",null,null,null,null,null,11,"DEN9GQ7MCHA8Y0DFMMJUL514P","DA5GNUVDNUUBDQR9OBVJ35JP5","","","","","","00","X","0","0","","",null,null,null,null,null,null,null,null,null,null,null,null,null,null,null,null,null,null,null,null,null,null,null,null,null,null,null,null,null,null,null,null,null,null,null,null,null,null,null,null,null,null,null,null,null,null,null,null,null,null,null,null,null,null,null,null,null,null,null,null,null,null,null,null,null,null,null,null,null,null,null,null,null,null,null,null,null,null,null,null,null,null,null,null,null,null,9,"0000000105",""]
[null,null,null,null,null,null,null,null,null,null,null,null,null,null,null,null,null,null,null,null,null,null,null,null,null,null,null,null,null,null,null,null,null,null,null,null,null,null,null,null,null,null,null,null,null,null,null,null,null,null,null,null,null,null,null,null,null,null,null,null,null,null,null,null,null,null,null,null,null,null,null,null,null,null,null,null,null,null,null,null,null,null,null,null,null,null,null,null,null,null,9,"D4O21W1IBUB3HEML1KWP5YGOP","D4O21W1IBUGH9QWWACXZMY8L5","ACZ Grade 9 - 15 F/T","0016","","S","","L","","","","","",null,null,null,null,null,null,8,"0ORGUNIT","0CRMSALORGX","Sales Org. Indicator","0000","X","2","0","0","","","","","0000","",null,null,null,null,null,11,"DEN9GQ7MCHA8Y0DFMMJUL514P","DA5GNUVDNUV32D30ZVB55KXYX","","","","","","00","X","0","0","","",null,null,null,null,null,null,null,null,null,null,null,null,null,null,null,null,null,null,null,null,null,null,null,null,null,null,null,null,null,null,null,null,null,null,null,null,null,null,null,null,null,null,null,null,null,null,null,null,null,null,null,null,null,null,null,null,null,null,null,null,null,null,null,null,null,null,null,null,null,null,null,null,null,null,null,null,null,null,null,null,null,null,null,null,null,null,9,"0000000106",""]
[null,null,null,null,null,null,null,null,null,null,null,null,null,null,null,null,null,null,null,null,null,null,null,null,null,null,null,null,null,null,null,null,null,null,null,null,null,null,null,null,null,null,null,null,null,null,null,null,null,null,null,null,null,null,null,null,null,null,null,null,null,null,null,null,null,null,null,null,null,null,null,null,null,null,null,null,null,null,null,null,null,null,null,null,null,null,null,null,null,null,9,"D4O21W1IBUB3HEML1KWP5YGOP","D4O21W1IBUNEFBUQ67UI8ST15","ACZ Grade 9 - 15 P/T","0017","","S","","L","","","","","",null,null,null,null,null,null,8,"0ORGUNIT","0CRMSRVTGRP","Ex. CRM Service Org.","0000","X","1","0","0","","","","","0000","",null,null,null,null,null,11,"DEN9GQ7MCHA8Y0DFMMJUL514P","DA5GNUVDNUVUQZESBEQR80C8P","","","","","","00","X","0","0","","",null,null,null,null,null,null,null,null,null,null,null,null,null,null,null,null,null,null,null,null,null,null,null,null,null,null,null,null,null,null,null,null,null,null,null,null,null,null,null,null,null,null,null,null,null,null,null,null,null,null,null,null,null,null,null,null,null,null,null,null,null,null,null,null,null,null,null,null,null,null,null,null,null,null,null,null,null,null,null,null,null,null,null,null,null,null,9,"0000000112","0"]
[null,null,null,null,null,null,null,null,null,null,null,null,null,null,null,null,null,null,null,null,null,null,null,null,null,null,null,null,null,null,null,null,null,null,null,null,null,null,null,null,null,null,null,null,null,null,null,null,null,null,null,null,null,null,null,null,null,null,null,null,null,null,null,null,null,null,null,null,null,null,null,null,null,null,null,null,null,null,null,null,null,null,null,null,null,null,null,null,null,null,9,"D4O21W1IBUB3HEML1KWP5YGOP","DEN04FDC1K04NBJW47LA7T915","ACZ Grade 9 - 15 Total","0018","","S","","L","","","","","",null,null,null,null,null,null,8,"0ORGUNIT","0CRM_SALGRP","CRM Sales Group","0000","X","1","0","0","","","","","0000","",null,null,null,null,null,11,"DEN9GQ7MCHA8Y0DFMMJUL514P","DA5GNUVDNUWMFLQJMY6DAFQIH","","","","","","00","X","0","0","","",null,null,null,null,null,null,null,null,null,null,null,null,null,null,null,null,null,null,null,null,null,null,null,null,null,null,null,null,null,null,null,null,null,null,null,null,null,null,null,null,null,null,null,null,null,null,null,null,null,null,null,null,null,null,null,null,null,null,null,null,null,null,null,null,null,null,null,null,null,null,null,null,null,null,null,null,null,null,null,null,null,null,null,null,null,null,9,"0000000200","X"]
[null,null,null,null,null,null,null,null,null,null,null,null,null,null,null,null,null,null,null,null,null,null,null,null,null,null,null,null,null,null,null,null,null,null,null,null,null,null,null,null,null,null,null,null,null,null,null,null,null,null,null,null,null,null,null,null,null,null,null,null,null,null,null,null,null,null,null,null,null,null,null,null,null,null,null,null,null,null,null,null,null,null,null,null,null,null,null,null,null,null,9,"D4O21W1IBUB3HEML1KWP5YGOP","D4O21W1IBUWMMRRU0P1V1XKAH","Other (Not Migrated) F/T","0019","","F","","L","","","","","",null,null,null,null,null,null,8,"0ORGUNIT","0CRM_SALOFF","CRM Sales Office","0000","X","1","0","0","","","","","0000","",null,null,null,null,null,11,"DEN9GQ7MCHB0MMP6Y5ZGNKFEH","DA5GNUVDNUSS0I3R190AYAR5L","","","","","","00","X","0","0","","",null,null,null,null,null,null,null,null,null,null,null,null,null,null,null,null,null,null,null,null,null,null,null,null,null,null,null,null,null,null,null,null,null,null,null,null,null,null,null,null,null,null,null,null,null,null,null,null,null,null,null,null,null,null,null,null,null,null,null,null,null,null,null,null,null,null,null,null,null,null,null,null,null,null,null,null,null,null,null,null,null,null,null,null,null,null,9,"0000004000","X"]
[null,null,null,null,null,null,null,null,null,null,null,null,null,null,null,null,null,null,null,null,null,null,null,null,null,null,null,null,null,null,null,null,null,null,null,null,null,null,null,null,null,null,null,null,null,null,null,null,null,null,null,null,null,null,null,null,null,null,null,null,null,null,null,null,null,null,null,null,null,null,null,null,null,null,null,null,null,null,null,null,null,null,null,null,null,null,null,null,null,null,9,"D4O21W1IBUB3HEML1KWP5YGOP","DEN07Y1DTSNAWTLQYCBLILED5","Other (Not Migrated) P/T","0020","","F","","L","","","","","",null,null,null,null,null,null,8,"0ORGUNIT","0CRM_SALORG","CRM Sales Org.","0000","X","1","0","0","","","","","0000","",null,null,null,null,null,11,"DEN9GQ7MCHB0MMP6Y5ZGNKFEH","DA5GNUVDNUTJP4FICSFX0Q5FD","","","","","","00","X","0","0","","",null,null,null,null,null,null,null,null,null,null,null,null,null,null,null,null,null,null,null,null,null,null,null,null,null,null,null,null,null,null,null,null,null,null,null,null,null,null,null,null,null,null,null,null,null,null,null,null,null,null,null,null,null,null,null,null,null,null,null,null,null,null,null,null,null,null,null,null,null,null,null,null,null,null,null,null,null,null,null,null,null,null,null,null,null,null,9,"0000009001","Workforce Profile Sexual Orientation (2011) Revised"]
[null,null,null,null,null,null,null,null,null,null,null,null,null,null,null,null,null,null,null,null,null,null,null,null,null,null,null,null,null,null,null,null,null,null,null,null,null,null,null,null,null,null,null,null,null,null,null,null,null,null,null,null,null,null,null,null,null,null,null,null,null,null,null,null,null,null,null,null,null,null,null,null,null,null,null,null,null,null,null,null,null,null,null,null,null,null,null,null,null,null,9,"D4O21W1IBUB3HEML1KWP5YGOP","DEN07Y1DTSPLYOL0WYMFPVL6H","Other (Not Migrated) Total","0021","","F","","L","","","","","",null,null,null,null,null,null,8,"0ORGUNIT","0CRM_SRVORG","Service Org. CRM","0000","X","1","0","0","","","","","0000","",null,null,null,null,null,11,"DEN9GQ7MCHB0MMP6Y5ZGNKFEH","DA5GNUVDNUUBDQR9OBVJ35JP5","","","","","","00","X","0","0","","",null,null,null,null,null,null,null,null,null,null,null,null,null,null,null,null,null,null,null,null,null,null,null,null,null,null,null,null,null,null,null,null,null,null,null,null,null,null,null,null,null,null,null,null,null,null,null,null,null,null,null,null,null,null,null,null,null,null,null,null,null,null,null,null,null,null,null,null,null,null,null,null,null,null,null,null,null,null,null,null,null,null,null,null,null,null,9,"0000000114","1"]
[null,null,null,null,null,null,null,null,null,null,null,null,null,null,null,null,null,null,null,null,null,null,null,null,null,null,null,null,null,null,null,null,null,null,null,null,null,null,null,null,null,null,null,null,null,null,null,null,null,null,null,null,null,null,null,null,null,null,null,null,null,null,null,null,null,null,null,null,null,null,null,null,null,null,null,null,null,null,null,null,null,null,null,null,null,null,null,null,null,null,9,"D4O21W1IBUB3HEML1KWP5YGOP","D4O21W1IBUY600FCNRX36SCU1","Total Teaching Staff F/T","0022","","S","","L","","","","","",null,null,null,null,null,null,8,"0ORGUNIT","0LOGSYS","Source System","0000","X","1","0","0","","","","","0000","",null,null,null,null,null,11,"DEN9GQ7MCHB0MMP6Y5ZGNKFEH","DA5GNUVDNUV32D30ZVB55KXYX","","","","","","00","X","0","0","","",null,null,null,null,null,null,null,null,null,null,null,null,null,null,null,null,null,null,null,null,null,null,null,null,null,null,null,null,null,null,null,null,null,null,null,null,null,null,null,null,null,null,null,null,null,null,null,null,null,null,null,null,null,null,null,null,null,null,null,null,null,null,null,null,null,null,null,null,null,null,null,null,null,null,null,null,null,null,null,null,null,null,null,null,null,null,8,"0000000107","DA5GMC5Q7BOEB009BX94BU29L"]
[null,null,null,null,null,null,null,null,null,null,null,null,null,null,null,null,null,null,null,null,null,null,null,null,null,null,null,null,null,null,null,null,null,null,null,null,null,null,null,null,null,null,null,null,null,null,null,null,null,null,null,null,null,null,null,null,null,null,null,null,null,null,null,null,null,null,null,null,null,null,null,null,null,null,null,null,null,null,null,null,null,null,null,null,null,null,null,null,null,null,9,"D4O21W1IBUB3HEML1KWP5YGOP","DEN0OSIFULCZTDTFE8U7RBQIH","Total Teaching Staff P/T","0023","","S","","L","","","","","",null,null,null,null,null,null,8,"0ORGUNIT","0MAST_CCTR","Master Cost Center","0000","X","0","0","0","","","","","0000","",null,null,null,null,null,11,"DEN9GQ7MCHB0MMP6Y5ZGNKFEH","DA5GNUVDNUVUQZESBEQR80C8P","","","","","","00","X","0","0","","",null,null,null,null,null,null,null,null,null,null,null,null,null,null,null,null,null,null,null,null,null,null,null,null,null,null,null,null,null,null,null,null,null,null,null,null,null,null,null,null,null,null,null,null,null,null,null,null,null,null,null,null,null,null,null,null,null,null,null,null,null,null,null,null,null,null,null,null,null,null,null,null,null,null,null,null,null,null,null,null,null,null,null,null,null,null,8,"0000000100","X"]
[null,null,null,null,null,null,null,null,null,null,null,null,null,null,null,null,null,null,null,null,null,null,null,null,null,null,null,null,null,null,null,null,null,null,null,null,null,null,null,null,null,null,null,null,null,null,null,null,null,null,null,null,null,null,null,null,null,null,null,null,null,null,null,null,null,null,null,null,null,null,null,null,null,null,null,null,null,null,null,null,null,null,null,null,null,null,null,null,null,null,9,"D4O21W1IBUB3HEML1KWP5YGOP","DEN0OSIFULDRI056PS9TTR4S9","Total Teaching Staff","0024","","S","","L","","","","","",null,null,null,null,null,null,8,"0ORGUNIT","0PERS_AREA","Personnel Area","0000","X","1","0","0","","","","","0000","",null,null,null,null,null,11,"DEN9GQ7MCHB0MMP6Y5ZGNKFEH","DA5GNUVDNUWMFLQJMY6DAFQIH","","","","","","00","X","0","0","","",null,null,null,null,null,null,null,null,null,null,null,null,null,null,null,null,null,null,null,null,null,null,null,null,null,null,null,null,null,null,null,null,null,null,null,null,null,null,null,null,null,null,null,null,null,null,null,null,null,null,null,null,null,null,null,null,null,null,null,null,null,null,null,null,null,null,null,null,null,null,null,null,null,null,null,null,null,null,null,null,null,null,null,null,null,null,8,"0000000101",""]
[null,null,null,null,null,null,null,null,null,null,null,null,null,null,null,null,null,null,null,null,null,null,null,null,null,null,null,null,null,null,null,null,null,null,null,null,null,null,null,null,null,null,null,null,null,null,null,null,null,null,null,null,null,null,null,null,null,null,null,null,null,null,null,null,null,null,null,null,null,null,null,null,null,null,null,null,null,null,null,null,null,null,null,null,null,null,null,null,null,null,9,"D4O21W1IBUB3HEML1KWP5YGOP","DEN0OSIFULEJ6MGY1BPFW6J21","Total Non-Teaching Staff F/T","0025","","S","","L","","","","","",null,null,null,null,null,null,8,"0ORGUNIT","0PERS_SAREA","Personnel Subarea","0000","X","1","0","0","","","","","0000","",null,null,null,null,null,11,"DEN9GQ7MCHBSB90Y9PF2PZTO9","DA5GNUVDNUSS0I3R190AYAR5L","","","","","","00","X","0","0","","",null,null,null,null,null,null,null,null,null,null,null,null,null,null,null,null,null,null,null,null,null,null,null,null,null,null,null,null,null,null,null,null,null,null,null,null,null,null,null,null,null,null,null,null,null,null,null,null,null,null,null,null,null,null,null,null,null,null,null,null,null,null,null,null,null,null,null,null,null,null,null,null,null,null,null,null,null,null,null,null,null,null,null,null,null,null,8,"0000000104","1"]
[null,null,null,null,null,null,null,null,null,null,null,null,null,null,null,null,null,null,null,null,null,null,null,null,null,null,null,null,null,null,null,null,null,null,null,null,null,null,null,null,null,null,null,null,null,null,null,null,null,null,null,null,null,null,null,null,null,null,null,null,null,null,null,null,null,null,null,null,null,null,null,null,null,null,null,null,null,null,null,null,null,null,null,null,null,null,null,null,null,null,9,"D4O21W1IBUB3HEML1KWP5YGOP","DEN07Y1DTSOUA299LF6TNG6WP","Total Non-Teaching Staff P/T","0026","","S","","L","","","","","",null,null,null,null,null,null,8,"0ORGUNIT","0PLANT","Plant","0000","X","0","0","0","","","","","0000","",null,null,null,null,null,11,"DEN9GQ7MCHBSB90Y9PF2PZTO9","DA5GNUVDNUTJP4FICSFX0Q5FD","","","","","","00","X","0","0","","",null,null,null,null,null,null,null,null,null,null,null,null,null,null,null,null,null,null,null,null,null,null,null,null,null,null,null,null,null,null,null,null,null,null,null,null,null,null,null,null,null,null,null,null,null,null,null,null,null,null,null,null,null,null,null,null,null,null,null,null,null,null,null,null,null,null,null,null,null,null,null,null,null,null,null,null,null,null,null,null,null,null,null,null,null,null,8,"0000000103",""]
[null,null,null,null,null,null,null,null,null,null,null,null,null,null,null,null,null,null,null,null,null,null,null,null,null,null,null,null,null,null,null,null,null,null,null,null,null,null,null,null,null,null,null,null,null,null,null,null,null,null,null,null,null,null,null,null,null,null,null,null,null,null,null,null,null,null,null,null,null,null,null,null,null,null,null,null,null,null,null,null,null,null,null,null,null,null,null,null,null,null,9,"D4O21W1IBUB3HEML1KWP5YGOP","DEN07Y1DTSR5BX8JK1HNUQDQ1","Total Non-Teaching Staff","0027","","S","","L","","","","","",null,null,null,null,null,null,8,"0ORGUNIT","0PURCH_ORG","Purchasing org.","0000","X","0","0","0","","","","","0000","",null,null,null,null,null,11,"DEN9GQ7MCHBSB90Y9PF2PZTO9","DA5GNUVDNUUBDQR9OBVJ35JP5","","","","","","00","X","0","0","","",null,null,null,null,null,null,null,null,null,null,null,null,null,null,null,null,null,null,null,null,null,null,null,null,null,null,null,null,null,null,null,null,null,null,null,null,null,null,null,null,null,null,null,null,null,null,null,null,null,null,null,null,null,null,null,null,null,null,null,null,null,null,null,null,null,null,null,null,null,null,null,null,null,null,null,null,null,null,null,null,null,null,null,null,null,null,8,"0000000102","1"]
[null,null,null,null,null,null,null,null,null,null,null,null,null,null,null,null,null,null,null,null,null,null,null,null,null,null,null,null,null,null,null,null,null,null,null,null,null,null,null,null,null,null,null,null,null,null,null,null,null,null,null,null,null,null,null,null,null,null,null,null,null,null,null,null,null,null,null,null,null,null,null,null,null,null,null,null,null,null,null,null,null,null,null,null,null,null,null,null,null,null,9,"D4O21W1IBUB3HEML1KWP5YGOP","D4O21W1IBUXEBE3LC8HH4CYK9","Total - All WPBR Grades F/T","0028","","F","","L","","","","","",null,null,null,null,null,null,8,"0ORGUNIT","0PUR_GROUP","Purchasing group","0000","X","0","0","0","","","","","0000","",null,null,null,null,null,11,"DEN9GQ7MCHBSB90Y9PF2PZTO9","DA5GNUVDNUV32D30ZVB55KXYX","","","","","","00","X","0","0","","",null,null,null,null,null,null,null,null,null,null,null,null,null,null,null,null,null,null,null,null,null,null,null,null,null,null,null,null,null,null,null,null,null,null,null,null,null,null,null,null,null,null,null,null,null,null,null,null,null,null,null,null,null,null,null,null,null,null,null,null,null,null,null,null,null,null,null,null,null,null,null,null,null,null,null,null,null,null,null,null,null,null,null,null,null,null,8,"0000000108",""]
[null,null,null,null,null,null,null,null,null,null,null,null,null,null,null,null,null,null,null,null,null,null,null,null,null,null,null,null,null,null,null,null,null,null,null,null,null,null,null,null,null,null,null,null,null,null,null,null,null,null,null,null,null,null,null,null,null,null,null,null,null,null,null,null,null,null,null,null,null,null,null,null,null,null,null,null,null,null,null,null,null,null,null,null,null,null,null,null,null,null,9,"D4O21W1IBUB3HEML1KWP5YGOP","DEN07Y1DTSO2LFXI9VR7L0SMX","Total - All WPBR Grades P/T","0029","","F","","L","","","","","",null,null,null,null,null,null,8,"0ORGUNIT","0SALESORG","Sales Organization","0000","X","0","0","0","","","","","0000","",null,null,null,null,null,11,"DEN9GQ7MCHBSB90Y9PF2PZTO9","DA5GNUVDNUVUQZESBEQR80C8P","","","","","","00","X","0","0","","",null,null,null,null,null,null,null,null,null,null,null,null,null,null,null,null,null,null,null,null,null,null,null,null,null,null,null,null,null,null,null,null,null,null,null,null,null,null,null,null,null,null,null,null,null,null,null,null,null,null,null,null,null,null,null,null,null,null,null,null,null,null,null,null,null,null,null,null,null,null,null,null,null,null,null,null,null,null,null,null,null,null,null,null,null,null,8,"0000009002","D4O21W1IBUB3HEML1KWP5YGOP"]
[null,null,null,null,null,null,null,null,null,null,null,null,null,null,null,null,null,null,null,null,null,null,null,null,null,null,null,null,null,null,null,null,null,null,null,null,null,null,null,null,null,null,null,null,null,null,null,null,null,null,null,null,null,null,null,null,null,null,null,null,null,null,null,null,null,null,null,null,null,null,null,null,null,null,null,null,null,null,null,null,null,null,null,null,null,null,null,null,null,null,9,"D4O21W1IBUB3HEML1KWP5YGOP","DEN07Y1DTSQDNAWS8I21SAZG9","Total Workforce - All WPBR Grades","0030","","F","","L","","","","","",null,null,null,null,null,null,8,"0ORGUNIT","0SALES_GRP","Sales group","0000","X","0","0","0","","","","","0000","",null,null,null,null,null,11,"DEN9GQ7MCHBSB90Y9PF2PZTO9","DA5GNUVDNUWMFLQJMY6DAFQIH","","","","","","00","X","0","0","","",null,null,null,null,null,null,null,null,null,null,null,null,null,null,null,null,null,null,null,null,null,null,null,null,null,null,null,null,null,null,null,null,null,null,null,null,null,null,null,null,null,null,null,null,null,null,null,null,null,null,null,null,null,null,null,null,null,null,null,null,null,null,null,null,null,null,null,null,null,null,null,null,null,null,null,null,null,null,null,null,null,null,null,null,null,null,8,"0000009000",""]
[null,null,null,null,null,null,null,null,null,null,null,null,null,null,null,null,null,null,null,null,null,null,null,null,null,null,null,null,null,null,null,null,null,null,null,null,null,null,null,null,null,null,null,null,null,null,null,null,null,null,null,null,null,null,null,null,null,null,null,null,null,null,null,null,null,null,null,null,null,null,null,null,null,null,null,null,null,null,null,null,null,null,null,null,null,null,null,null,null,null,9,"D4O21W1IBUB3HEML1KWP5YGOP","D4O21W1IBV8XKOZZ5BZO4RWMX","Total Workforce (All) F/T","0031","","S","","L","","","","","",null,null,null,null,null,null,8,"0ORGUNIT","0SALES_OFF","Sales Office","0000","X","0","0","0","","","","","0000","",null,null,null,null,null,11,"DEN9GQ7MCHCJZVCPL8UOSF7Y1","DA5GNUVDNUSS0I3R190AYAR5L","","","","","","00","X","0","0","","",null,null,null,null,null,null,null,null,null,null,null,null,null,null,null,null,null,null,null,null,null,null,null,null,null,null,null,null,null,null,null,null,null,null,null,null,null,null,null,null,null,null,null,null,null,null,null,null,null,null,null,null,null,null,null,null,null,null,null,null,null,null,null,null,null,null,null,null,null,null,null,null,null,null,null,null,null,null,null,null,null,null,null,null,null,null,8,"0000000010",""]
[null,null,null,null,null,null,null,null,null,null,null,null,null,null,null,null,null,null,null,null,null,null,null,null,null,null,null,null,null,null,null,null,null,null,null,null,null,null,null,null,null,null,null,null,null,null,null,null,null,null,null,null,null,null,null,null,null,null,null,null,null,null,null,null,null,null,null,null,null,null,null,null,null,null,null,null,null,null,null,null,null,null,null,null,null,null,null,null,null,null,9,"D4O21W1IBUB3HEML1KWP5YGOP","DEN07Y1DTSRX0JKAVKX9X5RZT","Total Workforce (All) P/T","0032","","S","","L","","","","","",null,null,null,null,null,null,8,"0CNTRCTTYPE","0CNTRCTISFT","Fixed-Term Contract","0000","X","2","0","0","","","","","0000","",null,null,null,null,null,11,"DEN9GQ7MCHCJZVCPL8UOSF7Y1","DA5GNUVDNUTJP4FICSFX0Q5FD","","","","","","00","X","0","0","","",null,null,null,null,null,null,null,null,null,null,null,null,null,null,null,null,null,null,null,null,null,null,null,null,null,null,null,null,null,null,null,null,null,null,null,null,null,null,null,null,null,null,null,null,null,null,null,null,null,null,null,null,null,null,null,null,null,null,null,null,null,null,null,null,null,null,null,null,null,null,null,null,null,null,null,null,null,null,null,null,null,null,null,null,null,null,8,"0000000021",""]
[null,null,null,null,null,null,null,null,null,null,null,null,null,null,null,null,null,null,null,null,null,null,null,null,null,null,null,null,null,null,null,null,null,null,null,null,null,null,null,null,null,null,null,null,null,null,null,null,null,null,null,null,null,null,null,null,null,null,null,null,null,null,null,null,null,null,null,null,null,null,null,null,null,null,null,null,null,null,null,null,null,null,null,null,null,null,null,null,null,null,9,"D4O21W1IBUB3HEML1KWP5YGOP","DEN07Y1DTSSOP5W274CVZL69L","Total Workforce (All)","0033","","S","","L","","","","","",null,null,null,null,null,null,7,"0ORGUNIT","0BBPPURGRPX","Ind.Purchasing Group","0000","X","2","0","0","","","","","0000","",null,null,null,null,null,11,"DEN9GQ7MCHCJZVCPL8UOSF7Y1","DA5GNUVDNUUBDQR9OBVJ35JP5","","","","","","00","X","0","0","","",null,null,null,null,null,null,null,null,null,null,null,null,null,null,null,null,null,null,null,null,null,null,null,null,null,null,null,null,null,null,null,null,null,null,null,null,null,null,null,null,null,null,null,null,null,null,null,null,null,null,null,null,null,null,null,null,null,null,null,null,null,null,null,null,null,null,null,null,null,null,null,null,null,null,null,null,null,null,null,null,null,null,null,null,null,null,8,"0000000022",""]
[null,null,null,null,null,null,null,null,null,null,null,null,null,null,null,null,null,null,null,null,null,null,null,null,null,null,null,null,null,null,null,null,null,null,null,null,null,null,null,null,null,null,null,null,null,null,null,null,null,null,null,null,null,null,null,null,null,null,null,null,null,null,null,null,null,null,null,null,null,null,null,null,null,null,null,null,null,null,null,null,null,null,null,null,null,null,null,null,null,null,8,"D4O21W1IBUB3HEML1KWP5YGOP","D4O21W1IBUDEJ9LV077JD8NI1","Grade 1 - 4 F/T","0001","","S","","L","","","","","",null,null,null,null,null,null,7,"0ORGUNIT","0BBPPURORGX","Ind. Purchasing Org.","0000","X","2","0","0","","","","","0000","",null,null,null,null,null,11,"DEN9GQ7MCHCJZVCPL8UOSF7Y1","DA5GNUVDNUV32D30ZVB55KXYX","","","","","","00","X","0","0","","",null,null,null,null,null,null,null,null,null,null,null,null,null,null,null,null,null,null,null,null,null,null,null,null,null,null,null,null,null,null,null,null,null,null,null,null,null,null,null,null,null,null,null,null,null,null,null,null,null,null,null,null,null,null,null,null,null,null,null,null,null,null,null,null,null,null,null,null,null,null,null,null,null,null,null,null,null,null,null,null,null,null,null,null,null,null,8,"0000000023",""]
[null,null,null,null,null,null,null,null,null,null,null,null,null,null,null,null,null,null,null,null,null,null,null,null,null,null,null,null,null,null,null,null,null,null,null,null,null,null,null,null,null,null,null,null,null,null,null,null,null,null,null,null,null,null,null,null,null,null,null,null,null,null,null,null,null,null,null,null,null,null,null,null,null,null,null,null,null,null,null,null,null,null,null,null,null,null,null,null,null,null,8,"DA5GNUVDNUS0BVRZPPKOVVCVT","DA5GNUVDNUSS0I3R190AYAR5L","Bi-Sexual","0001","","S","","L","X","","","","",null,null,null,null,null,null,7,"0ORGUNIT","0BBP_BUYID","Buyer ID","0000","X","5","0","0","","","","","0000","",null,null,null,null,null,11,"DEN9GQ7MCHCJZVCPL8UOSF7Y1","DA5GNUVDNUVUQZESBEQR80C8P","","","","","","00","X","0","0","","",null,null,null,null,null,null,null,null,null,null,null,null,null,null,null,null,null,null,null,null,null,null,null,null,null,null,null,null,null,null,null,null,null,null,null,null,null,null,null,null,null,null,null,null,null,null,null,null,null,null,null,null,null,null,null,null,null,null,null,null,null,null,null,null,null,null,null,null,null,null,null,null,null,null,null,null,null,null,null,null,null,null,null,null,null,null,8,"0000000030",""]
[null,null,null,null,null,null,null,null,null,null,null,null,null,null,null,null,null,null,null,null,null,null,null,null,null,null,null,null,null,null,null,null,null,null,null,null,null,null,null,null,null,null,null,null,null,null,null,null,null,null,null,null,null,null,null,null,null,null,null,null,null,null,null,null,null,null,null,null,null,null,null,null,null,null,null,null,null,null,null,null,null,null,null,null,null,null,null,null,null,null,8,"DA5GNUVDNUS0BVRZPPKOVVCVT","DA5GNUVDNUTJP4FICSFX0Q5FD","Heterosexual","0002","","S","","L","X","","","","",null,null,null,null,null,null,7,"0ORGUNIT","0BBP_ISCOMP","Organizational Unit is Company","0000","X","1","0","0","","","","","0000","",null,null,null,null,null,11,"DEN9GQ7MCHCJZVCPL8UOSF7Y1","DA5GNUVDNUWMFLQJMY6DAFQIH","","","","","","00","X","0","0","","",null,null,null,null,null,null,null,null,null,null,null,null,null,null,null,null,null,null,null,null,null,null,null,null,null,null,null,null,null,null,null,null,null,null,null,null,null,null,null,null,null,null,null,null,null,null,null,null,null,null,null,null,null,null,null,null,null,null,null,null,null,null,null,null,null,null,null,null,null,null,null,null,null,null,null,null,null,null,null,null,null,null,null,null,null,null,8,"0000000040",""]
[null,null,null,null,null,null,null,null,null,null,null,null,null,null,null,null,null,null,null,null,null,null,null,null,null,null,null,null,null,null,null,null,null,null,null,null,null,null,null,null,null,null,null,null,null,null,null,null,null,null,null,null,null,null,null,null,null,null,null,null,null,null,null,null,null,null,null,null,null,null,null,null,null,null,null,null,null,null,null,null,null,null,null,null,null,null,null,null,null,null,8,"D4O21W1IBUB3HEML1KWP5YGOP","D4O21W1IBUKBOUJOW241Z37Y1","Grade 1 - 4 P/T","0002","","S","","L","","","","","",null,null,null,null,null,null,7,"0ORGUNIT","0BUS_AREA","Business area","0000","X","0","0","0","","","","","0000","",null,null,null,null,null,11,"DEN9GQ7MCHDBOHOGWSAAUUM7T","DA5GNUVDNUSS0I3R190AYAR5L","","","","","","00","X","0","0","","",null,null,null,null,null,null,null,null,null,null,null,null,null,null,null,null,null,null,null,null,null,null,null,null,null,null,null,null,null,null,null,null,null,null,null,null,null,null,null,null,null,null,null,null,null,null,null,null,null,null,null,null,null,null,null,null,null,null,null,null,null,null,null,null,null,null,null,null,null,null,null,null,null,null,null,null,null,null,null,null,null,null,null,null,null,null,8,"0000000041",""]
[null,null,null,null,null,null,null,null,null,null,null,null,null,null,null,null,null,null,null,null,null,null,null,null,null,null,null,null,null,null,null,null,null,null,null,null,null,null,null,null,null,null,null,null,null,null,null,null,null,null,null,null,null,null,null,null,null,null,null,null,null,null,null,null,null,null,null,null,null,null,null,null,null,null,null,null,null,null,null,null,null,null,null,null,null,null,null,null,null,null,8,"DA5GNUVDNUS0BVRZPPKOVVCVT","DA5GNUVDNUUBDQR9OBVJ35JP5","Lesbian/Gay","0003","","S","","L","X","","","","",null,null,null,null,null,null,7,"0ORGUNIT","0COMP_CODE","Company code","0000","X","0","0","0","","","","","0000","",null,null,null,null,null,11,"DEN9GQ7MCHDBOHOGWSAAUUM7T","DA5GNUVDNUTJP4FICSFX0Q5FD","","","","","","00","X","0","0","","",null,null,null,null,null,null,null,null,null,null,null,null,null,null,null,null,null,null,null,null,null,null,null,null,null,null,null,null,null,null,null,null,null,null,null,null,null,null,null,null,null,null,null,null,null,null,null,null,null,null,null,null,null,null,null,null,null,null,null,null,null,null,null,null,null,null,null,null,null,null,null,null,null,null,null,null,null,null,null,null,null,null,null,null,null,null,8,"0000000042","0"]
[null,null,null,null,null,null,null,null,null,null,null,null,null,null,null,null,null,null,null,null,null,null,null,null,null,null,null,null,null,null,null,null,null,null,null,null,null,null,null,null,null,null,null,null,null,null,null,null,null,null,null,null,null,null,null,null,null,null,null,null,null,null,null,null,null,null,null,null,null,null,null,null,null,null,null,null,null,null,null,null,null,null,null,null,null,null,null,null,null,null,8,"D4O21W1IBUB3HEML1KWP5YGOP","DEMAFDB5LZ4S252XBVM7GJP4P","Grade 1 - 4 Total","0003","","S","","L","","","","","",null,null,null,null,null,null,7,"0ORGUNIT","0CO_MST_AR","Controlling Area of Master Cost Center","0000","X","0","0","0","","","","","0000","",null,null,null,null,null,11,"DEN9GQ7MCHDBOHOGWSAAUUM7T","DA5GNUVDNUUBDQR9OBVJ35JP5","","","","","","00","X","0","0","","",null,null,null,null,null,null,null,null,null,null,null,null,null,null,null,null,null,null,null,null,null,null,null,null,null,null,null,null,null,null,null,null,null,null,null,null,null,null,null,null,null,null,null,null,null,null,null,null,null,null,null,null,null,null,null,null,null,null,null,null,null,null,null,null,null,null,null,null,null,null,null,null,null,null,null,null,null,null,null,null,null,null,null,null,null,null,8,"0000000043","0"]
[null,null,null,null,null,null,null,null,null,null,null,null,null,null,null,null,null,null,null,null,null,null,null,null,null,null,null,null,null,null,null,null,null,null,null,null,null,null,null,null,null,null,null,null,null,null,null,null,null,null,null,null,null,null,null,null,null,null,null,null,null,null,null,null,null,null,null,null,null,null,null,null,null,null,null,null,null,null,null,null,null,null,null,null,null,null,null,null,null,null,8,"DA5GNUVDNUS0BVRZPPKOVVCVT","DA5GNUVDNUV32D30ZVB55KXYX","Transgender","0004","","S","","L","X","","","","",null,null,null,null,null,null,7,"0ORGUNIT","0CRMSALGRPX","Sls Group: Indicator","0000","X","2","0","0","","","","","0000","",null,null,null,null,null,11,"DEN9GQ7MCHDBOHOGWSAAUUM7T","DA5GNUVDNUV32D30ZVB55KXYX","","","","","","00","X","0","0","","",null,null,null,null,null,null,null,null,null,null,null,null,null,null,null,null,null,null,null,null,null,null,null,null,null,null,null,null,null,null,null,null,null,null,null,null,null,null,null,null,null,null,null,null,null,null,null,null,null,null,null,null,null,null,null,null,null,null,null,null,null,null,null,null,null,null,null,null,null,null,null,null,null,null,null,null,null,null,null,null,null,null,null,null,null,null,8,"0000000109","0"]
[null,null,null,null,null,null,null,null,null,null,null,null,null,null,null,null,null,null,null,null,null,null,null,null,null,null,null,null,null,null,null,null,null,null,null,null,null,null,null,null,null,null,null,null,null,null,null,null,null,null,null,null,null,null,null,null,null,null,null,null,null,null,null,null,null,null,null,null,null,null,null,null,null,null,null,null,null,null,null,null,null,null,null,null,null,null,null,null,null,null,8,"D4O21W1IBUB3HEML1KWP5YGOP","D4O21W1IBUE67VXMBQN5FO1RT","Grade 5 - 7 F/T","0004","","S","","L","","","","","",null,null,null,null,null,null,7,"0ORGUNIT","0CRMSALOFFX","Sls Office:Indicator","0000","X","2","0","0","","","","","0000","",null,null,null,null,null,11,"DEN9GQ7MCHDBOHOGWSAAUUM7T","DA5GNUVDNUVUQZESBEQR80C8P","","","","","","00","X","0","0","","",null,null,null,null,null,null,null,null,null,null,null,null,null,null,null,null,null,null,null,null,null,null,null,null,null,null,null,null,null,null,null,null,null,null,null,null,null,null,null,null,null,null,null,null,null,null,null,null,null,null,null,null,null,null,null,null,null,null,null,null,null,null,null,null,null,null,null,null,null,null,null,null,null,null,null,null,null,null,null,null,null,null,null,null,null,null,8,"0000000113",""]
[null,null,null,null,null,null,null,null,null,null,null,null,null,null,null,null,null,null,null,null,null,null,null,null,null,null,null,null,null,null,null,null,null,null,null,null,null,null,null,null,null,null,null,null,null,null,null,null,null,null,null,null,null,null,null,null,null,null,null,null,null,null,null,null,null,null,null,null,null,null,null,null,null,null,null,null,null,null,null,null,null,null,null,null,null,null,null,null,null,null,8,"D4O21W1IBUB3HEML1KWP5YGOP","D4O21W1IBUL3DGVG7LJO1IM7T","Grade 5 - 7 P/T","0005","","S","","L","","","","","",null,null,null,null,null,null,7,"0ORGUNIT","0CRMSALORGX","Sales Org. Indicator","0000","X","2","0","0","","","","","0000","",null,null,null,null,null,11,"DEN9GQ7MCHDBOHOGWSAAUUM7T","DA5GNUVDNUWMFLQJMY6DAFQIH","","","","","","00","X","0","0","","",null,null,null,null,null,null,null,null,null,null,null,null,null,null,null,null,null,null,null,null,null,null,null,null,null,null,null,null,null,null,null,null,null,null,null,null,null,null,null,null,null,null,null,null,null,null,null,null,null,null,null,null,null,null,null,null,null,null,null,null,null,null,null,null,null,null,null,null,null,null,null,null,null,null,null,null,null,null,null,null,null,null,null,null,null,null,8,"0000000120",""]
[null,null,null,null,null,null,null,null,null,null,null,null,null,null,null,null,null,null,null,null,null,null,null,null,null,null,null,null,null,null,null,null,null,null,null,null,null,null,null,null,null,null,null,null,null,null,null,null,null,null,null,null,null,null,null,null,null,null,null,null,null,null,null,null,null,null,null,null,null,null,null,null,null,null,null,null,null,null,null,null,null,null,null,null,null,null,null,null,null,null,8,"DA5GNUVDNUS0BVRZPPKOVVCVT","DA5GNUVDNUVUQZESBEQR80C8P","Other","0005","","S","","L","X","","","","",null,null,null,null,null,null,7,"0ORGUNIT","0CRMSRVTGRP","Ex. CRM Service Org.","0000","X","1","0","0","","","","","0000","",null,null,null,null,null,11,"DEN9GQ7MCHE3D4088BPWXA0HL","DA5GNUVDNUSS0I3R190AYAR5L","","","","","","00","X","0","0","","",null,null,null,null,null,null,null,null,null,null,null,null,null,null,null,null,null,null,null,null,null,null,null,null,null,null,null,null,null,null,null,null,null,null,null,null,null,null,null,null,null,null,null,null,null,null,null,null,null,null,null,null,null,null,null,null,null,null,null,null,null,null,null,null,null,null,null,null,null,null,null,null,null,null,null,null,null,null,null,null,null,null,null,null,null,null,8,"0000000121",""]
[null,null,null,null,null,null,null,null,null,null,null,null,null,null,null,null,null,null,null,null,null,null,null,null,null,null,null,null,null,null,null,null,null,null,null,null,null,null,null,null,null,null,null,null,null,null,null,null,null,null,null,null,null,null,null,null,null,null,null,null,null,null,null,null,null,null,null,null,null,null,null,null,null,null,null,null,null,null,null,null,null,null,null,null,null,null,null,null,null,null,8,"DA5GNUVDNUS0BVRZPPKOVVCVT","DA5GNUVDNUWMFLQJMY6DAFQIH","Not Disclosed","0006","","S","","L","X","","","","",null,null,null,null,null,null,7,"0ORGUNIT","0CRM_SALGRP","CRM Sales Group","0000","X","1","0","0","","","","","0000","",null,null,null,null,null,11,"DEN9GQ7MCHE3D4088BPWXA0HL","DA5GNUVDNUTJP4FICSFX0Q5FD","","","","","","00","X","0","0","","",null,null,null,null,null,null,null,null,null,null,null,null,null,null,null,null,null,null,null,null,null,null,null,null,null,null,null,null,null,null,null,null,null,null,null,null,null,null,null,null,null,null,null,null,null,null,null,null,null,null,null,null,null,null,null,null,null,null,null,null,null,null,null,null,null,null,null,null,null,null,null,null,null,null,null,null,null,null,null,null,null,null,null,null,null,null,8,"0000010001","DA5GMC5Q7C0P8X8EGK6XEOEM1"]
[null,null,null,null,null,null,null,null,null,null,null,null,null,null,null,null,null,null,null,null,null,null,null,null,null,null,null,null,null,null,null,null,null,null,null,null,null,null,null,null,null,null,null,null,null,null,null,null,null,null,null,null,null,null,null,null,null,null,null,null,null,null,null,null,null,null,null,null,null,null,null,null,null,null,null,null,null,null,null,null,null,null,null,null,null,null,null,null,null,null,8,"D4O21W1IBUB3HEML1KWP5YGOP","DEMAGSP8VDTMCQ2Z9KSRG7UGP","Grade 5 - 7 Total","0006","","S","","L","","","","","",null,null,null,null,null,null,7,"0ORGUNIT","0CRM_SALOFF","CRM Sales Office","0000","X","1","0","0","","","","","0000","",null,null,null,null,null,11,"DEN9GQ7MCHE3D4088BPWXA0HL","DA5GNUVDNUUBDQR9OBVJ35JP5","","","","","","00","X","0","0","","",null,null,null,null,null,null,null,null,null,null,null,null,null,null,null,null,null,null,null,null,null,null,null,null,null,null,null,null,null,null,null,null,null,null,null,null,null,null,null,null,null,null,null,null,null,null,null,null,null,null,null,null,null,null,null,null,null,null,null,null,null,null,null,null,null,null,null,null,null,null,null,null,null,null,null,null,null,null,null,null,null,null,null,null,null,null,8,"0000010002","DA5GMC5Q7BOEB009BX94BU29L"]
[null,null,null,null,null,null,null,null,null,null,null,null,null,null,null,null,null,null,null,null,null,null,null,null,null,null,null,null,null,null,null,null,null,null,null,null,null,null,null,null,null,null,null,null,null,null,null,null,null,null,null,null,null,null,null,null,null,null,null,null,null,null,null,null,null,null,null,null,null,null,null,null,null,null,null,null,null,null,null,null,null,null,null,null,null,null,null,null,null,null,8,"D4O21W1IBUB3HEML1KWP5YGOP","D4O21W1IBUEXWI9DNA2RI3G1L","Grade 8 F/T","0007","","S","","L","","","","","",null,null,null,null,null,null,7,"0ORGUNIT","0CRM_SALORG","CRM Sales Org.","0000","X","1","0","0","","","","","0000","",null,null,null,null,null,11,"DEN9GQ7MCHE3D4088BPWXA0HL","DA5GNUVDNUV32D30ZVB55KXYX","","","","","","00","X","0","0","","",null,null,null,null,null,null,null,null,null,null,null,null,null,null,null,null,null,null,null,null,null,null,null,null,null,null,null,null,null,null,null,null,null,null,null,null,null,null,null,null,null,null,null,null,null,null,null,null,null,null,null,null,null,null,null,null,null,null,null,null,null,null,null,null,null,null,null,null,null,null,null,null,null,null,null,null,null,null,null,null,null,null,null,null,null,null,8,"0000000105",""]
[null,null,null,null,null,null,null,null,null,null,null,null,null,null,null,null,null,null,null,null,null,null,null,null,null,null,null,null,null,null,null,null,null,null,null,null,null,null,null,null,null,null,null,null,null,null,null,null,null,null,null,null,null,null,null,null,null,null,null,null,null,null,null,null,null,null,null,null,null,null,null,null,null,null,null,null,null,null,null,null,null,null,null,null,null,null,null,null,null,null,8,"D4O21W1IBUB3HEML1KWP5YGOP","D4O21W1IBULV2377J4ZA3Y0HL","Grade 8 P/T","0008","","S","","L","","","","","",null,null,null,null,null,null,7,"0ORGUNIT","0CRM_SRVORG","Service Org. CRM","0000","X","1","0","0","","","","","0000","",null,null,null,null,null,11,"DEN9GQ7MCHE3D4088BPWXA0HL","DA5GNUVDNUVUQZESBEQR80C8P","","","","","","00","X","0","0","","",null,null,null,null,null,null,null,null,null,null,null,null,null,null,null,null,null,null,null,null,null,null,null,null,null,null,null,null,null,null,null,null,null,null,null,null,null,null,null,null,null,null,null,null,null,null,null,null,null,null,null,null,null,null,null,null,null,null,null,null,null,null,null,null,null,null,null,null,null,null,null,null,null,null,null,null,null,null,null,null,null,null,null,null,null,null,8,"0000000106",""]
[null,null,null,null,null,null,null,null,null,null,null,null,null,null,null,null,null,null,null,null,null,null,null,null,null,null,null,null,null,null,null,null,null,null,null,null,null,null,null,null,null,null,null,null,null,null,null,null,null,null,null,null,null,null,null,null,null,null,null,null,null,null,null,null,null,null,null,null,null,null,null,null,null,null,null,null,null,null,null,null,null,null,null,null,null,null,null,null,null,null,8,"D4O21W1IBUB3HEML1KWP5YGOP","D4O21W1IBV18QHQDXXNJGHXX5","Grade 8 Total","0009","","S","","L","","","","","",null,null,null,null,null,null,7,"0ORGUNIT","0LOGSYS","Source System","0000","X","1","0","0","","","","","0000","",null,null,null,null,null,11,"DEN9GQ7MCHE3D4088BPWXA0HL","DA5GNUVDNUWMFLQJMY6DAFQIH","","","","","","00","X","0","0","","",null,null,null,null,null,null,null,null,null,null,null,null,null,null,null,null,null,null,null,null,null,null,null,null,null,null,null,null,null,null,null,null,null,null,null,null,null,null,null,null,null,null,null,null,null,null,null,null,null,null,null,null,null,null,null,null,null,null,null,null,null,null,null,null,null,null,null,null,null,null,null,null,null,null,null,null,null,null,null,null,null,null,null,null,null,null,8,"0000000112","0"]
[null,null,null,null,null,null,null,null,null,null,null,null,null,null,null,null,null,null,null,null,null,null,null,null,null,null,null,null,null,null,null,null,null,null,null,null,null,null,null,null,null,null,null,null,null,null,null,null,null,null,null,null,null,null,null,null,null,null,null,null,null,null,null,null,null,null,null,null,null,null,null,null,null,null,null,null,null,null,null,null,null,null,null,null,null,null,null,null,null,null,8,"D4O21W1IBUB3HEML1KWP5YGOP","D4O21W1IBUFPL4L4YTIDKIUBD","ACZ Grade 8 F/T","0010","","S","","L","","","","","",null,null,null,null,null,null,7,"0ORGUNIT","0MAST_CCTR","Master Cost Center","0000","X","0","0","0","","","","","0000","",null,null,null,null,null,11,"DEN9GQ7MCHEV1QBZJV5IZPERD","DA5GNUVDNUSS0I3R190AYAR5L","","0","","","","00","X","0","0","","",null,null,null,null,null,null,null,null,null,null,null,null,null,null,null,null,null,null,null,null,null,null,null,null,null,null,null,null,null,null,null,null,null,null,null,null,null,null,null,null,null,null,null,null,null,null,null,null,null,null,null,null,null,null,null,null,null,null,null,null,null,null,null,null,null,null,null,null,null,null,null,null,null,null,null,null,null,null,null,null,null,null,null,null,null,null,8,"0000000200","X"]
[null,null,null,null,null,null,null,null,null,null,null,null,null,null,null,null,null,null,null,null,null,null,null,null,null,null,null,null,null,null,null,null,null,null,null,null,null,null,null,null,null,null,null,null,null,null,null,null,null,null,null,null,null,null,null,null,null,null,null,null,null,null,null,null,null,null,null,null,null,null,null,null,null,null,null,null,null,null,null,null,null,null,null,null,null,null,null,null,null,null,8,"D4O21W1IBUB3HEML1KWP5YGOP","D4O21W1IBUMMQPIYUOEW6DERD","ACZ Grade 8 P/T","0011","","S","","L","","","","","",null,null,null,null,null,null,7,"0ORGUNIT","0PERS_AREA","Personnel Area","0000","X","1","0","0","","","","","0000","",null,null,null,null,null,11,"DEN9GQ7MCHEV1QBZJV5IZPERD","DA5GNUVDNUTJP4FICSFX0Q5FD","","0","","","","00","X","0","0","","",null,null,null,null,null,null,null,null,null,null,null,null,null,null,null,null,null,null,null,null,null,null,null,null,null,null,null,null,null,null,null,null,null,null,null,null,null,null,null,null,null,null,null,null,null,null,null,null,null,null,null,null,null,null,null,null,null,null,null,null,null,null,null,null,null,null,null,null,null,null,null,null,null,null,null,null,null,null,null,null,null,null,null,null,null,null,8,"0000004000","X"]
[null,null,null,null,null,null,null,null,null,null,null,null,null,null,null,null,null,null,null,null,null,null,null,null,null,null,null,null,null,null,null,null,null,null,null,null,null,null,null,null,null,null,null,null,null,null,null,null,null,null,null,null,null,null,null,null,null,null,null,null,null,null,null,null,null,null,null,null,null,null,null,null,null,null,null,null,null,null,null,null,null,null,null,null,null,null,null,null,null,null,8,"D4O21W1IBUB3HEML1KWP5YGOP","D4O21W1IBUNEFBUQ67UI8ST15","ACZ Grade 9 - 15 P/T","0017","","S","","L","","","","","",null,null,null,null,null,null,7,"0ORGUNIT","0SALES_GRP","Sales group","0000","X","0","0","0","","","","","0000","",null,null,null,null,null,10,"D4O21W1IBUDEJ9LV077JD8NI1","DA5GNUVDNUTJP4FICSFX0Q5FD","","","","","","00","X","0","0","","",null,null,null,null,null,null,null,null,null,null,null,null,null,null,null,null,null,null,null,null,null,null,null,null,null,null,null,null,null,null,null,null,null,null,null,null,null,null,null,null,null,null,null,null,null,null,null,null,null,null,null,null,null,null,null,null,null,null,null,null,null,null,null,null,null,null,null,null,null,null,null,null,null,null,null,null,null,null,null,null,null,null,null,null,null,null,7,"0000000104","1"]
[null,null,null,null,null,null,null,null,null,null,null,null,null,null,null,null,null,null,null,null,null,null,null,null,null,null,null,null,null,null,null,null,null,null,null,null,null,null,null,null,null,null,null,null,null,null,null,null,null,null,null,null,null,null,null,null,null,null,null,null,null,null,null,null,null,null,null,null,null,null,null,null,null,null,null,null,null,null,null,null,null,null,null,null,null,null,null,null,null,null,8,"D4O21W1IBUB3HEML1KWP5YGOP","DEN0OSIFULDRI056PS9TTR4S9","Total Teaching Staff","0024","","S","","L","","","","","",null,null,null,null,null,null,6,"0ORGUNIT","0BUS_AREA","Business area","0000","X","0","0","0","","","","","0000","",null,null,null,null,null,10,"D4O21W1IBUE67VXMBQN5FO1RT","DA5GNUVDNUUBDQR9OBVJ35JP5","","","","","","00","X","0","0","","",null,null,null,null,null,null,null,null,null,null,null,null,null,null,null,null,null,null,null,null,null,null,null,null,null,null,null,null,null,null,null,null,null,null,null,null,null,null,null,null,null,null,null,null,null,null,null,null,null,null,null,null,null,null,null,null,null,null,null,null,null,null,null,null,null,null,null,null,null,null,null,null,null,null,null,null,null,null,null,null,null,null,null,null,null,null,7,"0000000021",""]
[null,null,null,null,null,null,null,null,null,null,null,null,null,null,null,null,null,null,null,null,null,null,null,null,null,null,null,null,null,null,null,null,null,null,null,null,null,null,null,null,null,null,null,null,null,null,null,null,null,null,null,null,null,null,null,null,null,null,null,null,null,null,null,null,null,null,null,null,null,null,null,null,null,null,null,null,null,null,null,null,null,null,null,null,null,null,null,null,null,null,7,"D4O21W1IBUB3HEML1KWP5YGOP","D4O21W1IBUE67VXMBQN5FO1RT","Grade 5 - 7 F/T","0004","","S","","L","","","","","",null,null,null,null,null,null,6,"0ORGUNIT","0PUR_GROUP","Purchasing group","0000","X","0","0","0","","","","","0000","",null,null,null,null,null,10,"D4O21W1IBUGH9QWWACXZMY8L5","DA5GNUVDNUTJP4FICSFX0Q5FD","","","","","","00","X","0","0","","",null,null,null,null,null,null,null,null,null,null,null,null,null,null,null,null,null,null,null,null,null,null,null,null,null,null,null,null,null,null,null,null,null,null,null,null,null,null,null,null,null,null,null,null,null,null,null,null,null,null,null,null,null,null,null,null,null,null,null,null,null,null,null,null,null,null,null,null,null,null,null,null,null,null,null,null,null,null,null,null,null,null,null,null,null,null,7,"0000000200","X"]
[null,null,null,null,null,null,null,null,null,null,null,null,null,null,null,null,null,null,null,null,null,null,null,null,null,null,null,null,null,null,null,null,null,null,null,null,null,null,null,null,null,null,null,null,null,null,null,null,null,null,null,null,null,null,null,null,null,null,null,null,null,null,null,null,null,null,null,null,null,null,null,null,null,null,null,null,null,null,null,null,null,null,null,null,null,null,null,null,null,null,7,"D4O21W1IBUB3HEML1KWP5YGOP","D4O21W1IBV0H1VEMME7XE2JND","ACZ Grade 8 Total","0012","","S","","L","","","","","",null,null,null,null,null,null,5,"0ORGUNIT","0COMP_CODE","Company code","0000","X","0","0","0","","","","","0000","",null,null,null,null,null,10,"D4O21W1IBUH8YD8NLWDLPDMUX","DA5GNUVDNUWMFLQJMY6DAFQIH","","","","","","00","X","0","0","","",null,null,null,null,null,null,null,null,null,null,null,null,null,null,null,null,null,null,null,null,null,null,null,null,null,null,null,null,null,null,null,null,null,null,null,null,null,null,null,null,null,null,null,null,null,null,null,null,null,null,null,null,null,null,null,null,null,null,null,null,null,null,null,null,null,null,null,null,null,null,null,null,null,null,null,null,null,null,null,null,null,null,null,null,null,null,6,"0000000108",""]
[null,null,null,null,null,null,null,null,null,null,null,null,null,null,null,null,null,null,null,null,null,null,null,null,null,null,null,null,null,null,null,null,null,null,null,null,null,null,null,null,null,null,null,null,null,null,null,null,null,null,null,null,null,null,null,null,null,null,null,null,null,null,null,null,null,null,null,null,null,null,null,null,null,null,null,null,null,null,null,null,null,null,null,null,null,null,null,null,null,null,7,"D4O21W1IBUB3HEML1KWP5YGOP","DEN04FDC1K04NBJW47LA7T915","ACZ Grade 9 - 15 Total","0018","","S","","L","","","","","",null,null,null,null,null,null,5,"0ORGUNIT","0CRM_SALGRP","CRM Sales Group","0000","X","1","0","0","","","","","0000","",null,null,null,null,null,10,"D4O21W1IBUKBOUJOW241Z37Y1","DA5GNUVDNUWMFLQJMY6DAFQIH","","","","","","00","X","0","0","","",null,null,null,null,null,null,null,null,null,null,null,null,null,null,null,null,null,null,null,null,null,null,null,null,null,null,null,null,null,null,null,null,null,null,null,null,null,null,null,null,null,null,null,null,null,null,null,null,null,null,null,null,null,null,null,null,null,null,null,null,null,null,null,null,null,null,null,null,null,null,null,null,null,null,null,null,null,null,null,null,null,null,null,null,null,null,6,"0000000023",""]
[null,null,null,null,null,null,null,null,null,null,null,null,null,null,null,null,null,null,null,null,null,null,null,null,null,null,null,null,null,null,null,null,null,null,null,null,null,null,null,null,null,null,null,null,null,null,null,null,null,null,null,null,null,null,null,null,null,null,null,null,null,null,null,null,null,null,null,null,null,null,null,null,null,null,null,null,null,null,null,null,null,null,null,null,null,null,null,null,null,null,6,"DA5GNUVDNUS0BVRZPPKOVVCVT","DA5GNUVDNUSS0I3R190AYAR5L","Bi-Sexual","0001","","S","","L","X","","","","",null,null,null,null,null,null,4,"0ORGUNIT","0BBP_BUYID","Buyer ID","0000","X","5","0","0","","","","","0000","",null,null,null,null,null,10,"D4O21W1IBUMMQPIYUOEW6DERD","DA5GNUVDNUVUQZESBEQR80C8P","","","","","","00","X","0","0","","",null,null,null,null,null,null,null,null,null,null,null,null,null,null,null,null,null,null,null,null,null,null,null,null,null,null,null,null,null,null,null,null,null,null,null,null,null,null,null,null,null,null,null,null,null,null,null,null,null,null,null,null,null,null,null,null,null,null,null,null,null,null,null,null,null,null,null,null,null,null,null,null,null,null,null,null,null,null,null,null,null,null,null,null,null,null,6,"0000009001","Workforce Profile Sexual Orientation (2011) Revised"]
[null,null,null,null,null,null,null,null,null,null,null,null,null,null,null,null,null,null,null,null,null,null,null,null,null,null,null,null,null,null,null,null,null,null,null,null,null,null,null,null,null,null,null,null,null,null,null,null,null,null,null,null,null,null,null,null,null,null,null,null,null,null,null,null,null,null,null,null,null,null,null,null,null,null,null,null,null,null,null,null,null,null,null,null,null,null,null,null,null,null,6,"D4O21W1IBUB3HEML1KWP5YGOP","DEMAGSP8VDTMCQ2Z9KSRG7UGP","Grade 5 - 7 Total","0006","","S","","L","","","","","",null,null,null,null,null,null,4,"0ORGUNIT","0CRM_SALOFF","CRM Sales Office","0000","X","1","0","0","","","","","0000","",null,null,null,null,null,10,"D4O21W1IBUO63Y6HHRA4B87AX","DA5GNUVDNUUBDQR9OBVJ35JP5","","","","","","00","X","0","0","","",null,null,null,null,null,null,null,null,null,null,null,null,null,null,null,null,null,null,null,null,null,null,null,null,null,null,null,null,null,null,null,null,null,null,null,null,null,null,null,null,null,null,null,null,null,null,null,null,null,null,null,null,null,null,null,null,null,null,null,null,null,null,null,null,null,null,null,null,null,null,null,null,null,null,null,null,null,null,null,null,null,null,null,null,null,null,5,"0000009000",""]
[null,null,null,null,null,null,null,null,null,null,null,null,null,null,null,null,null,null,null,null,null,null,null,null,null,null,null,null,null,null,null,null,null,null,null,null,null,null,null,null,null,null,null,null,null,null,null,null,null,null,null,null,null,null,null,null,null,null,null,null,null,null,null,null,null,null,null,null,null,null,null,null,null,null,null,null,null,null,null,null,null,null,null,null,null,null,null,null,null,null,6,"D4O21W1IBUB3HEML1KWP5YGOP","DEN04FDC1K04NBJW47LA7T915","ACZ Grade 9 - 15 Total","0018","","S","","L","","","","","",null,null,null,null,null,null,4,"0ORGUNIT","0SALES_OFF","Sales Office","0000","X","0","0","0","","","","","0000","",null,null,null,null,null,10,"D4O21W1IBUXEBE3LC8HH4CYK9","DA5GNUVDNUUBDQR9OBVJ35JP5","","0","","","","00","X","0","0","","",null,null,null,null,null,null,null,null,null,null,null,null,null,null,null,null,null,null,null,null,null,null,null,null,null,null,null,null,null,null,null,null,null,null,null,null,null,null,null,null,null,null,null,null,null,null,null,null,null,null,null,null,null,null,null,null,null,null,null,null,null,null,null,null,null,null,null,null,null,null,null,null,null,null,null,null,null,null,null,null,null,null,null,null,null,null,5,"0000000120",""]
[null,null,null,null,null,null,null,null,null,null,null,null,null,null,null,null,null,null,null,null,null,null,null,null,null,null,null,null,null,null,null,null,null,null,null,null,null,null,null,null,null,null,null,null,null,null,null,null,null,null,null,null,null,null,null,null,null,null,null,null,null,null,null,null,null,null,null,null,null,null,null,null,null,null,null,null,null,null,null,null,null,null,null,null,null,null,null,null,null,null,6,"D4O21W1IBUB3HEML1KWP5YGOP","DEN07Y1DTSPLYOL0WYMFPVL6H","Other (Not Migrated) Total","0021","","F","","L","","","","","",null,null,null,null,null,null,null,null,null,null,null,null,null,null,null,null,null,null,null,null,null,null,null,null,null,null,10,"D4O21W1IBUXEBE3LC8HH4CYK9","DA5GNUVDNUWMFLQJMY6DAFQIH","","0","","","","00","X","0","0","","",null,null,null,null,null,null,null,null,null,null,null,null,null,null,null,null,null,null,null,null,null,null,null,null,null,null,null,null,null,null,null,null,null,null,null,null,null,null,null,null,null,null,null,null,null,null,null,null,null,null,null,null,null,null,null,null,null,null,null,null,null,null,null,null,null,null,null,null,null,null,null,null,null,null,null,null,null,null,null,null,null,null,null,null,null,null,5,"0000010002","DA5GMC5Q7BOEB009BX94BU29L"]
[null,null,null,null,null,null,null,null,null,null,null,null,null,null,null,null,null,null,null,null,null,null,null,null,null,null,null,null,null,null,null,null,null,null,null,null,null,null,null,null,null,null,null,null,null,null,null,null,null,null,null,null,null,null,null,null,null,null,null,null,null,null,null,null,null,null,null,null,null,null,null,null,null,null,null,null,null,null,null,null,null,null,null,null,null,null,null,null,null,null,5,"DA5GNUVDNUS0BVRZPPKOVVCVT","DA5GNUVDNUUBDQR9OBVJ35JP5","Lesbian/Gay","0003","","S","","L","X","","","","",null,null,null,null,null,null,null,null,null,null,null,null,null,null,null,null,null,null,null,null,null,null,null,null,null,null,10,"D4O21W1IBV18QHQDXXNJGHXX5","DA5GNUVDNUVUQZESBEQR80C8P","","","","","","00","X","0","0","","",null,null,null,null,null,null,null,null,null,null,null,null,null,null,null,null,null,null,null,null,null,null,null,null,null,null,null,null,null,null,null,null,null,null,null,null,null,null,null,null,null,null,null,null,null,null,null,null,null,null,null,null,null,null,null,null,null,null,null,null,null,null,null,null,null,null,null,null,null,null,null,null,null,null,null,null,null,null,null,null,null,null,null,null,null,null,4,"0000000010",""]
[null,null,null,null,null,null,null,null,null,null,null,null,null,null,null,null,null,null,null,null,null,null,null,null,null,null,null,null,null,null,null,null,null,null,null,null,null,null,null,null,null,null,null,null,null,null,null,null,null,null,null,null,null,null,null,null,null,null,null,null,null,null,null,null,null,null,null,null,null,null,null,null,null,null,null,null,null,null,null,null,null,null,null,null,null,null,null,null,null,null,5,"DA5GNUVDNUS0BVRZPPKOVVCVT","DA5GNUVDNUWMFLQJMY6DAFQIH","Not Disclosed","0006","","S","","L","X","","","","",null,null,null,null,null,null,null,null,null,null,null,null,null,null,null,null,null,null,null,null,null,null,null,null,null,null,10,"D4O21W1IBV8XKOZZ5BZO4RWMX","DA5GNUVDNUVUQZESBEQR80C8P","","","","","","00","X","0","0","","",null,null,null,null,null,null,null,null,null,null,null,null,null,null,null,null,null,null,null,null,null,null,null,null,null,null,null,null,null,null,null,null,null,null,null,null,null,null,null,null,null,null,null,null,null,null,null,null,null,null,null,null,null,null,null,null,null,null,null,null,null,null,null,null,null,null,null,null,null,null,null,null,null,null,null,null,null,null,null,null,null,null,null,null,null,null,4,"0000000041",""]
[null,null,null,null,null,null,null,null,null,null,null,null,null,null,null,null,null,null,null,null,null,null,null,null,null,null,null,null,null,null,null,null,null,null,null,null,null,null,null,null,null,null,null,null,null,null,null,null,null,null,null,null,null,null,null,null,null,null,null,null,null,null,null,null,null,null,null,null,null,null,null,null,null,null,null,null,null,null,null,null,null,null,null,null,null,null,null,null,null,null,5,"D4O21W1IBUB3HEML1KWP5YGOP","D4O21W1IBUO63Y6HHRA4B87AX","Grade 9 - 15 Total","0015","","S","","L","","","","","",null,null,null,null,null,null,null,null,null,null,null,null,null,null,null,null,null,null,null,null,null,null,null,null,null,null,10,"DEMAGSP8VDTMCQ2Z9KSRG7UGP","DA5GNUVDNUUBDQR9OBVJ35JP5","","","","","","00","X","0","0","","",null,null,null,null,null,null,null,null,null,null,null,null,null,null,null,null,null,null,null,null,null,null,null,null,null,null,null,null,null,null,null,null,null,null,null,null,null,null,null,null,null,null,null,null,null,null,null,null,null,null,null,null,null,null,null,null,null,null,null,null,null,null,null,null,null,null,null,null,null,null,null,null,null,null,null,null,null,null,null,null,null,null,null,null,null,null,4,"0000000106",""]
[null,null,null,null,null,null,null,null,null,null,null,null,null,null,null,null,null,null,null,null,null,null,null,null,null,null,null,null,null,null,null,null,null,null,null,null,null,null,null,null,null,null,null,null,null,null,null,null,null,null,null,null,null,null,null,null,null,null,null,null,null,null,null,null,null,null,null,null,null,null,null,null,null,null,null,null,null,null,null,null,null,null,null,null,null,null,null,null,null,null,5,"D4O21W1IBUB3HEML1KWP5YGOP","DEN07Y1DTSRX0JKAVKX9X5RZT","Total Workforce (All) P/T","0032","","S","","L","","","","","",null,null,null,null,null,null,null,null,null,null,null,null,null,null,null,null,null,null,null,null,null,null,null,null,null,null,10,"DEN07Y1DTSNAWTLQYCBLILED5","DA5GNUVDNUTJP4FICSFX0Q5FD","","0","","","","00","X","0","0","",""]
[null,null,null,null,null,null,null,null,null,null,null,null,null,null,null,null,null,null,null,null,null,null,null,null,null,null,null,null,null,null,null,null,null,null,null,null,null,null,null,null,null,null,null,null,null,null,null,null,null,null,null,null,null,null,null,null,null,null,null,null,null,null,null,null,null,null,null,null,null,null,null,null,null,null,null,null,null,null,null,null,null,null,null,null,null,null,null,null,null,null,4,"DA5GNUVDNUS0BVRZPPKOVVCVT","DA5GNUVDNUUBDQR9OBVJ35JP5","Lesbian/Gay","0003","","S","","L","X","","","","",null,null,null,null,null,null,null,null,null,null,null,null,null,null,null,null,null,null,null,null,null,null,null,null,null,null,10,"DEN07Y1DTSO2LFXI9VR7L0SMX","DA5GNUVDNUTJP4FICSFX0Q5FD","","0","","","","00","X","0","0","",""]
[null,null,null,null,null,null,null,null,null,null,null,null,null,null,null,null,null,null,null,null,null,null,null,null,null,null,null,null,null,null,null,null,null,null,null,null,null,null,null,null,null,null,null,null,null,null,null,null,null,null,null,null,null,null,null,null,null,null,null,null,null,null,null,null,null,null,null,null,null,null,null,null,null,null,null,null,null,null,null,null,null,null,null,null,null,null,null,null,null,null,4,"D4O21W1IBUB3HEML1KWP5YGOP","D4O21W1IBV18QHQDXXNJGHXX5","Grade 8 Total","0009","","S","","L","","","","","",null,null,null,null,null,null,null,null,null,null,null,null,null,null,null,null,null,null,null,null,null,null,null,null,null,null,10,"DEN07Y1DTSOUA299LF6TNG6WP","DA5GNUVDNUWMFLQJMY6DAFQIH","","","","","","00","X","0","0","",""]
[null,null,null,null,null,null,null,null,null,null,null,null,null,null,null,null,null,null,null,null,null,null,null,null,null,null,null,null,null,null,null,null,null,null,null,null,null,null,null,null,null,null,null,null,null,null,null,null,null,null,null,null,null,null,null,null,null,null,null,null,null,null,null,null,null,null,null,null,null,null,null,null,null,null,null,null,null,null,null,null,null,null,null,null,null,null,null,null,null,null,4,"D4O21W1IBUB3HEML1KWP5YGOP","DEN0OSIFULEJ6MGY1BPFW6J21","Total Non-Teaching Staff F/T","0025","","S","","L","","","","","",null,null,null,null,null,null,null,null,null,null,null,null,null,null,null,null,null,null,null,null,null,null,null,null,null,null,10,"DEN07Y1DTSR5BX8JK1HNUQDQ1","DA5GNUVDNUV32D30ZVB55KXYX","","","","","","00","X","0","0","",""]
[null,null,null,null,null,null,null,null,null,null,null,null,null,null,null,null,null,null,null,null,null,null,null,null,null,null,null,null,null,null,null,null,null,null,null,null,null,null,null,null,null,null,null,null,null,null,null,null,null,null,null,null,null,null,null,null,null,null,null,null,null,null,null,null,null,null,null,null,null,null,null,null,null,null,null,null,null,null,null,null,null,null,null,null,null,null,null,null,null,null,null,null,null,null,null,null,null,null,null,null,null,null,null,null,null,null,null,null,null,null,null,null,null,null,null,null,null,null,null,null,null,null,null,null,null,null,null,null,null,null,10,"DEN07Y1DTSSOP5W274CVZL69L","DA5GNUVDNUTJP4FICSFX0Q5FD","","","","","","00","X","0","0","",""]
[null,null,null,null,null,null,null,null,null,null,null,null,null,null,null,null,null,null,null,null,null,null,null,null,null,null,null,null,null,null,null,null,null,null,null,null,null,null,null,null,null,null,null,null,null,null,null,null,null,null,null,null,null,null,null,null,null,null,null,null,null,null,null,null,null,null,null,null,null,null,null,null,null,null,null,null,null,null,null,null,null,null,null,null,null,null,null,null,null,null,null,null,null,null,null,null,null,null,null,null,null,null,null,null,null,null,null,null,null,null,null,null,null,null,null,null,null,null,null,null,null,null,null,null,null,null,null,null,null,null,10,"DEN0OSIFULCZTDTFE8U7RBQIH","DA5GNUVDNUTJP4FICSFX0Q5FD","","","","","","00","X","0","0","",""]
[null,null,null,null,null,null,null,null,null,null,null,null,null,null,null,null,null,null,null,null,null,null,null,null,null,null,null,null,null,null,null,null,null,null,null,null,null,null,null,null,null,null,null,null,null,null,null,null,null,null,null,null,null,null,null,null,null,null,null,null,null,null,null,null,null,null,null,null,null,null,null,null,null,null,null,null,null,null,null,null,null,null,null,null,null,null,null,null,null,null,null,null,null,null,null,null,null,null,null,null,null,null,null,null,null,null,null,null,null,null,null,null,null,null,null,null,null,null,null,null,null,null,null,null,null,null,null,null,null,null,9,"D4O21W1IBUDEJ9LV077JD8NI1","DA5GNUVDNUSS0I3R190AYAR5L","","","","","","00","X","0","0","",""]
[null,null,null,null,null,null,null,null,null,null,null,null,null,null,null,null,null,null,null,null,null,null,null,null,null,null,null,null,null,null,null,null,null,null,null,null,null,null,null,null,null,null,null,null,null,null,null,null,null,null,null,null,null,null,null,null,null,null,null,null,null,null,null,null,null,null,null,null,null,null,null,null,null,null,null,null,null,null,null,null,null,null,null,null,null,null,null,null,null,null,null,null,null,null,null,null,null,null,null,null,null,null,null,null,null,null,null,null,null,null,null,null,null,null,null,null,null,null,null,null,null,null,null,null,null,null,null,null,null,null,9,"D4O21W1IBUE67VXMBQN5FO1RT","DA5GNUVDNUVUQZESBEQR80C8P","","","","","","00","X","0","0","",""]
[null,null,null,null,null,null,null,null,null,null,null,null,null,null,null,null,null,null,null,null,null,null,null,null,null,null,null,null,null,null,null,null,null,null,null,null,null,null,null,null,null,null,null,null,null,null,null,null,null,null,null,null,null,null,null,null,null,null,null,null,null,null,null,null,null,null,null,null,null,null,null,null,null,null,null,null,null,null,null,null,null,null,null,null,null,null,null,null,null,null,null,null,null,null,null,null,null,null,null,null,null,null,null,null,null,null,null,null,null,null,null,null,null,null,null,null,null,null,null,null,null,null,null,null,null,null,null,null,null,null,9,"D4O21W1IBUEXWI9DNA2RI3G1L","DA5GNUVDNUVUQZESBEQR80C8P","","","","","","00","X","0","0","",""]
[null,null,null,null,null,null,null,null,null,null,null,null,null,null,null,null,null,null,null,null,null,null,null,null,null,null,null,null,null,null,null,null,null,null,null,null,null,null,null,null,null,null,null,null,null,null,null,null,null,null,null,null,null,null,null,null,null,null,null,null,null,null,null,null,null,null,null,null,null,null,null,null,null,null,null,null,null,null,null,null,null,null,null,null,null,null,null,null,null,null,null,null,null,null,null,null,null,null,null,null,null,null,null,null,null,null,null,null,null,null,null,null,null,null,null,null,null,null,null,null,null,null,null,null,null,null,null,null,null,null,9,"D4O21W1IBUGH9QWWACXZMY8L5","DA5GNUVDNUUBDQR9OBVJ35JP5","","","","","","00","X","0","0","",""]
[null,null,null,null,null,null,null,null,null,null,null,null,null,null,null,null,null,null,null,null,null,null,null,null,null,null,null,null,null,null,null,null,null,null,null,null,null,null,null,null,null,null,null,null,null,null,null,null,null,null,null,null,null,null,null,null,null,null,null,null,null,null,null,null,null,null,null,null,null,null,null,null,null,null,null,null,null,null,null,null,null,null,null,null,null,null,null,null,null,null,null,null,null,null,null,null,null,null,null,null,null,null,null,null,null,null,null,null,null,null,null,null,null,null,null,null,null,null,null,null,null,null,null,null,null,null,null,null,null,null,9,"D4O21W1IBUL3DGVG7LJO1IM7T","DA5GNUVDNUTJP4FICSFX0Q5FD","","","","","","00","X","0","0","",""]
[null,null,null,null,null,null,null,null,null,null,null,null,null,null,null,null,null,null,null,null,null,null,null,null,null,null,null,null,null,null,null,null,null,null,null,null,null,null,null,null,null,null,null,null,null,null,null,null,null,null,null,null,null,null,null,null,null,null,null,null,null,null,null,null,null,null,null,null,null,null,null,null,null,null,null,null,null,null,null,null,null,null,null,null,null,null,null,null,null,null,null,null,null,null,null,null,null,null,null,null,null,null,null,null,null,null,null,null,null,null,null,null,null,null,null,null,null,null,null,null,null,null,null,null,null,null,null,null,null,null,9,"D4O21W1IBULV2377J4ZA3Y0HL","DA5GNUVDNUVUQZESBEQR80C8P","","","","","","00","X","0","0","",""]
[null,null,null,null,null,null,null,null,null,null,null,null,null,null,null,null,null,null,null,null,null,null,null,null,null,null,null,null,null,null,null,null,null,null,null,null,null,null,null,null,null,null,null,null,null,null,null,null,null,null,null,null,null,null,null,null,null,null,null,null,null,null,null,null,null,null,null,null,null,null,null,null,null,null,null,null,null,null,null,null,null,null,null,null,null,null,null,null,null,null,null,null,null,null,null,null,null,null,null,null,null,null,null,null,null,null,null,null,null,null,null,null,null,null,null,null,null,null,null,null,null,null,null,null,null,null,null,null,null,null,9,"D4O21W1IBUMMQPIYUOEW6DERD","DA5GNUVDNUVUQZESBEQR80C8P","","","","","","00","X","0","0","",""]
[null,null,null,null,null,null,null,null,null,null,null,null,null,null,null,null,null,null,null,null,null,null,null,null,null,null,null,null,null,null,null,null,null,null,null,null,null,null,null,null,null,null,null,null,null,null,null,null,null,null,null,null,null,null,null,null,null,null,null,null,null,null,null,null,null,null,null,null,null,null,null,null,null,null,null,null,null,null,null,null,null,null,null,null,null,null,null,null,null,null,null,null,null,null,null,null,null,null,null,null,null,null,null,null,null,null,null,null,null,null,null,null,null,null,null,null,null,null,null,null,null,null,null,null,null,null,null,null,null,null,9,"D4O21W1IBUWMMRRU0P1V1XKAH","DA5GNUVDNUV32D30ZVB55KXYX","","0","","","","00","X","0","0","",""]
[null,null,null,null,null,null,null,null,null,null,null,null,null,null,null,null,null,null,null,null,null,null,null,null,null,null,null,null,null,null,null,null,null,null,null,null,null,null,null,null,null,null,null,null,null,null,null,null,null,null,null,null,null,null,null,null,null,null,null,null,null,null,null,null,null,null,null,null,null,null,null,null,null,null,null,null,null,null,null,null,null,null,null,null,null,null,null,null,null,null,null,null,null,null,null,null,null,null,null,null,null,null,null,null,null,null,null,null,null,null,null,null,null,null,null,null,null,null,null,null,null,null,null,null,null,null,null,null,null,null,9,"D4O21W1IBUXEBE3LC8HH4CYK9","DA5GNUVDNUV32D30ZVB55KXYX","","0","","","","00","X","0","0","",""]
[null,null,null,null,null,null,null,null,null,null,null,null,null,null,null,null,null,null,null,null,null,null,null,null,null,null,null,null,null,null,null,null,null,null,null,null,null,null,null,null,null,null,null,null,null,null,null,null,null,null,null,null,null,null,null,null,null,null,null,null,null,null,null,null,null,null,null,null,null,null,null,null,null,null,null,null,null,null,null,null,null,null,null,null,null,null,null,null,null,null,null,null,null,null,null,null,null,null,null,null,null,null,null,null,null,null,null,null,null,null,null,null,null,null,null,null,null,null,null,null,null,null,null,null,null,null,null,null,null,null,9,"D4O21W1IBV0H1VEMME7XE2JND","DA5GNUVDNUTJP4FICSFX0Q5FD","","","","","","00","X","0","0","",""]
[null,null,null,null,null,null,null,null,null,null,null,null,null,null,null,null,null,null,null,null,null,null,null,null,null,null,null,null,null,null,null,null,null,null,null,null,null,null,null,null,null,null,null,null,null,null,null,null,null,null,null,null,null,null,null,null,null,null,null,null,null,null,null,null,null,null,null,null,null,null,null,null,null,null,null,null,null,null,null,null,null,null,null,null,null,null,null,null,null,null,null,null,null,null,null,null,null,null,null,null,null,null,null,null,null,null,null,null,null,null,null,null,null,null,null,null,null,null,null,null,null,null,null,null,null,null,null,null,null,null,9,"DEMAFDB5LZ4S252XBVM7GJP4P","DA5GNUVDNUSS0I3R190AYAR5L","","","","","","00","X","0","0","",""]
[null,null,null,null,null,null,null,null,null,null,null,null,null,null,null,null,null,null,null,null,null,null,null,null,null,null,null,null,null,null,null,null,null,null,null,null,null,null,null,null,null,null,null,null,null,null,null,null,null,null,null,null,null,null,null,null,null,null,null,null,null,null,null,null,null,null,null,null,null,null,null,null,null,null,null,null,null,null,null,null,null,null,null,null,null,null,null,null,null,null,null,null,null,null,null,null,null,null,null,null,null,null,null,null,null,null,null,null,null,null,null,null,null,null,null,null,null,null,null,null,null,null,null,null,null,null,null,null,null,null,9,"DEMAGSP8VDTMCQ2Z9KSRG7UGP","DA5GNUVDNUVUQZESBEQR80C8P","","","","","","00","X","0","0","",""]
[null,null,null,null,null,null,null,null,null,null,null,null,null,null,null,null,null,null,null,null,null,null,null,null,null,null,null,null,null,null,null,null,null,null,null,null,null,null,null,null,null,null,null,null,null,null,null,null,null,null,null,null,null,null,null,null,null,null,null,null,null,null,null,null,null,null,null,null,null,null,null,null,null,null,null,null,null,null,null,null,null,null,null,null,null,null,null,null,null,null,null,null,null,null,null,null,null,null,null,null,null,null,null,null,null,null,null,null,null,null,null,null,null,null,null,null,null,null,null,null,null,null,null,null,null,null,null,null,null,null,9,"DEN03PYIT5FSSAA2U7ST53H15","DA5GNUVDNUVUQZESBEQR80C8P","","","","","","00","X","0","0","",""]
[null,null,null,null,null,null,null,null,null,null,null,null,null,null,null,null,null,null,null,null,null,null,null,null,null,null,null,null,null,null,null,null,null,null,null,null,null,null,null,null,null,null,null,null,null,null,null,null,null,null,null,null,null,null,null,null,null,null,null,null,null,null,null,null,null,null,null,null,null,null,null,null,null,null,null,null,null,null,null,null,null,null,null,null,null,null,null,null,null,null,null,null,null,null,null,null,null,null,null,null,null,null,null,null,null,null,null,null,null,null,null,null,null,null,null,null,null,null,null,null,null,null,null,null,null,null,null,null,null,null,9,"DEN07Y1DTSNAWTLQYCBLILED5","DA5GNUVDNUWMFLQJMY6DAFQIH","","0","","","","00","X","0","0","",""]
[null,null,null,null,null,null,null,null,null,null,null,null,null,null,null,null,null,null,null,null,null,null,null,null,null,null,null,null,null,null,null,null,null,null,null,null,null,null,null,null,null,null,null,null,null,null,null,null,null,null,null,null,null,null,null,null,null,null,null,null,null,null,null,null,null,null,null,null,null,null,null,null,null,null,null,null,null,null,null,null,null,null,null,null,null,null,null,null,null,null,null,null,null,null,null,null,null,null,null,null,null,null,null,null,null,null,null,null,null,null,null,null,null,null,null,null,null,null,null,null,null,null,null,null,null,null,null,null,null,null,9,"DEN07Y1DTSPLYOL0WYMFPVL6H","DA5GNUVDNUSS0I3R190AYAR5L","","0","","","","00","X","0","0","",""]
[null,null,null,null,null,null,null,null,null,null,null,null,null,null,null,null,null,null,null,null,null,null,null,null,null,null,null,null,null,null,null,null,null,null,null,null,null,null,null,null,null,null,null,null,null,null,null,null,null,null,null,null,null,null,null,null,null,null,null,null,null,null,null,null,null,null,null,null,null,null,null,null,null,null,null,null,null,null,null,null,null,null,null,null,null,null,null,null,null,null,null,null,null,null,null,null,null,null,null,null,null,null,null,null,null,null,null,null,null,null,null,null,null,null,null,null,null,null,null,null,null,null,null,null,null,null,null,null,null,null,9,"DEN07Y1DTSQDNAWS8I21SAZG9","DA5GNUVDNUSS0I3R190AYAR5L","","0","","","","00","X","0","0","",""]
[null,null,null,null,null,null,null,null,null,null,null,null,null,null,null,null,null,null,null,null,null,null,null,null,null,null,null,null,null,null,null,null,null,null,null,null,null,null,null,null,null,null,null,null,null,null,null,null,null,null,null,null,null,null,null,null,null,null,null,null,null,null,null,null,null,null,null,null,null,null,null,null,null,null,null,null,null,null,null,null,null,null,null,null,null,null,null,null,null,null,null,null,null,null,null,null,null,null,null,null,null,null,null,null,null,null,null,null,null,null,null,null,null,null,null,null,null,null,null,null,null,null,null,null,null,null,null,null,null,null,9,"DEN07Y1DTSRX0JKAVKX9X5RZT","DA5GNUVDNUWMFLQJMY6DAFQIH","","","","","","00","X","0","0","",""]
[null,null,null,null,null,null,null,null,null,null,null,null,null,null,null,null,null,null,null,null,null,null,null,null,null,null,null,null,null,null,null,null,null,null,null,null,null,null,null,null,null,null,null,null,null,null,null,null,null,null,null,null,null,null,null,null,null,null,null,null,null,null,null,null,null,null,null,null,null,null,null,null,null,null,null,null,null,null,null,null,null,null,null,null,null,null,null,null,null,null,null,null,null,null,null,null,null,null,null,null,null,null,null,null,null,null,null,null,null,null,null,null,null,null,null,null,null,null,null,null,null,null,null,null,null,null,null,null,null,null,9,"DEN0OSIFULCZTDTFE8U7RBQIH","DA5GNUVDNUV32D30ZVB55KXYX","","","","","","00","X","0","0","",""]
[null,null,null,null,null,null,null,null,null,null,null,null,null,null,null,null,null,null,null,null,null,null,null,null,null,null,null,null,null,null,null,null,null,null,null,null,null,null,null,null,null,null,null,null,null,null,null,null,null,null,null,null,null,null,null,null,null,null,null,null,null,null,null,null,null,null,null,null,null,null,null,null,null,null,null,null,null,null,null,null,null,null,null,null,null,null,null,null,null,null,null,null,null,null,null,null,null,null,null,null,null,null,null,null,null,null,null,null,null,null,null,null,null,null,null,null,null,null,null,null,null,null,null,null,null,null,null,null,null,null,9,"DEN0OSIFULDRI056PS9TTR4S9","DA5GNUVDNUV32D30ZVB55KXYX","","","","","","00","X","0","0","",""]
[null,null,null,null,null,null,null,null,null,null,null,null,null,null,null,null,null,null,null,null,null,null,null,null,null,null,null,null,null,null,null,null,null,null,null,null,null,null,null,null,null,null,null,null,null,null,null,null,null,null,null,null,null,null,null,null,null,null,null,null,null,null,null,null,null,null,null,null,null,null,null,null,null,null,null,null,null,null,null,null,null,null,null,null,null,null,null,null,null,null,null,null,null,null,null,null,null,null,null,null,null,null,null,null,null,null,null,null,null,null,null,null,null,null,null,null,null,null,null,null,null,null,null,null,null,null,null,null,null,null,8,"D4O21W1IBUEXWI9DNA2RI3G1L","DA5GNUVDNUSS0I3R190AYAR5L","","","","","","00","X","0","0","",""]
[null,null,null,null,null,null,null,null,null,null,null,null,null,null,null,null,null,null,null,null,null,null,null,null,null,null,null,null,null,null,null,null,null,null,null,null,null,null,null,null,null,null,null,null,null,null,null,null,null,null,null,null,null,null,null,null,null,null,null,null,null,null,null,null,null,null,null,null,null,null,null,null,null,null,null,null,null,null,null,null,null,null,null,null,null,null,null,null,null,null,null,null,null,null,null,null,null,null,null,null,null,null,null,null,null,null,null,null,null,null,null,null,null,null,null,null,null,null,null,null,null,null,null,null,null,null,null,null,null,null,8,"D4O21W1IBUFPL4L4YTIDKIUBD","DA5GNUVDNUSS0I3R190AYAR5L","","","","","","00","X","0","0","",""]
[null,null,null,null,null,null,null,null,null,null,null,null,null,null,null,null,null,null,null,null,null,null,null,null,null,null,null,null,null,null,null,null,null,null,null,null,null,null,null,null,null,null,null,null,null,null,null,null,null,null,null,null,null,null,null,null,null,null,null,null,null,null,null,null,null,null,null,null,null,null,null,null,null,null,null,null,null,null,null,null,null,null,null,null,null,null,null,null,null,null,null,null,null,null,null,null,null,null,null,null,null,null,null,null,null,null,null,null,null,null,null,null,null,null,null,null,null,null,null,null,null,null,null,null,null,null,null,null,null,null,8,"D4O21W1IBUGH9QWWACXZMY8L5","DA5GNUVDNUSS0I3R190AYAR5L","","","","","","00","X","0","0","",""]
[null,null,null,null,null,null,null,null,null,null,null,null,null,null,null,null,null,null,null,null,null,null,null,null,null,null,null,null,null,null,null,null,null,null,null,null,null,null,null,null,null,null,null,null,null,null,null,null,null,null,null,null,null,null,null,null,null,null,null,null,null,null,null,null,null,null,null,null,null,null,null,null,null,null,null,null,null,null,null,null,null,null,null,null,null,null,null,null,null,null,null,null,null,null,null,null,null,null,null,null,null,null,null,null,null,null,null,null,null,null,null,null,null,null,null,null,null,null,null,null,null,null,null,null,null,null,null,null,null,null,8,"D4O21W1IBUL3DGVG7LJO1IM7T","DA5GNUVDNUUBDQR9OBVJ35JP5","","","","","","00","X","0","0","",""]
[null,null,null,null,null,null,null,null,null,null,null,null,null,null,null,null,null,null,null,null,null,null,null,null,null,null,null,null,null,null,null,null,null,null,null,null,null,null,null,null,null,null,null,null,null,null,null,null,null,null,null,null,null,null,null,null,null,null,null,null,null,null,null,null,null,null,null,null,null,null,null,null,null,null,null,null,null,null,null,null,null,null,null,null,null,null,null,null,null,null,null,null,null,null,null,null,null,null,null,null,null,null,null,null,null,null,null,null,null,null,null,null,null,null,null,null,null,null,null,null,null,null,null,null,null,null,null,null,null,null,8,"D4O21W1IBULV2377J4ZA3Y0HL","DA5GNUVDNUUBDQR9OBVJ35JP5","","","","","","00","X","0","0","",""]
[null,null,null,null,null,null,null,null,null,null,null,null,null,null,null,null,null,null,null,null,null,null,null,null,null,null,null,null,null,null,null,null,null,null,null,null,null,null,null,null,null,null,null,null,null,null,null,null,null,null,null,null,null,null,null,null,null,null,null,null,null,null,null,null,null,null,null,null,null,null,null,null,null,null,null,null,null,null,null,null,null,null,null,null,null,null,null,null,null,null,null,null,null,null,null,null,null,null,null,null,null,null,null,null,null,null,null,null,null,null,null,null,null,null,null,null,null,null,null,null,null,null,null,null,null,null,null,null,null,null,8,"D4O21W1IBUNEFBUQ67UI8ST15","DA5GNUVDNUSS0I3R190AYAR5L","","","","","","00","X","0","0","",""]
[null,null,null,null,null,null,null,null,null,null,null,null,null,null,null,null,null,null,null,null,null,null,null,null,null,null,null,null,null,null,null,null,null,null,null,null,null,null,null,null,null,null,null,null,null,null,null,null,null,null,null,null,null,null,null,null,null,null,null,null,null,null,null,null,null,null,null,null,null,null,null,null,null,null,null,null,null,null,null,null,null,null,null,null,null,null,null,null,null,null,null,null,null,null,null,null,null,null,null,null,null,null,null,null,null,null,null,null,null,null,null,null,null,null,null,null,null,null,null,null,null,null,null,null,null,null,null,null,null,null,8,"D4O21W1IBUWMMRRU0P1V1XKAH","DA5GNUVDNUWMFLQJMY6DAFQIH","","0","","","","00","X","0","0","",""]
[null,null,null,null,null,null,null,null,null,null,null,null,null,null,null,null,null,null,null,null,null,null,null,null,null,null,null,null,null,null,null,null,null,null,null,null,null,null,null,null,null,null,null,null,null,null,null,null,null,null,null,null,null,null,null,null,null,null,null,null,null,null,null,null,null,null,null,null,null,null,null,null,null,null,null,null,null,null,null,null,null,null,null,null,null,null,null,null,null,null,null,null,null,null,null,null,null,null,null,null,null,null,null,null,null,null,null,null,null,null,null,null,null,null,null,null,null,null,null,null,null,null,null,null,null,null,null,null,null,null,8,"D4O21W1IBUXEBE3LC8HH4CYK9","DA5GNUVDNUWMFLQJMY6DAFQIH","","0","","","","00","X","0","0","",""]
[null,null,null,null,null,null,null,null,null,null,null,null,null,null,null,null,null,null,null,null,null,null,null,null,null,null,null,null,null,null,null,null,null,null,null,null,null,null,null,null,null,null,null,null,null,null,null,null,null,null,null,null,null,null,null,null,null,null,null,null,null,null,null,null,null,null,null,null,null,null,null,null,null,null,null,null,null,null,null,null,null,null,null,null,null,null,null,null,null,null,null,null,null,null,null,null,null,null,null,null,null,null,null,null,null,null,null,null,null,null,null,null,null,null,null,null,null,null,null,null,null,null,null,null,null,null,null,null,null,null,8,"D4O21W1IBV0H1VEMME7XE2JND","DA5GNUVDNUV32D30ZVB55KXYX","","","","","","00","X","0","0","",""]
[null,null,null,null,null,null,null,null,null,null,null,null,null,null,null,null,null,null,null,null,null,null,null,null,null,null,null,null,null,null,null,null,null,null,null,null,null,null,null,null,null,null,null,null,null,null,null,null,null,null,null,null,null,null,null,null,null,null,null,null,null,null,null,null,null,null,null,null,null,null,null,null,null,null,null,null,null,null,null,null,null,null,null,null,null,null,null,null,null,null,null,null,null,null,null,null,null,null,null,null,null,null,null,null,null,null,null,null,null,null,null,null,null,null,null,null,null,null,null,null,null,null,null,null,null,null,null,null,null,null,8,"D4O21W1IBV8XKOZZ5BZO4RWMX","DA5GNUVDNUTJP4FICSFX0Q5FD","","","","","","00","X","0","0","",""]
[null,null,null,null,null,null,null,null,null,null,null,null,null,null,null,null,null,null,null,null,null,null,null,null,null,null,null,null,null,null,null,null,null,null,null,null,null,null,null,null,null,null,null,null,null,null,null,null,null,null,null,null,null,null,null,null,null,null,null,null,null,null,null,null,null,null,null,null,null,null,null,null,null,null,null,null,null,null,null,null,null,null,null,null,null,null,null,null,null,null,null,null,null,null,null,null,null,null,null,null,null,null,null,null,null,null,null,null,null,null,null,null,null,null,null,null,null,null,null,null,null,null,null,null,null,null,null,null,null,null,8,"DEMAGSP8VDTMCQ2Z9KSRG7UGP","DA5GNUVDNUTJP4FICSFX0Q5FD","","","","","","00","X","0","0","",""]
[null,null,null,null,null,null,null,null,null,null,null,null,null,null,null,null,null,null,null,null,null,null,null,null,null,null,null,null,null,null,null,null,null,null,null,null,null,null,null,null,null,null,null,null,null,null,null,null,null,null,null,null,null,null,null,null,null,null,null,null,null,null,null,null,null,null,null,null,null,null,null,null,null,null,null,null,null,null,null,null,null,null,null,null,null,null,null,null,null,null,null,null,null,null,null,null,null,null,null,null,null,null,null,null,null,null,null,null,null,null,null,null,null,null,null,null,null,null,null,null,null,null,null,null,null,null,null,null,null,null,8,"DEN03PYIT5FSSAA2U7ST53H15","DA5GNUVDNUWMFLQJMY6DAFQIH","","","","","","00","X","0","0","",""]
[null,null,null,null,null,null,null,null,null,null,null,null,null,null,null,null,null,null,null,null,null,null,null,null,null,null,null,null,null,null,null,null,null,null,null,null,null,null,null,null,null,null,null,null,null,null,null,null,null,null,null,null,null,null,null,null,null,null,null,null,null,null,null,null,null,null,null,null,null,null,null,null,null,null,null,null,null,null,null,null,null,null,null,null,null,null,null,null,null,null,null,null,null,null,null,null,null,null,null,null,null,null,null,null,null,null,null,null,null,null,null,null,null,null,null,null,null,null,null,null,null,null,null,null,null,null,null,null,null,null,8,"DEN07Y1DTSO2LFXI9VR7L0SMX","DA5GNUVDNUVUQZESBEQR80C8P","","0","","","","00","X","0","0","",""]
[null,null,null,null,null,null,null,null,null,null,null,null,null,null,null,null,null,null,null,null,null,null,null,null,null,null,null,null,null,null,null,null,null,null,null,null,null,null,null,null,null,null,null,null,null,null,null,null,null,null,null,null,null,null,null,null,null,null,null,null,null,null,null,null,null,null,null,null,null,null,null,null,null,null,null,null,null,null,null,null,null,null,null,null,null,null,null,null,null,null,null,null,null,null,null,null,null,null,null,null,null,null,null,null,null,null,null,null,null,null,null,null,null,null,null,null,null,null,null,null,null,null,null,null,null,null,null,null,null,null,8,"DEN07Y1DTSPLYOL0WYMFPVL6H","DA5GNUVDNUUBDQR9OBVJ35JP5","","0","","","","00","X","0","0","",""]
[null,null,null,null,null,null,null,null,null,null,null,null,null,null,null,null,null,null,null,null,null,null,null,null,null,null,null,null,null,null,null,null,null,null,null,null,null,null,null,null,null,null,null,null,null,null,null,null,null,null,null,null,null,null,null,null,null,null,null,null,null,null,null,null,null,null,null,null,null,null,null,null,null,null,null,null,null,null,null,null,null,null,null,null,null,null,null,null,null,null,null,null,null,null,null,null,null,null,null,null,null,null,null,null,null,null,null,null,null,null,null,null,null,null,null,null,null,null,null,null,null,null,null,null,null,null,null,null,null,null,8,"DEN07Y1DTSQDNAWS8I21SAZG9","DA5GNUVDNUUBDQR9OBVJ35JP5","","0","","","","00","X","0","0","",""]
[null,null,null,null,null,null,null,null,null,null,null,null,null,null,null,null,null,null,null,null,null,null,null,null,null,null,null,null,null,null,null,null,null,null,null,null,null,null,null,null,null,null,null,null,null,null,null,null,null,null,null,null,null,null,null,null,null,null,null,null,null,null,null,null,null,null,null,null,null,null,null,null,null,null,null,null,null,null,null,null,null,null,null,null,null,null,null,null,null,null,null,null,null,null,null,null,null,null,null,null,null,null,null,null,null,null,null,null,null,null,null,null,null,null,null,null,null,null,null,null,null,null,null,null,null,null,null,null,null,null,8,"DEN07Y1DTSSOP5W274CVZL69L","DA5GNUVDNUTJP4FICSFX0Q5FD","","","","","","00","X","0","0","",""]
[null,null,null,null,null,null,null,null,null,null,null,null,null,null,null,null,null,null,null,null,null,null,null,null,null,null,null,null,null,null,null,null,null,null,null,null,null,null,null,null,null,null,null,null,null,null,null,null,null,null,null,null,null,null,null,null,null,null,null,null,null,null,null,null,null,null,null,null,null,null,null,null,null,null,null,null,null,null,null,null,null,null,null,null,null,null,null,null,null,null,null,null,null,null,null,null,null,null,null,null,null,null,null,null,null,null,null,null,null,null,null,null,null,null,null,null,null,null,null,null,null,null,null,null,null,null,null,null,null,null,8,"DEN0OSIFULCZTDTFE8U7RBQIH","DA5GNUVDNUWMFLQJMY6DAFQIH","","","","","","00","X","0","0","",""]
[null,null,null,null,null,null,null,null,null,null,null,null,null,null,null,null,null,null,null,null,null,null,null,null,null,null,null,null,null,null,null,null,null,null,null,null,null,null,null,null,null,null,null,null,null,null,null,null,null,null,null,null,null,null,null,null,null,null,null,null,null,null,null,null,null,null,null,null,null,null,null,null,null,null,null,null,null,null,null,null,null,null,null,null,null,null,null,null,null,null,null,null,null,null,null,null,null,null,null,null,null,null,null,null,null,null,null,null,null,null,null,null,null,null,null,null,null,null,null,null,null,null,null,null,null,null,null,null,null,null,8,"DEN0OSIFULDRI056PS9TTR4S9","DA5GNUVDNUUBDQR9OBVJ35JP5","","","","","","00","X","0","0","",""]
[null,null,null,null,null,null,null,null,null,null,null,null,null,null,null,null,null,null,null,null,null,null,null,null,null,null,null,null,null,null,null,null,null,null,null,null,null,null,null,null,null,null,null,null,null,null,null,null,null,null,null,null,null,null,null,null,null,null,null,null,null,null,null,null,null,null,null,null,null,null,null,null,null,null,null,null,null,null,null,null,null,null,null,null,null,null,null,null,null,null,null,null,null,null,null,null,null,null,null,null,null,null,null,null,null,null,null,null,null,null,null,null,null,null,null,null,null,null,null,null,null,null,null,null,null,null,null,null,null,null,7,"D4O21W1IBUDEJ9LV077JD8NI1","DA5GNUVDNUUBDQR9OBVJ35JP5","","","","","","00","X","0","0","",""]
[null,null,null,null,null,null,null,null,null,null,null,null,null,null,null,null,null,null,null,null,null,null,null,null,null,null,null,null,null,null,null,null,null,null,null,null,null,null,null,null,null,null,null,null,null,null,null,null,null,null,null,null,null,null,null,null,null,null,null,null,null,null,null,null,null,null,null,null,null,null,null,null,null,null,null,null,null,null,null,null,null,null,null,null,null,null,null,null,null,null,null,null,null,null,null,null,null,null,null,null,null,null,null,null,null,null,null,null,null,null,null,null,null,null,null,null,null,null,null,null,null,null,null,null,null,null,null,null,null,null,7,"D4O21W1IBUFPL4L4YTIDKIUBD","DA5GNUVDNUTJP4FICSFX0Q5FD","","","","","","00","X","0","0","",""]
[null,null,null,null,null,null,null,null,null,null,null,null,null,null,null,null,null,null,null,null,null,null,null,null,null,null,null,null,null,null,null,null,null,null,null,null,null,null,null,null,null,null,null,null,null,null,null,null,null,null,null,null,null,null,null,null,null,null,null,null,null,null,null,null,null,null,null,null,null,null,null,null,null,null,null,null,null,null,null,null,null,null,null,null,null,null,null,null,null,null,null,null,null,null,null,null,null,null,null,null,null,null,null,null,null,null,null,null,null,null,null,null,null,null,null,null,null,null,null,null,null,null,null,null,null,null,null,null,null,null,7,"D4O21W1IBUGH9QWWACXZMY8L5","DA5GNUVDNUTJP4FICSFX0Q5FD","","","","","","00","X","0","0","",""]
[null,null,null,null,null,null,null,null,null,null,null,null,null,null,null,null,null,null,null,null,null,null,null,null,null,null,null,null,null,null,null,null,null,null,null,null,null,null,null,null,null,null,null,null,null,null,null,null,null,null,null,null,null,null,null,null,null,null,null,null,null,null,null,null,null,null,null,null,null,null,null,null,null,null,null,null,null,null,null,null,null,null,null,null,null,null,null,null,null,null,null,null,null,null,null,null,null,null,null,null,null,null,null,null,null,null,null,null,null,null,null,null,null,null,null,null,null,null,null,null,null,null,null,null,null,null,null,null,null,null,7,"D4O21W1IBUH8YD8NLWDLPDMUX","DA5GNUVDNUWMFLQJMY6DAFQIH","","","","","","00","X","0","0","",""]
[null,null,null,null,null,null,null,null,null,null,null,null,null,null,null,null,null,null,null,null,null,null,null,null,null,null,null,null,null,null,null,null,null,null,null,null,null,null,null,null,null,null,null,null,null,null,null,null,null,null,null,null,null,null,null,null,null,null,null,null,null,null,null,null,null,null,null,null,null,null,null,null,null,null,null,null,null,null,null,null,null,null,null,null,null,null,null,null,null,null,null,null,null,null,null,null,null,null,null,null,null,null,null,null,null,null,null,null,null,null,null,null,null,null,null,null,null,null,null,null,null,null,null,null,null,null,null,null,null,null,7,"D4O21W1IBULV2377J4ZA3Y0HL","DA5GNUVDNUVUQZESBEQR80C8P","","","","","","00","X","0","0","",""]
[null,null,null,null,null,null,null,null,null,null,null,null,null,null,null,null,null,null,null,null,null,null,null,null,null,null,null,null,null,null,null,null,null,null,null,null,null,null,null,null,null,null,null,null,null,null,null,null,null,null,null,null,null,null,null,null,null,null,null,null,null,null,null,null,null,null,null,null,null,null,null,null,null,null,null,null,null,null,null,null,null,null,null,null,null,null,null,null,null,null,null,null,null,null,null,null,null,null,null,null,null,null,null,null,null,null,null,null,null,null,null,null,null,null,null,null,null,null,null,null,null,null,null,null,null,null,null,null,null,null,7,"D4O21W1IBUMMQPIYUOEW6DERD","DA5GNUVDNUVUQZESBEQR80C8P","","","","","","00","X","0","0","",""]
[null,null,null,null,null,null,null,null,null,null,null,null,null,null,null,null,null,null,null,null,null,null,null,null,null,null,null,null,null,null,null,null,null,null,null,null,null,null,null,null,null,null,null,null,null,null,null,null,null,null,null,null,null,null,null,null,null,null,null,null,null,null,null,null,null,null,null,null,null,null,null,null,null,null,null,null,null,null,null,null,null,null,null,null,null,null,null,null,null,null,null,null,null,null,null,null,null,null,null,null,null,null,null,null,null,null,null,null,null,null,null,null,null,null,null,null,null,null,null,null,null,null,null,null,null,null,null,null,null,null,7,"D4O21W1IBUO63Y6HHRA4B87AX","DA5GNUVDNUUBDQR9OBVJ35JP5","","","","","","00","X","0","0","",""]
[null,null,null,null,null,null,null,null,null,null,null,null,null,null,null,null,null,null,null,null,null,null,null,null,null,null,null,null,null,null,null,null,null,null,null,null,null,null,null,null,null,null,null,null,null,null,null,null,null,null,null,null,null,null,null,null,null,null,null,null,null,null,null,null,null,null,null,null,null,null,null,null,null,null,null,null,null,null,null,null,null,null,null,null,null,null,null,null,null,null,null,null,null,null,null,null,null,null,null,null,null,null,null,null,null,null,null,null,null,null,null,null,null,null,null,null,null,null,null,null,null,null,null,null,null,null,null,null,null,null,7,"D4O21W1IBUY600FCNRX36SCU1","DA5GNUVDNUTJP4FICSFX0Q5FD","","","","","","00","X","0","0","",""]
[null,null,null,null,null,null,null,null,null,null,null,null,null,null,null,null,null,null,null,null,null,null,null,null,null,null,null,null,null,null,null,null,null,null,null,null,null,null,null,null,null,null,null,null,null,null,null,null,null,null,null,null,null,null,null,null,null,null,null,null,null,null,null,null,null,null,null,null,null,null,null,null,null,null,null,null,null,null,null,null,null,null,null,null,null,null,null,null,null,null,null,null,null,null,null,null,null,null,null,null,null,null,null,null,null,null,null,null,null,null,null,null,null,null,null,null,null,null,null,null,null,null,null,null,null,null,null,null,null,null,7,"D4O21W1IBV0H1VEMME7XE2JND","DA5GNUVDNUVUQZESBEQR80C8P","","","","","","00","X","0","0","",""]
[null,null,null,null,null,null,null,null,null,null,null,null,null,null,null,null,null,null,null,null,null,null,null,null,null,null,null,null,null,null,null,null,null,null,null,null,null,null,null,null,null,null,null,null,null,null,null,null,null,null,null,null,null,null,null,null,null,null,null,null,null,null,null,null,null,null,null,null,null,null,null,null,null,null,null,null,null,null,null,null,null,null,null,null,null,null,null,null,null,null,null,null,null,null,null,null,null,null,null,null,null,null,null,null,null,null,null,null,null,null,null,null,null,null,null,null,null,null,null,null,null,null,null,null,null,null,null,null,null,null,7,"D4O21W1IBV18QHQDXXNJGHXX5","DA5GNUVDNUVUQZESBEQR80C8P","","","","","","00","X","0","0","",""]
[null,null,null,null,null,null,null,null,null,null,null,null,null,null,null,null,null,null,null,null,null,null,null,null,null,null,null,null,null,null,null,null,null,null,null,null,null,null,null,null,null,null,null,null,null,null,null,null,null,null,null,null,null,null,null,null,null,null,null,null,null,null,null,null,null,null,null,null,null,null,null,null,null,null,null,null,null,null,null,null,null,null,null,null,null,null,null,null,null,null,null,null,null,null,null,null,null,null,null,null,null,null,null,null,null,null,null,null,null,null,null,null,null,null,null,null,null,null,null,null,null,null,null,null,null,null,null,null,null,null,7,"DEMAGSP8VDTMCQ2Z9KSRG7UGP","DA5GNUVDNUV32D30ZVB55KXYX","","","","","","00","X","0","0","",""]
[null,null,null,null,null,null,null,null,null,null,null,null,null,null,null,null,null,null,null,null,null,null,null,null,null,null,null,null,null,null,null,null,null,null,null,null,null,null,null,null,null,null,null,null,null,null,null,null,null,null,null,null,null,null,null,null,null,null,null,null,null,null,null,null,null,null,null,null,null,null,null,null,null,null,null,null,null,null,null,null,null,null,null,null,null,null,null,null,null,null,null,null,null,null,null,null,null,null,null,null,null,null,null,null,null,null,null,null,null,null,null,null,null,null,null,null,null,null,null,null,null,null,null,null,null,null,null,null,null,null,7,"DEN04FDC1K04NBJW47LA7T915","DA5GNUVDNUTJP4FICSFX0Q5FD","","","","","","00","X","0","0","",""]
[null,null,null,null,null,null,null,null,null,null,null,null,null,null,null,null,null,null,null,null,null,null,null,null,null,null,null,null,null,null,null,null,null,null,null,null,null,null,null,null,null,null,null,null,null,null,null,null,null,null,null,null,null,null,null,null,null,null,null,null,null,null,null,null,null,null,null,null,null,null,null,null,null,null,null,null,null,null,null,null,null,null,null,null,null,null,null,null,null,null,null,null,null,null,null,null,null,null,null,null,null,null,null,null,null,null,null,null,null,null,null,null,null,null,null,null,null,null,null,null,null,null,null,null,null,null,null,null,null,null,7,"DEN07Y1DTSNAWTLQYCBLILED5","DA5GNUVDNUTJP4FICSFX0Q5FD","","0","","","","00","X","0","0","",""]
[null,null,null,null,null,null,null,null,null,null,null,null,null,null,null,null,null,null,null,null,null,null,null,null,null,null,null,null,null,null,null,null,null,null,null,null,null,null,null,null,null,null,null,null,null,null,null,null,null,null,null,null,null,null,null,null,null,null,null,null,null,null,null,null,null,null,null,null,null,null,null,null,null,null,null,null,null,null,null,null,null,null,null,null,null,null,null,null,null,null,null,null,null,null,null,null,null,null,null,null,null,null,null,null,null,null,null,null,null,null,null,null,null,null,null,null,null,null,null,null,null,null,null,null,null,null,null,null,null,null,7,"DEN07Y1DTSPLYOL0WYMFPVL6H","DA5GNUVDNUSS0I3R190AYAR5L","","0","","","","00","X","0","0","",""]
[null,null,null,null,null,null,null,null,null,null,null,null,null,null,null,null,null,null,null,null,null,null,null,null,null,null,null,null,null,null,null,null,null,null,null,null,null,null,null,null,null,null,null,null,null,null,null,null,null,null,null,null,null,null,null,null,null,null,null,null,null,null,null,null,null,null,null,null,null,null,null,null,null,null,null,null,null,null,null,null,null,null,null,null,null,null,null,null,null,null,null,null,null,null,null,null,null,null,null,null,null,null,null,null,null,null,null,null,null,null,null,null,null,null,null,null,null,null,null,null,null,null,null,null,null,null,null,null,null,null,7,"DEN07Y1DTSQDNAWS8I21SAZG9","DA5GNUVDNUVUQZESBEQR80C8P","","0","","","","00","X","0","0","",""]
[null,null,null,null,null,null,null,null,null,null,null,null,null,null,null,null,null,null,null,null,null,null,null,null,null,null,null,null,null,null,null,null,null,null,null,null,null,null,null,null,null,null,null,null,null,null,null,null,null,null,null,null,null,null,null,null,null,null,null,null,null,null,null,null,null,null,null,null,null,null,null,null,null,null,null,null,null,null,null,null,null,null,null,null,null,null,null,null,null,null,null,null,null,null,null,null,null,null,null,null,null,null,null,null,null,null,null,null,null,null,null,null,null,null,null,null,null,null,null,null,null,null,null,null,null,null,null,null,null,null,7,"DEN07Y1DTSRX0JKAVKX9X5RZT","DA5GNUVDNUUBDQR9OBVJ35JP5","","","","","","00","X","0","0","",""]
[null,null,null,null,null,null,null,null,null,null,null,null,null,null,null,null,null,null,null,null,null,null,null,null,null,null,null,null,null,null,null,null,null,null,null,null,null,null,null,null,null,null,null,null,null,null,null,null,null,null,null,null,null,null,null,null,null,null,null,null,null,null,null,null,null,null,null,null,null,null,null,null,null,null,null,null,null,null,null,null,null,null,null,null,null,null,null,null,null,null,null,null,null,null,null,null,null,null,null,null,null,null,null,null,null,null,null,null,null,null,null,null,null,null,null,null,null,null,null,null,null,null,null,null,null,null,null,null,null,null,7,"DEN07Y1DTSSOP5W274CVZL69L","DA5GNUVDNUTJP4FICSFX0Q5FD","","","","","","00","X","0","0","",""]
[null,null,null,null,null,null,null,null,null,null,null,null,null,null,null,null,null,null,null,null,null,null,null,null,null,null,null,null,null,null,null,null,null,null,null,null,null,null,null,null,null,null,null,null,null,null,null,null,null,null,null,null,null,null,null,null,null,null,null,null,null,null,null,null,null,null,null,null,null,null,null,null,null,null,null,null,null,null,null,null,null,null,null,null,null,null,null,null,null,null,null,null,null,null,null,null,null,null,null,null,null,null,null,null,null,null,null,null,null,null,null,null,null,null,null,null,null,null,null,null,null,null,null,null,null,null,null,null,null,null,7,"DEN0OSIFULEJ6MGY1BPFW6J21","DA5GNUVDNUSS0I3R190AYAR5L","","","","","","00","X","0","0","",""]
[null,null,null,null,null,null,null,null,null,null,null,null,null,null,null,null,null,null,null,null,null,null,null,null,null,null,null,null,null,null,null,null,null,null,null,null,null,null,null,null,null,null,null,null,null,null,null,null,null,null,null,null,null,null,null,null,null,null,null,null,null,null,null,null,null,null,null,null,null,null,null,null,null,null,null,null,null,null,null,null,null,null,null,null,null,null,null,null,null,null,null,null,null,null,null,null,null,null,null,null,null,null,null,null,null,null,null,null,null,null,null,null,null,null,null,null,null,null,null,null,null,null,null,null,null,null,null,null,null,null,6,"D4O21W1IBUDEJ9LV077JD8NI1","DA5GNUVDNUSS0I3R190AYAR5L","","","","","","00","X","0","0","",""]
[null,null,null,null,null,null,null,null,null,null,null,null,null,null,null,null,null,null,null,null,null,null,null,null,null,null,null,null,null,null,null,null,null,null,null,null,null,null,null,null,null,null,null,null,null,null,null,null,null,null,null,null,null,null,null,null,null,null,null,null,null,null,null,null,null,null,null,null,null,null,null,null,null,null,null,null,null,null,null,null,null,null,null,null,null,null,null,null,null,null,null,null,null,null,null,null,null,null,null,null,null,null,null,null,null,null,null,null,null,null,null,null,null,null,null,null,null,null,null,null,null,null,null,null,null,null,null,null,null,null,6,"D4O21W1IBUE67VXMBQN5FO1RT","DA5GNUVDNUVUQZESBEQR80C8P","","","","","","00","X","0","0","",""]
[null,null,null,null,null,null,null,null,null,null,null,null,null,null,null,null,null,null,null,null,null,null,null,null,null,null,null,null,null,null,null,null,null,null,null,null,null,null,null,null,null,null,null,null,null,null,null,null,null,null,null,null,null,null,null,null,null,null,null,null,null,null,null,null,null,null,null,null,null,null,null,null,null,null,null,null,null,null,null,null,null,null,null,null,null,null,null,null,null,null,null,null,null,null,null,null,null,null,null,null,null,null,null,null,null,null,null,null,null,null,null,null,null,null,null,null,null,null,null,null,null,null,null,null,null,null,null,null,null,null,6,"D4O21W1IBUGH9QWWACXZMY8L5","DA5GNUVDNUV32D30ZVB55KXYX","","","","","","00","X","0","0","",""]
[null,null,null,null,null,null,null,null,null,null,null,null,null,null,null,null,null,null,null,null,null,null,null,null,null,null,null,null,null,null,null,null,null,null,null,null,null,null,null,null,null,null,null,null,null,null,null,null,null,null,null,null,null,null,null,null,null,null,null,null,null,null,null,null,null,null,null,null,null,null,null,null,null,null,null,null,null,null,null,null,null,null,null,null,null,null,null,null,null,null,null,null,null,null,null,null,null,null,null,null,null,null,null,null,null,null,null,null,null,null,null,null,null,null,null,null,null,null,null,null,null,null,null,null,null,null,null,null,null,null,6,"D4O21W1IBUKBOUJOW241Z37Y1","DA5GNUVDNUTJP4FICSFX0Q5FD","","","","","","00","X","0","0","",""]
[null,null,null,null,null,null,null,null,null,null,null,null,null,null,null,null,null,null,null,null,null,null,null,null,null,null,null,null,null,null,null,null,null,null,null,null,null,null,null,null,null,null,null,null,null,null,null,null,null,null,null,null,null,null,null,null,null,null,null,null,null,null,null,null,null,null,null,null,null,null,null,null,null,null,null,null,null,null,null,null,null,null,null,null,null,null,null,null,null,null,null,null,null,null,null,null,null,null,null,null,null,null,null,null,null,null,null,null,null,null,null,null,null,null,null,null,null,null,null,null,null,null,null,null,null,null,null,null,null,null,6,"D4O21W1IBUL3DGVG7LJO1IM7T","DA5GNUVDNUTJP4FICSFX0Q5FD","","","","","","00","X","0","0","",""]
[null,null,null,null,null,null,null,null,null,null,null,null,null,null,null,null,null,null,null,null,null,null,null,null,null,null,null,null,null,null,null,null,null,null,null,null,null,null,null,null,null,null,null,null,null,null,null,null,null,null,null,null,null,null,null,null,null,null,null,null,null,null,null,null,null,null,null,null,null,null,null,null,null,null,null,null,null,null,null,null,null,null,null,null,null,null,null,null,null,null,null,null,null,null,null,null,null,null,null,null,null,null,null,null,null,null,null,null,null,null,null,null,null,null,null,null,null,null,null,null,null,null,null,null,null,null,null,null,null,null,6,"D4O21W1IBUMMQPIYUOEW6DERD","DA5GNUVDNUV32D30ZVB55KXYX","","","","","","00","X","0","0","",""]
[null,null,null,null,null,null,null,null,null,null,null,null,null,null,null,null,null,null,null,null,null,null,null,null,null,null,null,null,null,null,null,null,null,null,null,null,null,null,null,null,null,null,null,null,null,null,null,null,null,null,null,null,null,null,null,null,null,null,null,null,null,null,null,null,null,null,null,null,null,null,null,null,null,null,null,null,null,null,null,null,null,null,null,null,null,null,null,null,null,null,null,null,null,null,null,null,null,null,null,null,null,null,null,null,null,null,null,null,null,null,null,null,null,null,null,null,null,null,null,null,null,null,null,null,null,null,null,null,null,null,6,"D4O21W1IBUO63Y6HHRA4B87AX","DA5GNUVDNUV32D30ZVB55KXYX","","","","","","00","X","0","0","",""]
[null,null,null,null,null,null,null,null,null,null,null,null,null,null,null,null,null,null,null,null,null,null,null,null,null,null,null,null,null,null,null,null,null,null,null,null,null,null,null,null,null,null,null,null,null,null,null,null,null,null,null,null,null,null,null,null,null,null,null,null,null,null,null,null,null,null,null,null,null,null,null,null,null,null,null,null,null,null,null,null,null,null,null,null,null,null,null,null,null,null,null,null,null,null,null,null,null,null,null,null,null,null,null,null,null,null,null,null,null,null,null,null,null,null,null,null,null,null,null,null,null,null,null,null,null,null,null,null,null,null,6,"D4O21W1IBUWMMRRU0P1V1XKAH","DA5GNUVDNUV32D30ZVB55KXYX","","0","","","","00","X","0","0","",""]
[null,null,null,null,null,null,null,null,null,null,null,null,null,null,null,null,null,null,null,null,null,null,null,null,null,null,null,null,null,null,null,null,null,null,null,null,null,null,null,null,null,null,null,null,null,null,null,null,null,null,null,null,null,null,null,null,null,null,null,null,null,null,null,null,null,null,null,null,null,null,null,null,null,null,null,null,null,null,null,null,null,null,null,null,null,null,null,null,null,null,null,null,null,null,null,null,null,null,null,null,null,null,null,null,null,null,null,null,null,null,null,null,null,null,null,null,null,null,null,null,null,null,null,null,null,null,null,null,null,null,6,"D4O21W1IBV0H1VEMME7XE2JND","DA5GNUVDNUUBDQR9OBVJ35JP5","","","","","","00","X","0","0","",""]
[null,null,null,null,null,null,null,null,null,null,null,null,null,null,null,null,null,null,null,null,null,null,null,null,null,null,null,null,null,null,null,null,null,null,null,null,null,null,null,null,null,null,null,null,null,null,null,null,null,null,null,null,null,null,null,null,null,null,null,null,null,null,null,null,null,null,null,null,null,null,null,null,null,null,null,null,null,null,null,null,null,null,null,null,null,null,null,null,null,null,null,null,null,null,null,null,null,null,null,null,null,null,null,null,null,null,null,null,null,null,null,null,null,null,null,null,null,null,null,null,null,null,null,null,null,null,null,null,null,null,6,"D4O21W1IBV8XKOZZ5BZO4RWMX","DA5GNUVDNUSS0I3R190AYAR5L","","","","","","00","X","0","0","",""]
[null,null,null,null,null,null,null,null,null,null,null,null,null,null,null,null,null,null,null,null,null,null,null,null,null,null,null,null,null,null,null,null,null,null,null,null,null,null,null,null,null,null,null,null,null,null,null,null,null,null,null,null,null,null,null,null,null,null,null,null,null,null,null,null,null,null,null,null,null,null,null,null,null,null,null,null,null,null,null,null,null,null,null,null,null,null,null,null,null,null,null,null,null,null,null,null,null,null,null,null,null,null,null,null,null,null,null,null,null,null,null,null,null,null,null,null,null,null,null,null,null,null,null,null,null,null,null,null,null,null,6,"DEMAFDB5LZ4S252XBVM7GJP4P","DA5GNUVDNUSS0I3R190AYAR5L","","","","","","00","X","0","0","",""]
[null,null,null,null,null,null,null,null,null,null,null,null,null,null,null,null,null,null,null,null,null,null,null,null,null,null,null,null,null,null,null,null,null,null,null,null,null,null,null,null,null,null,null,null,null,null,null,null,null,null,null,null,null,null,null,null,null,null,null,null,null,null,null,null,null,null,null,null,null,null,null,null,null,null,null,null,null,null,null,null,null,null,null,null,null,null,null,null,null,null,null,null,null,null,null,null,null,null,null,null,null,null,null,null,null,null,null,null,null,null,null,null,null,null,null,null,null,null,null,null,null,null,null,null,null,null,null,null,null,null,6,"DEMAGSP8VDTMCQ2Z9KSRG7UGP","DA5GNUVDNUVUQZESBEQR80C8P","","","","","","00","X","0","0","",""]
[null,null,null,null,null,null,null,null,null,null,null,null,null,null,null,null,null,null,null,null,null,null,null,null,null,null,null,null,null,null,null,null,null,null,null,null,null,null,null,null,null,null,null,null,null,null,null,null,null,null,null,null,null,null,null,null,null,null,null,null,null,null,null,null,null,null,null,null,null,null,null,null,null,null,null,null,null,null,null,null,null,null,null,null,null,null,null,null,null,null,null,null,null,null,null,null,null,null,null,null,null,null,null,null,null,null,null,null,null,null,null,null,null,null,null,null,null,null,null,null,null,null,null,null,null,null,null,null,null,null,6,"DEN07Y1DTSNAWTLQYCBLILED5","DA5GNUVDNUVUQZESBEQR80C8P","","0","","","","00","X","0","0","",""]
[null,null,null,null,null,null,null,null,null,null,null,null,null,null,null,null,null,null,null,null,null,null,null,null,null,null,null,null,null,null,null,null,null,null,null,null,null,null,null,null,null,null,null,null,null,null,null,null,null,null,null,null,null,null,null,null,null,null,null,null,null,null,null,null,null,null,null,null,null,null,null,null,null,null,null,null,null,null,null,null,null,null,null,null,null,null,null,null,null,null,null,null,null,null,null,null,null,null,null,null,null,null,null,null,null,null,null,null,null,null,null,null,null,null,null,null,null,null,null,null,null,null,null,null,null,null,null,null,null,null,6,"DEN07Y1DTSO2LFXI9VR7L0SMX","DA5GNUVDNUUBDQR9OBVJ35JP5","","0","","","","00","X","0","0","",""]
[null,null,null,null,null,null,null,null,null,null,null,null,null,null,null,null,null,null,null,null,null,null,null,null,null,null,null,null,null,null,null,null,null,null,null,null,null,null,null,null,null,null,null,null,null,null,null,null,null,null,null,null,null,null,null,null,null,null,null,null,null,null,null,null,null,null,null,null,null,null,null,null,null,null,null,null,null,null,null,null,null,null,null,null,null,null,null,null,null,null,null,null,null,null,null,null,null,null,null,null,null,null,null,null,null,null,null,null,null,null,null,null,null,null,null,null,null,null,null,null,null,null,null,null,null,null,null,null,null,null,6,"DEN07Y1DTSPLYOL0WYMFPVL6H","DA5GNUVDNUSS0I3R190AYAR5L","","0","","","","00","X","0","0","",""]
[null,null,null,null,null,null,null,null,null,null,null,null,null,null,null,null,null,null,null,null,null,null,null,null,null,null,null,null,null,null,null,null,null,null,null,null,null,null,null,null,null,null,null,null,null,null,null,null,null,null,null,null,null,null,null,null,null,null,null,null,null,null,null,null,null,null,null,null,null,null,null,null,null,null,null,null,null,null,null,null,null,null,null,null,null,null,null,null,null,null,null,null,null,null,null,null,null,null,null,null,null,null,null,null,null,null,null,null,null,null,null,null,null,null,null,null,null,null,null,null,null,null,null,null,null,null,null,null,null,null,6,"DEN07Y1DTSR5BX8JK1HNUQDQ1","DA5GNUVDNUWMFLQJMY6DAFQIH","","","","","","00","X","0","0","",""]
[null,null,null,null,null,null,null,null,null,null,null,null,null,null,null,null,null,null,null,null,null,null,null,null,null,null,null,null,null,null,null,null,null,null,null,null,null,null,null,null,null,null,null,null,null,null,null,null,null,null,null,null,null,null,null,null,null,null,null,null,null,null,null,null,null,null,null,null,null,null,null,null,null,null,null,null,null,null,null,null,null,null,null,null,null,null,null,null,null,null,null,null,null,null,null,null,null,null,null,null,null,null,null,null,null,null,null,null,null,null,null,null,null,null,null,null,null,null,null,null,null,null,null,null,null,null,null,null,null,null,6,"DEN07Y1DTSRX0JKAVKX9X5RZT","DA5GNUVDNUWMFLQJMY6DAFQIH","","","","","","00","X","0","0","",""]
[null,null,null,null,null,null,null,null,null,null,null,null,null,null,null,null,null,null,null,null,null,null,null,null,null,null,null,null,null,null,null,null,null,null,null,null,null,null,null,null,null,null,null,null,null,null,null,null,null,null,null,null,null,null,null,null,null,null,null,null,null,null,null,null,null,null,null,null,null,null,null,null,null,null,null,null,null,null,null,null,null,null,null,null,null,null,null,null,null,null,null,null,null,null,null,null,null,null,null,null,null,null,null,null,null,null,null,null,null,null,null,null,null,null,null,null,null,null,null,null,null,null,null,null,null,null,null,null,null,null,6,"DEN0OSIFULCZTDTFE8U7RBQIH","DA5GNUVDNUV32D30ZVB55KXYX","","","","","","00","X","0","0","",""]
[null,null,null,null,null,null,null,null,null,null,null,null,null,null,null,null,null,null,null,null,null,null,null,null,null,null,null,null,null,null,null,null,null,null,null,null,null,null,null,null,null,null,null,null,null,null,null,null,null,null,null,null,null,null,null,null,null,null,null,null,null,null,null,null,null,null,null,null,null,null,null,null,null,null,null,null,null,null,null,null,null,null,null,null,null,null,null,null,null,null,null,null,null,null,null,null,null,null,null,null,null,null,null,null,null,null,null,null,null,null,null,null,null,null,null,null,null,null,null,null,null,null,null,null,null,null,null,null,null,null,5,"D4O21W1IBUDEJ9LV077JD8NI1","DA5GNUVDNUUBDQR9OBVJ35JP5","","","","","","00","X","0","0","",""]
[null,null,null,null,null,null,null,null,null,null,null,null,null,null,null,null,null,null,null,null,null,null,null,null,null,null,null,null,null,null,null,null,null,null,null,null,null,null,null,null,null,null,null,null,null,null,null,null,null,null,null,null,null,null,null,null,null,null,null,null,null,null,null,null,null,null,null,null,null,null,null,null,null,null,null,null,null,null,null,null,null,null,null,null,null,null,null,null,null,null,null,null,null,null,null,null,null,null,null,null,null,null,null,null,null,null,null,null,null,null,null,null,null,null,null,null,null,null,null,null,null,null,null,null,null,null,null,null,null,null,5,"D4O21W1IBUEXWI9DNA2RI3G1L","DA5GNUVDNUSS0I3R190AYAR5L","","","","","","00","X","0","0","",""]
[null,null,null,null,null,null,null,null,null,null,null,null,null,null,null,null,null,null,null,null,null,null,null,null,null,null,null,null,null,null,null,null,null,null,null,null,null,null,null,null,null,null,null,null,null,null,null,null,null,null,null,null,null,null,null,null,null,null,null,null,null,null,null,null,null,null,null,null,null,null,null,null,null,null,null,null,null,null,null,null,null,null,null,null,null,null,null,null,null,null,null,null,null,null,null,null,null,null,null,null,null,null,null,null,null,null,null,null,null,null,null,null,null,null,null,null,null,null,null,null,null,null,null,null,null,null,null,null,null,null,5,"D4O21W1IBUFPL4L4YTIDKIUBD","DA5GNUVDNUWMFLQJMY6DAFQIH","","","","","","00","X","0","0","",""]
[null,null,null,null,null,null,null,null,null,null,null,null,null,null,null,null,null,null,null,null,null,null,null,null,null,null,null,null,null,null,null,null,null,null,null,null,null,null,null,null,null,null,null,null,null,null,null,null,null,null,null,null,null,null,null,null,null,null,null,null,null,null,null,null,null,null,null,null,null,null,null,null,null,null,null,null,null,null,null,null,null,null,null,null,null,null,null,null,null,null,null,null,null,null,null,null,null,null,null,null,null,null,null,null,null,null,null,null,null,null,null,null,null,null,null,null,null,null,null,null,null,null,null,null,null,null,null,null,null,null,5,"D4O21W1IBUH8YD8NLWDLPDMUX","DA5GNUVDNUVUQZESBEQR80C8P","","","","","","00","X","0","0","",""]
[null,null,null,null,null,null,null,null,null,null,null,null,null,null,null,null,null,null,null,null,null,null,null,null,null,null,null,null,null,null,null,null,null,null,null,null,null,null,null,null,null,null,null,null,null,null,null,null,null,null,null,null,null,null,null,null,null,null,null,null,null,null,null,null,null,null,null,null,null,null,null,null,null,null,null,null,null,null,null,null,null,null,null,null,null,null,null,null,null,null,null,null,null,null,null,null,null,null,null,null,null,null,null,null,null,null,null,null,null,null,null,null,null,null,null,null,null,null,null,null,null,null,null,null,null,null,null,null,null,null,5,"D4O21W1IBUL3DGVG7LJO1IM7T","DA5GNUVDNUUBDQR9OBVJ35JP5","","","","","","00","X","0","0","",""]
[null,null,null,null,null,null,null,null,null,null,null,null,null,null,null,null,null,null,null,null,null,null,null,null,null,null,null,null,null,null,null,null,null,null,null,null,null,null,null,null,null,null,null,null,null,null,null,null,null,null,null,null,null,null,null,null,null,null,null,null,null,null,null,null,null,null,null,null,null,null,null,null,null,null,null,null,null,null,null,null,null,null,null,null,null,null,null,null,null,null,null,null,null,null,null,null,null,null,null,null,null,null,null,null,null,null,null,null,null,null,null,null,null,null,null,null,null,null,null,null,null,null,null,null,null,null,null,null,null,null,5,"D4O21W1IBULV2377J4ZA3Y0HL","DA5GNUVDNUUBDQR9OBVJ35JP5","","","","","","00","X","0","0","",""]
[null,null,null,null,null,null,null,null,null,null,null,null,null,null,null,null,null,null,null,null,null,null,null,null,null,null,null,null,null,null,null,null,null,null,null,null,null,null,null,null,null,null,null,null,null,null,null,null,null,null,null,null,null,null,null,null,null,null,null,null,null,null,null,null,null,null,null,null,null,null,null,null,null,null,null,null,null,null,null,null,null,null,null,null,null,null,null,null,null,null,null,null,null,null,null,null,null,null,null,null,null,null,null,null,null,null,null,null,null,null,null,null,null,null,null,null,null,null,null,null,null,null,null,null,null,null,null,null,null,null,5,"D4O21W1IBUNEFBUQ67UI8ST15","DA5GNUVDNUSS0I3R190AYAR5L","","","","","","00","X","0","0","",""]
[null,null,null,null,null,null,null,null,null,null,null,null,null,null,null,null,null,null,null,null,null,null,null,null,null,null,null,null,null,null,null,null,null,null,null,null,null,null,null,null,null,null,null,null,null,null,null,null,null,null,null,null,null,null,null,null,null,null,null,null,null,null,null,null,null,null,null,null,null,null,null,null,null,null,null,null,null,null,null,null,null,null,null,null,null,null,null,null,null,null,null,null,null,null,null,null,null,null,null,null,null,null,null,null,null,null,null,null,null,null,null,null,null,null,null,null,null,null,null,null,null,null,null,null,null,null,null,null,null,null,5,"D4O21W1IBUWMMRRU0P1V1XKAH","DA5GNUVDNUWMFLQJMY6DAFQIH","","0","","","","00","X","0","0","",""]
[null,null,null,null,null,null,null,null,null,null,null,null,null,null,null,null,null,null,null,null,null,null,null,null,null,null,null,null,null,null,null,null,null,null,null,null,null,null,null,null,null,null,null,null,null,null,null,null,null,null,null,null,null,null,null,null,null,null,null,null,null,null,null,null,null,null,null,null,null,null,null,null,null,null,null,null,null,null,null,null,null,null,null,null,null,null,null,null,null,null,null,null,null,null,null,null,null,null,null,null,null,null,null,null,null,null,null,null,null,null,null,null,null,null,null,null,null,null,null,null,null,null,null,null,null,null,null,null,null,null,5,"D4O21W1IBUXEBE3LC8HH4CYK9","DA5GNUVDNUWMFLQJMY6DAFQIH","","0","","","","00","X","0","0","",""]
[null,null,null,null,null,null,null,null,null,null,null,null,null,null,null,null,null,null,null,null,null,null,null,null,null,null,null,null,null,null,null,null,null,null,null,null,null,null,null,null,null,null,null,null,null,null,null,null,null,null,null,null,null,null,null,null,null,null,null,null,null,null,null,null,null,null,null,null,null,null,null,null,null,null,null,null,null,null,null,null,null,null,null,null,null,null,null,null,null,null,null,null,null,null,null,null,null,null,null,null,null,null,null,null,null,null,null,null,null,null,null,null,null,null,null,null,null,null,null,null,null,null,null,null,null,null,null,null,null,null,5,"D4O21W1IBV0H1VEMME7XE2JND","DA5GNUVDNUV32D30ZVB55KXYX","","","","","","00","X","0","0","",""]
[null,null,null,null,null,null,null,null,null,null,null,null,null,null,null,null,null,null,null,null,null,null,null,null,null,null,null,null,null,null,null,null,null,null,null,null,null,null,null,null,null,null,null,null,null,null,null,null,null,null,null,null,null,null,null,null,null,null,null,null,null,null,null,null,null,null,null,null,null,null,null,null,null,null,null,null,null,null,null,null,null,null,null,null,null,null,null,null,null,null,null,null,null,null,null,null,null,null,null,null,null,null,null,null,null,null,null,null,null,null,null,null,null,null,null,null,null,null,null,null,null,null,null,null,null,null,null,null,null,null,5,"DEMAFDB5LZ4S252XBVM7GJP4P","DA5GNUVDNUSS0I3R190AYAR5L","","","","","","00","X","0","0","",""]
[null,null,null,null,null,null,null,null,null,null,null,null,null,null,null,null,null,null,null,null,null,null,null,null,null,null,null,null,null,null,null,null,null,null,null,null,null,null,null,null,null,null,null,null,null,null,null,null,null,null,null,null,null,null,null,null,null,null,null,null,null,null,null,null,null,null,null,null,null,null,null,null,null,null,null,null,null,null,null,null,null,null,null,null,null,null,null,null,null,null,null,null,null,null,null,null,null,null,null,null,null,null,null,null,null,null,null,null,null,null,null,null,null,null,null,null,null,null,null,null,null,null,null,null,null,null,null,null,null,null,5,"DEMAGSP8VDTMCQ2Z9KSRG7UGP","DA5GNUVDNUTJP4FICSFX0Q5FD","","","","","","00","X","0","0","",""]
[null,null,null,null,null,null,null,null,null,null,null,null,null,null,null,null,null,null,null,null,null,null,null,null,null,null,null,null,null,null,null,null,null,null,null,null,null,null,null,null,null,null,null,null,null,null,null,null,null,null,null,null,null,null,null,null,null,null,null,null,null,null,null,null,null,null,null,null,null,null,null,null,null,null,null,null,null,null,null,null,null,null,null,null,null,null,null,null,null,null,null,null,null,null,null,null,null,null,null,null,null,null,null,null,null,null,null,null,null,null,null,null,null,null,null,null,null,null,null,null,null,null,null,null,null,null,null,null,null,null,5,"DEN03PYIT5FSSAA2U7ST53H15","DA5GNUVDNUWMFLQJMY6DAFQIH","","","","","","00","X","0","0","",""]
[null,null,null,null,null,null,null,null,null,null,null,null,null,null,null,null,null,null,null,null,null,null,null,null,null,null,null,null,null,null,null,null,null,null,null,null,null,null,null,null,null,null,null,null,null,null,null,null,null,null,null,null,null,null,null,null,null,null,null,null,null,null,null,null,null,null,null,null,null,null,null,null,null,null,null,null,null,null,null,null,null,null,null,null,null,null,null,null,null,null,null,null,null,null,null,null,null,null,null,null,null,null,null,null,null,null,null,null,null,null,null,null,null,null,null,null,null,null,null,null,null,null,null,null,null,null,null,null,null,null,5,"DEN07Y1DTSO2LFXI9VR7L0SMX","DA5GNUVDNUVUQZESBEQR80C8P","","0","","","","00","X","0","0","",""]
[null,null,null,null,null,null,null,null,null,null,null,null,null,null,null,null,null,null,null,null,null,null,null,null,null,null,null,null,null,null,null,null,null,null,null,null,null,null,null,null,null,null,null,null,null,null,null,null,null,null,null,null,null,null,null,null,null,null,null,null,null,null,null,null,null,null,null,null,null,null,null,null,null,null,null,null,null,null,null,null,null,null,null,null,null,null,null,null,null,null,null,null,null,null,null,null,null,null,null,null,null,null,null,null,null,null,null,null,null,null,null,null,null,null,null,null,null,null,null,null,null,null,null,null,null,null,null,null,null,null,5,"DEN07Y1DTSPLYOL0WYMFPVL6H","DA5GNUVDNUUBDQR9OBVJ35JP5","","0","","","","00","X","0","0","",""]
[null,null,null,null,null,null,null,null,null,null,null,null,null,null,null,null,null,null,null,null,null,null,null,null,null,null,null,null,null,null,null,null,null,null,null,null,null,null,null,null,null,null,null,null,null,null,null,null,null,null,null,null,null,null,null,null,null,null,null,null,null,null,null,null,null,null,null,null,null,null,null,null,null,null,null,null,null,null,null,null,null,null,null,null,null,null,null,null,null,null,null,null,null,null,null,null,null,null,null,null,null,null,null,null,null,null,null,null,null,null,null,null,null,null,null,null,null,null,null,null,null,null,null,null,null,null,null,null,null,null,5,"DEN07Y1DTSQDNAWS8I21SAZG9","DA5GNUVDNUUBDQR9OBVJ35JP5","","0","","","","00","X","0","0","",""]
[null,null,null,null,null,null,null,null,null,null,null,null,null,null,null,null,null,null,null,null,null,null,null,null,null,null,null,null,null,null,null,null,null,null,null,null,null,null,null,null,null,null,null,null,null,null,null,null,null,null,null,null,null,null,null,null,null,null,null,null,null,null,null,null,null,null,null,null,null,null,null,null,null,null,null,null,null,null,null,null,null,null,null,null,null,null,null,null,null,null,null,null,null,null,null,null,null,null,null,null,null,null,null,null,null,null,null,null,null,null,null,null,null,null,null,null,null,null,null,null,null,null,null,null,null,null,null,null,null,null,5,"DEN07Y1DTSSOP5W274CVZL69L","DA5GNUVDNUTJP4FICSFX0Q5FD","","","","","","00","X","0","0","",""]
[null,null,null,null,null,null,null,null,null,null,null,null,null,null,null,null,null,null,null,null,null,null,null,null,null,null,null,null,null,null,null,null,null,null,null,null,null,null,null,null,null,null,null,null,null,null,null,null,null,null,null,null,null,null,null,null,null,null,null,null,null,null,null,null,null,null,null,null,null,null,null,null,null,null,null,null,null,null,null,null,null,null,null,null,null,null,null,null,null,null,null,null,null,null,null,null,null,null,null,null,null,null,null,null,null,null,null,null,null,null,null,null,null,null,null,null,null,null,null,null,null,null,null,null,null,null,null,null,null,null,5,"DEN0OSIFULCZTDTFE8U7RBQIH","DA5GNUVDNUWMFLQJMY6DAFQIH","","","","","","00","X","0","0","",""]
[null,null,null,null,null,null,null,null,null,null,null,null,null,null,null,null,null,null,null,null,null,null,null,null,null,null,null,null,null,null,null,null,null,null,null,null,null,null,null,null,null,null,null,null,null,null,null,null,null,null,null,null,null,null,null,null,null,null,null,null,null,null,null,null,null,null,null,null,null,null,null,null,null,null,null,null,null,null,null,null,null,null,null,null,null,null,null,null,null,null,null,null,null,null,null,null,null,null,null,null,null,null,null,null,null,null,null,null,null,null,null,null,null,null,null,null,null,null,null,null,null,null,null,null,null,null,null,null,null,null,5,"DEN0OSIFULEJ6MGY1BPFW6J21","DA5GNUVDNUTJP4FICSFX0Q5FD","","","","","","00","X","0","0","",""]
[null,null,null,null,null,null,null,null,null,null,null,null,null,null,null,null,null,null,null,null,null,null,null,null,null,null,null,null,null,null,null,null,null,null,null,null,null,null,null,null,null,null,null,null,null,null,null,null,null,null,null,null,null,null,null,null,null,null,null,null,null,null,null,null,null,null,null,null,null,null,null,null,null,null,null,null,null,null,null,null,null,null,null,null,null,null,null,null,null,null,null,null,null,null,null,null,null,null,null,null,null,null,null,null,null,null,null,null,null,null,null,null,null,null,null,null,null,null,null,null,null,null,null,null,null,null,null,null,null,null,4,"D4O21W1IBUEXWI9DNA2RI3G1L","DA5GNUVDNUTJP4FICSFX0Q5FD","","","","","","00","X","0","0","",""]
[null,null,null,null,null,null,null,null,null,null,null,null,null,null,null,null,null,null,null,null,null,null,null,null,null,null,null,null,null,null,null,null,null,null,null,null,null,null,null,null,null,null,null,null,null,null,null,null,null,null,null,null,null,null,null,null,null,null,null,null,null,null,null,null,null,null,null,null,null,null,null,null,null,null,null,null,null,null,null,null,null,null,null,null,null,null,null,null,null,null,null,null,null,null,null,null,null,null,null,null,null,null,null,null,null,null,null,null,null,null,null,null,null,null,null,null,null,null,null,null,null,null,null,null,null,null,null,null,null,null,4,"D4O21W1IBUFPL4L4YTIDKIUBD","DA5GNUVDNUTJP4FICSFX0Q5FD","","","","","","00","X","0","0","",""]
[null,null,null,null,null,null,null,null,null,null,null,null,null,null,null,null,null,null,null,null,null,null,null,null,null,null,null,null,null,null,null,null,null,null,null,null,null,null,null,null,null,null,null,null,null,null,null,null,null,null,null,null,null,null,null,null,null,null,null,null,null,null,null,null,null,null,null,null,null,null,null,null,null,null,null,null,null,null,null,null,null,null,null,null,null,null,null,null,null,null,null,null,null,null,null,null,null,null,null,null,null,null,null,null,null,null,null,null,null,null,null,null,null,null,null,null,null,null,null,null,null,null,null,null,null,null,null,null,null,null,4,"D4O21W1IBUGH9QWWACXZMY8L5","DA5GNUVDNUTJP4FICSFX0Q5FD","","","","","","00","X","0","0","",""]
[null,null,null,null,null,null,null,null,null,null,null,null,null,null,null,null,null,null,null,null,null,null,null,null,null,null,null,null,null,null,null,null,null,null,null,null,null,null,null,null,null,null,null,null,null,null,null,null,null,null,null,null,null,null,null,null,null,null,null,null,null,null,null,null,null,null,null,null,null,null,null,null,null,null,null,null,null,null,null,null,null,null,null,null,null,null,null,null,null,null,null,null,null,null,null,null,null,null,null,null,null,null,null,null,null,null,null,null,null,null,null,null,null,null,null,null,null,null,null,null,null,null,null,null,null,null,null,null,null,null,4,"D4O21W1IBUL3DGVG7LJO1IM7T","DA5GNUVDNUVUQZESBEQR80C8P","","","","","","00","X","0","0","",""]
[null,null,null,null,null,null,null,null,null,null,null,null,null,null,null,null,null,null,null,null,null,null,null,null,null,null,null,null,null,null,null,null,null,null,null,null,null,null,null,null,null,null,null,null,null,null,null,null,null,null,null,null,null,null,null,null,null,null,null,null,null,null,null,null,null,null,null,null,null,null,null,null,null,null,null,null,null,null,null,null,null,null,null,null,null,null,null,null,null,null,null,null,null,null,null,null,null,null,null,null,null,null,null,null,null,null,null,null,null,null,null,null,null,null,null,null,null,null,null,null,null,null,null,null,null,null,null,null,null,null,4,"D4O21W1IBULV2377J4ZA3Y0HL","DA5GNUVDNUVUQZESBEQR80C8P","","","","","","00","X","0","0","",""]
[null,null,null,null,null,null,null,null,null,null,null,null,null,null,null,null,null,null,null,null,null,null,null,null,null,null,null,null,null,null,null,null,null,null,null,null,null,null,null,null,null,null,null,null,null,null,null,null,null,null,null,null,null,null,null,null,null,null,null,null,null,null,null,null,null,null,null,null,null,null,null,null,null,null,null,null,null,null,null,null,null,null,null,null,null,null,null,null,null,null,null,null,null,null,null,null,null,null,null,null,null,null,null,null,null,null,null,null,null,null,null,null,null,null,null,null,null,null,null,null,null,null,null,null,null,null,null,null,null,null,4,"D4O21W1IBUMMQPIYUOEW6DERD","DA5GNUVDNUVUQZESBEQR80C8P","","","","","","00","X","0","0","",""]
[null,null,null,null,null,null,null,null,null,null,null,null,null,null,null,null,null,null,null,null,null,null,null,null,null,null,null,null,null,null,null,null,null,null,null,null,null,null,null,null,null,null,null,null,null,null,null,null,null,null,null,null,null,null,null,null,null,null,null,null,null,null,null,null,null,null,null,null,null,null,null,null,null,null,null,null,null,null,null,null,null,null,null,null,null,null,null,null,null,null,null,null,null,null,null,null,null,null,null,null,null,null,null,null,null,null,null,null,null,null,null,null,null,null,null,null,null,null,null,null,null,null,null,null,null,null,null,null,null,null,4,"D4O21W1IBUXEBE3LC8HH4CYK9","DA5GNUVDNUTJP4FICSFX0Q5FD","","0","","","","00","X","0","0","",""]
[null,null,null,null,null,null,null,null,null,null,null,null,null,null,null,null,null,null,null,null,null,null,null,null,null,null,null,null,null,null,null,null,null,null,null,null,null,null,null,null,null,null,null,null,null,null,null,null,null,null,null,null,null,null,null,null,null,null,null,null,null,null,null,null,null,null,null,null,null,null,null,null,null,null,null,null,null,null,null,null,null,null,null,null,null,null,null,null,null,null,null,null,null,null,null,null,null,null,null,null,null,null,null,null,null,null,null,null,null,null,null,null,null,null,null,null,null,null,null,null,null,null,null,null,null,null,null,null,null,null,4,"D4O21W1IBUXEBE3LC8HH4CYK9","DA5GNUVDNUUBDQR9OBVJ35JP5","","0","","","","00","X","0","0","",""]
[null,null,null,null,null,null,null,null,null,null,null,null,null,null,null,null,null,null,null,null,null,null,null,null,null,null,null,null,null,null,null,null,null,null,null,null,null,null,null,null,null,null,null,null,null,null,null,null,null,null,null,null,null,null,null,null,null,null,null,null,null,null,null,null,null,null,null,null,null,null,null,null,null,null,null,null,null,null,null,null,null,null,null,null,null,null,null,null,null,null,null,null,null,null,null,null,null,null,null,null,null,null,null,null,null,null,null,null,null,null,null,null,null,null,null,null,null,null,null,null,null,null,null,null,null,null,null,null,null,null,4,"D4O21W1IBV0H1VEMME7XE2JND","DA5GNUVDNUVUQZESBEQR80C8P","","","","","","00","X","0","0","",""]
[null,null,null,null,null,null,null,null,null,null,null,null,null,null,null,null,null,null,null,null,null,null,null,null,null,null,null,null,null,null,null,null,null,null,null,null,null,null,null,null,null,null,null,null,null,null,null,null,null,null,null,null,null,null,null,null,null,null,null,null,null,null,null,null,null,null,null,null,null,null,null,null,null,null,null,null,null,null,null,null,null,null,null,null,null,null,null,null,null,null,null,null,null,null,null,null,null,null,null,null,null,null,null,null,null,null,null,null,null,null,null,null,null,null,null,null,null,null,null,null,null,null,null,null,null,null,null,null,null,null,4,"DEMAFDB5LZ4S252XBVM7GJP4P","DA5GNUVDNUV32D30ZVB55KXYX","","","","","","00","X","0","0","",""]
[null,null,null,null,null,null,null,null,null,null,null,null,null,null,null,null,null,null,null,null,null,null,null,null,null,null,null,null,null,null,null,null,null,null,null,null,null,null,null,null,null,null,null,null,null,null,null,null,null,null,null,null,null,null,null,null,null,null,null,null,null,null,null,null,null,null,null,null,null,null,null,null,null,null,null,null,null,null,null,null,null,null,null,null,null,null,null,null,null,null,null,null,null,null,null,null,null,null,null,null,null,null,null,null,null,null,null,null,null,null,null,null,null,null,null,null,null,null,null,null,null,null,null,null,null,null,null,null,null,null,4,"DEMAGSP8VDTMCQ2Z9KSRG7UGP","DA5GNUVDNUV32D30ZVB55KXYX","","","","","","00","X","0","0","",""]
[null,null,null,null,null,null,null,null,null,null,null,null,null,null,null,null,null,null,null,null,null,null,null,null,null,null,null,null,null,null,null,null,null,null,null,null,null,null,null,null,null,null,null,null,null,null,null,null,null,null,null,null,null,null,null,null,null,null,null,null,null,null,null,null,null,null,null,null,null,null,null,null,null,null,null,null,null,null,null,null,null,null,null,null,null,null,null,null,null,null,null,null,null,null,null,null,null,null,null,null,null,null,null,null,null,null,null,null,null,null,null,null,null,null,null,null,null,null,null,null,null,null,null,null,null,null,null,null,null,null,4,"DEN04FDC1K04NBJW47LA7T915","DA5GNUVDNUTJP4FICSFX0Q5FD","","","","","","00","X","0","0","",""]
[null,null,null,null,null,null,null,null,null,null,null,null,null,null,null,null,null,null,null,null,null,null,null,null,null,null,null,null,null,null,null,null,null,null,null,null,null,null,null,null,null,null,null,null,null,null,null,null,null,null,null,null,null,null,null,null,null,null,null,null,null,null,null,null,null,null,null,null,null,null,null,null,null,null,null,null,null,null,null,null,null,null,null,null,null,null,null,null,null,null,null,null,null,null,null,null,null,null,null,null,null,null,null,null,null,null,null,null,null,null,null,null,null,null,null,null,null,null,null,null,null,null,null,null,null,null,null,null,null,null,4,"DEN07Y1DTSOUA299LF6TNG6WP","DA5GNUVDNUSS0I3R190AYAR5L","","","","","","00","X","0","0","",""]
[null,null,null,null,null,null,null,null,null,null,null,null,null,null,null,null,null,null,null,null,null,null,null,null,null,null,null,null,null,null,null,null,null,null,null,null,null,null,null,null,null,null,null,null,null,null,null,null,null,null,null,null,null,null,null,null,null,null,null,null,null,null,null,null,null,null,null,null,null,null,null,null,null,null,null,null,null,null,null,null,null,null,null,null,null,null,null,null,null,null,null,null,null,null,null,null,null,null,null,null,null,null,null,null,null,null,null,null,null,null,null,null,null,null,null,null,null,null,null,null,null,null,null,null,null,null,null,null,null,null,4,"DEN07Y1DTSPLYOL0WYMFPVL6H","DA5GNUVDNUSS0I3R190AYAR5L","","0","","","","00","X","0","0","",""]
[null,null,null,null,null,null,null,null,null,null,null,null,null,null,null,null,null,null,null,null,null,null,null,null,null,null,null,null,null,null,null,null,null,null,null,null,null,null,null,null,null,null,null,null,null,null,null,null,null,null,null,null,null,null,null,null,null,null,null,null,null,null,null,null,null,null,null,null,null,null,null,null,null,null,null,null,null,null,null,null,null,null,null,null,null,null,null,null,null,null,null,null,null,null,null,null,null,null,null,null,null,null,null,null,null,null,null,null,null,null,null,null,null,null,null,null,null,null,null,null,null,null,null,null,null,null,null,null,null,null,4,"DEN07Y1DTSQDNAWS8I21SAZG9","DA5GNUVDNUVUQZESBEQR80C8P","","0","","","","00","X","0","0","",""]
[null,null,null,null,null,null,null,null,null,null,null,null,null,null,null,null,null,null,null,null,null,null,null,null,null,null,null,null,null,null,null,null,null,null,null,null,null,null,null,null,null,null,null,null,null,null,null,null,null,null,null,null,null,null,null,null,null,null,null,null,null,null,null,null,null,null,null,null,null,null,null,null,null,null,null,null,null,null,null,null,null,null,null,null,null,null,null,null,null,null,null,null,null,null,null,null,null,null,null,null,null,null,null,null,null,null,null,null,null,null,null,null,null,null,null,null,null,null,null,null,null,null,null,null,null,null,null,null,null,null,4,"DEN07Y1DTSR5BX8JK1HNUQDQ1","DA5GNUVDNUWMFLQJMY6DAFQIH","","","","","","00","X","0","0","",""]
[null,null,null,null,null,null,null,null,null,null,null,null,null,null,null,null,null,null,null,null,null,null,null,null,null,null,null,null,null,null,null,null,null,null,null,null,null,null,null,null,null,null,null,null,null,null,null,null,null,null,null,null,null,null,null,null,null,null,null,null,null,null,null,null,null,null,null,null,null,null,null,null,null,null,null,null,null,null,null,null,null,null,null,null,null,null,null,null,null,null,null,null,null,null,null,null,null,null,null,null,null,null,null,null,null,null,null,null,null,null,null,null,null,null,null,null,null,null,null,null,null,null,null,null,null,null,null,null,null,null,4,"DEN07Y1DTSRX0JKAVKX9X5RZT","DA5GNUVDNUSS0I3R190AYAR5L","","","","","","00","X","0","0","",""]
[null,null,null,null,null,null,null,null,null,null,null,null,null,null,null,null,null,null,null,null,null,null,null,null,null,null,null,null,null,null,null,null,null,null,null,null,null,null,null,null,null,null,null,null,null,null,null,null,null,null,null,null,null,null,null,null,null,null,null,null,null,null,null,null,null,null,null,null,null,null,null,null,null,null,null,null,null,null,null,null,null,null,null,null,null,null,null,null,null,null,null,null,null,null,null,null,null,null,null,null,null,null,null,null,null,null,null,null,null,null,null,null,null,null,null,null,null,null,null,null,null,null,null,null,null,null,null,null,null,null,4,"DEN07Y1DTSRX0JKAVKX9X5RZT","DA5GNUVDNUTJP4FICSFX0Q5FD","","","","","","00","X","0","0","",""]
[null,null,null,null,null,null,null,null,null,null,null,null,null,null,null,null,null,null,null,null,null,null,null,null,null,null,null,null,null,null,null,null,null,null,null,null,null,null,null,null,null,null,null,null,null,null,null,null,null,null,null,null,null,null,null,null,null,null,null,null,null,null,null,null,null,null,null,null,null,null,null,null,null,null,null,null,null,null,null,null,null,null,null,null,null,null,null,null,null,null,null,null,null,null,null,null,null,null,null,null,null,null,null,null,null,null,null,null,null,null,null,null,null,null,null,null,null,null,null,null,null,null,null,null,null,null,null,null,null,null,4,"DEN07Y1DTSRX0JKAVKX9X5RZT","DA5GNUVDNUUBDQR9OBVJ35JP5","","","","","","00","X","0","0","",""]
[null,null,null,null,null,null,null,null,null,null,null,null,null,null,null,null,null,null,null,null,null,null,null,null,null,null,null,null,null,null,null,null,null,null,null,null,null,null,null,null,null,null,null,null,null,null,null,null,null,null,null,null,null,null,null,null,null,null,null,null,null,null,null,null,null,null,null,null,null,null,null,null,null,null,null,null,null,null,null,null,null,null,null,null,null,null,null,null,null,null,null,null,null,null,null,null,null,null,null,null,null,null,null,null,null,null,null,null,null,null,null,null,null,null,null,null,null,null,null,null,null,null,null,null,null,null,null,null,null,null,4,"DEN07Y1DTSRX0JKAVKX9X5RZT","DA5GNUVDNUV32D30ZVB55KXYX","","","","","","00","X","0","0","",""]
[null,null,null,null,null,null,null,null,null,null,null,null,null,null,null,null,null,null,null,null,null,null,null,null,null,null,null,null,null,null,null,null,null,null,null,null,null,null,null,null,null,null,null,null,null,null,null,null,null,null,null,null,null,null,null,null,null,null,null,null,null,null,null,null,null,null,null,null,null,null,null,null,null,null,null,null,null,null,null,null,null,null,null,null,null,null,null,null,null,null,null,null,null,null,null,null,null,null,null,null,null,null,null,null,null,null,null,null,null,null,null,null,null,null,null,null,null,null,null,null,null,null,null,null,null,null,null,null,null,null,4,"DEN07Y1DTSRX0JKAVKX9X5RZT","DA5GNUVDNUVUQZESBEQR80C8P","","","","","","00","X","0","0","",""]
[null,null,null,null,null,null,null,null,null,null,null,null,null,null,null,null,null,null,null,null,null,null,null,null,null,null,null,null,null,null,null,null,null,null,null,null,null,null,null,null,null,null,null,null,null,null,null,null,null,null,null,null,null,null,null,null,null,null,null,null,null,null,null,null,null,null,null,null,null,null,null,null,null,null,null,null,null,null,null,null,null,null,null,null,null,null,null,null,null,null,null,null,null,null,null,null,null,null,null,null,null,null,null,null,null,null,null,null,null,null,null,null,null,null,null,null,null,null,null,null,null,null,null,null,null,null,null,null,null,null,4,"DEN07Y1DTSRX0JKAVKX9X5RZT","DA5GNUVDNUWMFLQJMY6DAFQIH","","","","","","00","X","0","0","",""]
[null,null,null,null,null,null,null,null,null,null,null,null,null,null,null,null,null,null,null,null,null,null,null,null,null,null,null,null,null,null,null,null,null,null,null,null,null,null,null,null,null,null,null,null,null,null,null,null,null,null,null,null,null,null,null,null,null,null,null,null,null,null,null,null,null,null,null,null,null,null,null,null,null,null,null,null,null,null,null,null,null,null,null,null,null,null,null,null,null,null,null,null,null,null,null,null,null,null,null,null,null,null,null,null,null,null,null,null,null,null,null,null,null,null,null,null,null,null,null,null,null,null,null,null,null,null,null,null,null,null,4,"DEN07Y1DTSSOP5W274CVZL69L","DA5GNUVDNUSS0I3R190AYAR5L","","","","","","00","X","0","0","",""]
[null,null,null,null,null,null,null,null,null,null,null,null,null,null,null,null,null,null,null,null,null,null,null,null,null,null,null,null,null,null,null,null,null,null,null,null,null,null,null,null,null,null,null,null,null,null,null,null,null,null,null,null,null,null,null,null,null,null,null,null,null,null,null,null,null,null,null,null,null,null,null,null,null,null,null,null,null,null,null,null,null,null,null,null,null,null,null,null,null,null,null,null,null,null,null,null,null,null,null,null,null,null,null,null,null,null,null,null,null,null,null,null,null,null,null,null,null,null,null,null,null,null,null,null,null,null,null,null,null,null,4,"DEN07Y1DTSSOP5W274CVZL69L","DA5GNUVDNUTJP4FICSFX0Q5FD","","","","","","00","X","0","0","",""]
[null,null,null,null,null,null,null,null,null,null,null,null,null,null,null,null,null,null,null,null,null,null,null,null,null,null,null,null,null,null,null,null,null,null,null,null,null,null,null,null,null,null,null,null,null,null,null,null,null,null,null,null,null,null,null,null,null,null,null,null,null,null,null,null,null,null,null,null,null,null,null,null,null,null,null,null,null,null,null,null,null,null,null,null,null,null,null,null,null,null,null,null,null,null,null,null,null,null,null,null,null,null,null,null,null,null,null,null,null,null,null,null,null,null,null,null,null,null,null,null,null,null,null,null,null,null,null,null,null,null,4,"DEN07Y1DTSSOP5W274CVZL69L","DA5GNUVDNUUBDQR9OBVJ35JP5","","","","","","00","X","0","0","",""]
[null,null,null,null,null,null,null,null,null,null,null,null,null,null,null,null,null,null,null,null,null,null,null,null,null,null,null,null,null,null,null,null,null,null,null,null,null,null,null,null,null,null,null,null,null,null,null,null,null,null,null,null,null,null,null,null,null,null,null,null,null,null,null,null,null,null,null,null,null,null,null,null,null,null,null,null,null,null,null,null,null,null,null,null,null,null,null,null,null,null,null,null,null,null,null,null,null,null,null,null,null,null,null,null,null,null,null,null,null,null,null,null,null,null,null,null,null,null,null,null,null,null,null,null,null,null,null,null,null,null,4,"DEN07Y1DTSSOP5W274CVZL69L","DA5GNUVDNUV32D30ZVB55KXYX","","","","","","00","X","0","0","",""]
[null,null,null,null,null,null,null,null,null,null,null,null,null,null,null,null,null,null,null,null,null,null,null,null,null,null,null,null,null,null,null,null,null,null,null,null,null,null,null,null,null,null,null,null,null,null,null,null,null,null,null,null,null,null,null,null,null,null,null,null,null,null,null,null,null,null,null,null,null,null,null,null,null,null,null,null,null,null,null,null,null,null,null,null,null,null,null,null,null,null,null,null,null,null,null,null,null,null,null,null,null,null,null,null,null,null,null,null,null,null,null,null,null,null,null,null,null,null,null,null,null,null,null,null,null,null,null,null,null,null,4,"DEN07Y1DTSSOP5W274CVZL69L","DA5GNUVDNUVUQZESBEQR80C8P","","","","","","00","X","0","0","",""]
[null,null,null,null,null,null,null,null,null,null,null,null,null,null,null,null,null,null,null,null,null,null,null,null,null,null,null,null,null,null,null,null,null,null,null,null,null,null,null,null,null,null,null,null,null,null,null,null,null,null,null,null,null,null,null,null,null,null,null,null,null,null,null,null,null,null,null,null,null,null,null,null,null,null,null,null,null,null,null,null,null,null,null,null,null,null,null,null,null,null,null,null,null,null,null,null,null,null,null,null,null,null,null,null,null,null,null,null,null,null,null,null,null,null,null,null,null,null,null,null,null,null,null,null,null,null,null,null,null,null,4,"DEN07Y1DTSSOP5W274CVZL69L","DA5GNUVDNUWMFLQJMY6DAFQIH","","","","","","00","X","0","0","",""]
[null,null,null,null,null,null,null,null,null,null,null,null,null,null,null,null,null,null,null,null,null,null,null,null,null,null,null,null,null,null,null,null,null,null,null,null,null,null,null,null,null,null,null,null,null,null,null,null,null,null,null,null,null,null,null,null,null,null,null,null,null,null,null,null,null,null,null,null,null,null,null,null,null,null,null,null,null,null,null,null,null,null,null,null,null,null,null,null,null,null,null,null,null,null,null,null,null,null,null,null,null,null,null,null,null,null,null,null,null,null,null,null,null,null,null,null,null,null,null,null,null,null,null,null,null,null,null,null,null,null,4,"DEN0OSIFULCZTDTFE8U7RBQIH","DA5GNUVDNUSS0I3R190AYAR5L","","","","","","00","X","0","0","",""]
[null,null,null,null,null,null,null,null,null,null,null,null,null,null,null,null,null,null,null,null,null,null,null,null,null,null,null,null,null,null,null,null,null,null,null,null,null,null,null,null,null,null,null,null,null,null,null,null,null,null,null,null,null,null,null,null,null,null,null,null,null,null,null,null,null,null,null,null,null,null,null,null,null,null,null,null,null,null,null,null,null,null,null,null,null,null,null,null,null,null,null,null,null,null,null,null,null,null,null,null,null,null,null,null,null,null,null,null,null,null,null,null,null,null,null,null,null,null,null,null,null,null,null,null,null,null,null,null,null,null,4,"DEN0OSIFULCZTDTFE8U7RBQIH","DA5GNUVDNUTJP4FICSFX0Q5FD","","","","","","00","X","0","0","",""]
[null,null,null,null,null,null,null,null,null,null,null,null,null,null,null,null,null,null,null,null,null,null,null,null,null,null,null,null,null,null,null,null,null,null,null,null,null,null,null,null,null,null,null,null,null,null,null,null,null,null,null,null,null,null,null,null,null,null,null,null,null,null,null,null,null,null,null,null,null,null,null,null,null,null,null,null,null,null,null,null,null,null,null,null,null,null,null,null,null,null,null,null,null,null,null,null,null,null,null,null,null,null,null,null,null,null,null,null,null,null,null,null,null,null,null,null,null,null,null,null,null,null,null,null,null,null,null,null,null,null,4,"DEN0OSIFULCZTDTFE8U7RBQIH","DA5GNUVDNUUBDQR9OBVJ35JP5","","","","","","00","X","0","0","",""]
[null,null,null,null,null,null,null,null,null,null,null,null,null,null,null,null,null,null,null,null,null,null,null,null,null,null,null,null,null,null,null,null,null,null,null,null,null,null,null,null,null,null,null,null,null,null,null,null,null,null,null,null,null,null,null,null,null,null,null,null,null,null,null,null,null,null,null,null,null,null,null,null,null,null,null,null,null,null,null,null,null,null,null,null,null,null,null,null,null,null,null,null,null,null,null,null,null,null,null,null,null,null,null,null,null,null,null,null,null,null,null,null,null,null,null,null,null,null,null,null,null,null,null,null,null,null,null,null,null,null,4,"DEN0OSIFULCZTDTFE8U7RBQIH","DA5GNUVDNUV32D30ZVB55KXYX","","","","","","00","X","0","0","",""]
[null,null,null,null,null,null,null,null,null,null,null,null,null,null,null,null,null,null,null,null,null,null,null,null,null,null,null,null,null,null,null,null,null,null,null,null,null,null,null,null,null,null,null,null,null,null,null,null,null,null,null,null,null,null,null,null,null,null,null,null,null,null,null,null,null,null,null,null,null,null,null,null,null,null,null,null,null,null,null,null,null,null,null,null,null,null,null,null,null,null,null,null,null,null,null,null,null,null,null,null,null,null,null,null,null,null,null,null,null,null,null,null,null,null,null,null,null,null,null,null,null,null,null,null,null,null,null,null,null,null,4,"DEN0OSIFULCZTDTFE8U7RBQIH","DA5GNUVDNUVUQZESBEQR80C8P","","","","","","00","X","0","0","",""]
[null,null,null,null,null,null,null,null,null,null,null,null,null,null,null,null,null,null,null,null,null,null,null,null,null,null,null,null,null,null,null,null,null,null,null,null,null,null,null,null,null,null,null,null,null,null,null,null,null,null,null,null,null,null,null,null,null,null,null,null,null,null,null,null,null,null,null,null,null,null,null,null,null,null,null,null,null,null,null,null,null,null,null,null,null,null,null,null,null,null,null,null,null,null,null,null,null,null,null,null,null,null,null,null,null,null,null,null,null,null,null,null,null,null,null,null,null,null,null,null,null,null,null,null,null,null,null,null,null,null,4,"DEN0OSIFULCZTDTFE8U7RBQIH","DA5GNUVDNUWMFLQJMY6DAFQIH","","","","","","00","X","0","0","",""]
[null,null,null,null,null,null,null,null,null,null,null,null,null,null,null,null,null,null,null,null,null,null,null,null,null,null,null,null,null,null,null,null,null,null,null,null,null,null,null,null,null,null,null,null,null,null,null,null,null,null,null,null,null,null,null,null,null,null,null,null,null,null,null,null,null,null,null,null,null,null,null,null,null,null,null,null,null,null,null,null,null,null,null,null,null,null,null,null,null,null,null,null,null,null,null,null,null,null,null,null,null,null,null,null,null,null,null,null,null,null,null,null,null,null,null,null,null,null,null,null,null,null,null,null,null,null,null,null,null,null,4,"DEN0OSIFULDRI056PS9TTR4S9","DA5GNUVDNUSS0I3R190AYAR5L","","","","","","00","X","0","0","",""]
[null,null,null,null,null,null,null,null,null,null,null,null,null,null,null,null,null,null,null,null,null,null,null,null,null,null,null,null,null,null,null,null,null,null,null,null,null,null,null,null,null,null,null,null,null,null,null,null,null,null,null,null,null,null,null,null,null,null,null,null,null,null,null,null,null,null,null,null,null,null,null,null,null,null,null,null,null,null,null,null,null,null,null,null,null,null,null,null,null,null,null,null,null,null,null,null,null,null,null,null,null,null,null,null,null,null,null,null,null,null,null,null,null,null,null,null,null,null,null,null,null,null,null,null,null,null,null,null,null,null,4,"DEN0OSIFULDRI056PS9TTR4S9","DA5GNUVDNUTJP4FICSFX0Q5FD","","","","","","00","X","0","0","",""]
[null,null,null,null,null,null,null,null,null,null,null,null,null,null,null,null,null,null,null,null,null,null,null,null,null,null,null,null,null,null,null,null,null,null,null,null,null,null,null,null,null,null,null,null,null,null,null,null,null,null,null,null,null,null,null,null,null,null,null,null,null,null,null,null,null,null,null,null,null,null,null,null,null,null,null,null,null,null,null,null,null,null,null,null,null,null,null,null,null,null,null,null,null,null,null,null,null,null,null,null,null,null,null,null,null,null,null,null,null,null,null,null,null,null,null,null,null,null,null,null,null,null,null,null,null,null,null,null,null,null,4,"DEN0OSIFULDRI056PS9TTR4S9","DA5GNUVDNUUBDQR9OBVJ35JP5","","","","","","00","X","0","0","",""]
[null,null,null,null,null,null,null,null,null,null,null,null,null,null,null,null,null,null,null,null,null,null,null,null,null,null,null,null,null,null,null,null,null,null,null,null,null,null,null,null,null,null,null,null,null,null,null,null,null,null,null,null,null,null,null,null,null,null,null,null,null,null,null,null,null,null,null,null,null,null,null,null,null,null,null,null,null,null,null,null,null,null,null,null,null,null,null,null,null,null,null,null,null,null,null,null,null,null,null,null,null,null,null,null,null,null,null,null,null,null,null,null,null,null,null,null,null,null,null,null,null,null,null,null,null,null,null,null,null,null,4,"DEN0OSIFULDRI056PS9TTR4S9","DA5GNUVDNUV32D30ZVB55KXYX","","","","","","00","X","0","0","",""]
[null,null,null,null,null,null,null,null,null,null,null,null,null,null,null,null,null,null,null,null,null,null,null,null,null,null,null,null,null,null,null,null,null,null,null,null,null,null,null,null,null,null,null,null,null,null,null,null,null,null,null,null,null,null,null,null,null,null,null,null,null,null,null,null,null,null,null,null,null,null,null,null,null,null,null,null,null,null,null,null,null,null,null,null,null,null,null,null,null,null,null,null,null,null,null,null,null,null,null,null,null,null,null,null,null,null,null,null,null,null,null,null,null,null,null,null,null,null,null,null,null,null,null,null,null,null,null,null,null,null,4,"DEN0OSIFULDRI056PS9TTR4S9","DA5GNUVDNUVUQZESBEQR80C8P","","","","","","00","X","0","0","",""]
[null,null,null,null,null,null,null,null,null,null,null,null,null,null,null,null,null,null,null,null,null,null,null,null,null,null,null,null,null,null,null,null,null,null,null,null,null,null,null,null,null,null,null,null,null,null,null,null,null,null,null,null,null,null,null,null,null,null,null,null,null,null,null,null,null,null,null,null,null,null,null,null,null,null,null,null,null,null,null,null,null,null,null,null,null,null,null,null,null,null,null,null,null,null,null,null,null,null,null,null,null,null,null,null,null,null,null,null,null,null,null,null,null,null,null,null,null,null,null,null,null,null,null,null,null,null,null,null,null,null,4,"DEN0OSIFULDRI056PS9TTR4S9","DA5GNUVDNUWMFLQJMY6DAFQIH","","","","","","00","X","0","0","",""]
[null,null,null,null,null,null,null,null,null,null,null,null,null,null,null,null,null,null,null,null,null,null,null,null,null,null,null,null,null,null,null,null,null,null,null,null,null,null,null,null,null,null,null,null,null,null,null,null,null,null,null,null,null,null,null,null,null,null,null,null,null,null,null,null,null,null,null,null,null,null,null,null,null,null,null,null,null,null,null,null,null,null,null,null,null,null,null,null,null,null,null,null,null,null,null,null,null,null,null,null,null,null,null,null,null,null,null,null,null,null,null,null,null,null,null,null,null,null,null,null,null,null,null,null,null,null,null,null,null,null,4,"DEN0OSIFULEJ6MGY1BPFW6J21","DA5GNUVDNUSS0I3R190AYAR5L","","","","","","00","X","0","0","",""]
[null,null,null,null,null,null,null,null,null,null,null,null,null,null,null,null,null,null,null,null,null,null,null,null,null,null,null,null,null,null,null,null,null,null,null,null,null,null,null,null,null,null,null,null,null,null,null,null,null,null,null,null,null,null,null,null,null,null,null,null,null,null,null,null,null,null,null,null,null,null,null,null,null,null,null,null,null,null,null,null,null,null,null,null,null,null,null,null,null,null,null,null,null,null,null,null,null,null,null,null,null,null,null,null,null,null,null,null,null,null,null,null,null,null,null,null,null,null,null,null,null,null,null,null,null,null,null,null,null,null,4,"DEN0OSIFULEJ6MGY1BPFW6J21","DA5GNUVDNUTJP4FICSFX0Q5FD","","","","","","00","X","0","0","",""]
[null,null,null,null,null,null,null,null,null,null,null,null,null,null,null,null,null,null,null,null,null,null,null,null,null,null,null,null,null,null,null,null,null,null,null,null,null,null,null,null,null,null,null,null,null,null,null,null,null,null,null,null,null,null,null,null,null,null,null,null,null,null,null,null,null,null,null,null,null,null,null,null,null,null,null,null,null,null,null,null,null,null,null,null,null,null,null,null,null,null,null,null,null,null,null,null,null,null,null,null,null,null,null,null,null,null,null,null,null,null,null,null,null,null,null,null,null,null,null,null,null,null,null,null,null,null,null,null,null,null,4,"DEN0OSIFULEJ6MGY1BPFW6J21","DA5GNUVDNUUBDQR9OBVJ35JP5","","","","","","00","X","0","0","",""]
[null,null,null,null,null,null,null,null,null,null,null,null,null,null,null,null,null,null,null,null,null,null,null,null,null,null,null,null,null,null,null,null,null,null,null,null,null,null,null,null,null,null,null,null,null,null,null,null,null,null,null,null,null,null,null,null,null,null,null,null,null,null,null,null,null,null,null,null,null,null,null,null,null,null,null,null,null,null,null,null,null,null,null,null,null,null,null,null,null,null,null,null,null,null,null,null,null,null,null,null,null,null,null,null,null,null,null,null,null,null,null,null,null,null,null,null,null,null,null,null,null,null,null,null,null,null,null,null,null,null,4,"DEN0OSIFULEJ6MGY1BPFW6J21","DA5GNUVDNUV32D30ZVB55KXYX","","","","","","00","X","0","0","",""]
[null,null,null,null,null,null,null,null,null,null,null,null,null,null,null,null,null,null,null,null,null,null,null,null,null,null,null,null,null,null,null,null,null,null,null,null,null,null,null,null,null,null,null,null,null,null,null,null,null,null,null,null,null,null,null,null,null,null,null,null,null,null,null,null,null,null,null,null,null,null,null,null,null,null,null,null,null,null,null,null,null,null,null,null,null,null,null,null,null,null,null,null,null,null,null,null,null,null,null,null,null,null,null,null,null,null,null,null,null,null,null,null,null,null,null,null,null,null,null,null,null,null,null,null,null,null,null,null,null,null,4,"DEN0OSIFULEJ6MGY1BPFW6J21","DA5GNUVDNUVUQZESBEQR80C8P","","","","","","00","X","0","0","",""]
[null,null,null,null,null,null,null,null,null,null,null,null,null,null,null,null,null,null,null,null,null,null,null,null,null,null,null,null,null,null,null,null,null,null,null,null,null,null,null,null,null,null,null,null,null,null,null,null,null,null,null,null,null,null,null,null,null,null,null,null,null,null,null,null,null,null,null,null,null,null,null,null,null,null,null,null,null,null,null,null,null,null,null,null,null,null,null,null,null,null,null,null,null,null,null,null,null,null,null,null,null,null,null,null,null,null,null,null,null,null,null,null,null,null,null,null,null,null,null,null,null,null,null,null,null,null,null,null,null,null,4,"DEN0OSIFULEJ6MGY1BPFW6J21","DA5GNUVDNUWMFLQJMY6DAFQIH","","","","","","00","X","0","0","",""]

{"sheet":"SAPBEXfiltersDefunct","index":1,"n_rows":13,"n_cols":237,"rows_kept":13,"cut":false,"hidden":true,"merged":[]}
[]
[null,null,null,null,null,null,null,null,null,null,null,null,null,null,null,null,null,null,null,null,null,null,null,null,null,null,null,null,null,null,null,null,null,null,null,null,null,null,null,null,null,null,null,null,null,null,null,null,null,null,null,null,null,null,null,null,null,null,null,null,null,null,null,null,null,null,null,null,null,null,null,null,null,null,null,null,null,null,null,null,null,null,null,null,null,null,null,null,null,null,null,null,null,null,null,null,null,null,null,null,0,null,null,null,null,null,null,null,null,null,null,null,null,null,null,null,null,null,null,null,null,null,null,null,null,null,null,null,null,null,null,null,null,null,null,null,null,null,null,null,null,null,null,null,null,null,null,null,null,null,null,null,null,null,null,7,null,null,null,null,null,null,null,null,null,null,null,null,null,null,null,null,null,null,null,null,null,null,null,null,null,null,null,null,null,null,null,null,null,null,null,null,null,null,null,null,null,null,null,null,null,null,null,null,null,10]
[null,null,null,null,null,null,null,null,null,null,null,null,null,null,null,null,null,null,null,null,null,null,null,null,null,null,null,null,null,null,null,null,null,null,null,null,null,null,null,null,null,null,null,null,null,null,null,null,null,null,null,null,null,null,null,null,null,null,null,null,null,null,null,null,null,null,null,null,null,null,null,null,null,null,null,null,null,null,null,null,null,null,null,null,null,null,null,null,null,null,null,null,null,null,null,null,null,null,null,null,8,null,null,null,null,null,null,null,null,null,null,null,null,null,null,null,null,null,null,null,null,null,null,null,null,null,null,null,null,null,null,null,null,null,null,null,null,null,null,null,null,null,null,null,null,null,null,null,null,null,null,null,null,null,null,12,null,null,null,null,null,null,null,null,null,null,null,null,null,null,null,null,null,null,null,null,null,null,null,null,null,null,null,null,null,null,null,null,null,null,null,null,null,null,null,null,null,null,null,null,null,null,null,null,null,31]
[null,null,null,null,null,null,null,null,null,null,null,null,null,null,null,null,null,null,null,null,null,null,null,null,null,null,null,null,null,null,null,null,null,null,null,null,null,null,null,null,null,null,null,null,null,null,null,null,null,null,null,null,null,null,null,null,null,null,null,null,null,null,null,null,null,null,null,null,null,null,null,null,null,null,null,null,null,null,null,null,null,null,null,null,null,null,null,null,null,null,null,null,null,null,null,null,null,null,null,null,null,null,null,null,null,null,null,null,null,null,null,null,null,null,null,null,null,null,null,null,null,null,null,null,null,null,null,null,null,null,null,null,null,null,null,null,null,null,null,null,null,null,null,null,null,null,null,null,null,null,null,null,null,null,null,10,"DKYHVMZOKY4504JAE8431CHRT","","X","3","0","ZPERSAREA","","","0","","","",null,null,null,null,null,null,null,null,null,null,null,null,null,null,null,null,null,null,null,null,null,null,null,null,null,null,null,null,null,null,null,null,null,null,null,null,null,10,"DKYHVMZOKY4504JAE8431CHRT","","","0001","0001","0","0000","I","EQ","0051","","0051","","1","","0","","Education","","","","","0","","","0","","0","","","00"]
[null,null,null,null,null,null,null,null,null,null,null,null,null,null,null,null,null,null,null,null,null,null,null,null,null,null,null,null,null,null,null,null,null,null,null,null,null,null,null,null,null,null,null,null,null,null,null,null,null,null,null,null,null,null,null,null,null,null,null,null,null,null,null,null,null,null,null,null,null,null,null,null,null,null,null,null,null,null,null,null,null,null,null,null,null,null,null,null,null,null,null,null,null,null,null,null,null,null,null,null,null,null,null,null,null,null,null,null,null,null,null,null,null,null,null,null,null,null,null,null,null,null,null,null,null,null,null,null,null,null,null,null,null,null,null,null,null,null,null,null,null,null,null,null,null,null,null,null,null,null,null,null,null,null,null,9,"DKYHVMZOKYLTQE1QRN36L6M0P","","X","3","0","0ORGUNIT","","","0","","","",null,null,null,null,null,null,null,null,null,null,null,null,null,null,null,null,null,null,null,null,null,null,null,null,null,null,null,null,null,null,null,null,null,null,null,null,null,9,"DKYHVMZOKYLTQE1QRN36L6M0P","","","0001","0001","0","0000","I","EQ","50004878","","50004878","","1","","0","","Chief Executive Srv","","","","","0","","","0","","0","","","00"]
[null,null,null,null,null,null,null,null,null,null,null,null,null,null,null,null,null,null,null,null,null,null,null,null,null,null,null,null,null,null,null,null,null,null,null,null,null,null,null,null,null,null,null,null,null,null,null,null,null,null,null,null,null,null,null,null,null,null,null,null,null,null,null,null,null,null,null,null,null,null,null,null,null,null,null,null,null,null,null,null,null,null,null,null,null,null,null,null,null,null,null,null,null,null,null,null,null,null,null,null,null,null,null,null,null,null,null,null,null,null,null,null,null,null,null,null,null,null,null,null,null,null,null,null,null,null,null,null,null,null,null,null,null,null,null,null,null,null,null,null,null,null,null,null,null,null,null,null,null,null,null,null,null,null,null,8,"DKYHVMZOKZ1Z3EWOHZ7205XQ1","","X","3","0","0ORGUNIT","","","0","","","",null,null,null,null,null,null,null,null,null,null,null,null,null,null,null,null,null,null,null,null,null,null,null,null,null,null,null,null,null,null,null,null,null,null,null,null,null,9,"DKYHVMZOKYLTQE1QRN36L6M0P","","","0002","0001","0","0000","I","EQ","50004879","0ORGUNIT","50004879","","1","","4","","Chief Executive Organisation Structure","","","","ORGEH","1","","000","1","20150930","1","","","00"]
[null,null,null,null,null,null,null,null,null,null,null,null,null,null,null,null,null,null,null,null,null,null,null,null,null,null,null,null,null,null,null,null,null,null,null,null,null,null,null,null,null,null,null,null,null,null,null,null,null,null,null,null,null,null,null,null,null,null,null,null,null,null,null,null,null,null,null,null,null,null,null,null,null,null,null,null,null,null,null,null,null,null,null,null,null,null,null,null,null,null,null,null,null,null,null,null,null,null,null,null,null,null,null,null,null,null,null,null,null,null,null,null,null,null,null,null,null,null,null,null,null,null,null,null,null,null,null,null,null,null,null,null,null,null,null,null,null,null,null,null,null,null,null,null,null,null,null,null,null,null,null,null,null,null,null,7,"DKYHVOE8A2I0P9UW7R37R4MIH","","X","3","0","ZPERSAREA","","","0","","","",null,null,null,null,null,null,null,null,null,null,null,null,null,null,null,null,null,null,null,null,null,null,null,null,null,null,null,null,null,null,null,null,null,null,null,null,null,9,"DKYHVMZOKYLTQE1QRN36L6M0P","","","0003","0001","0","0000","I","EQ","50004939","0ORGUNIT","50004939","","1","","4","","Communication & Organisation Development","","","","ORGEH","1","","000","1","20150930","1","","","00"]
[null,null,null,null,null,null,null,null,null,null,null,null,null,null,null,null,null,null,null,null,null,null,null,null,null,null,null,null,null,null,null,null,null,null,null,null,null,null,null,null,null,null,null,null,null,null,null,null,null,null,null,null,null,null,null,null,null,null,null,null,null,null,null,null,null,null,null,null,null,null,null,null,null,null,null,null,null,null,null,null,null,null,null,null,null,null,null,null,null,null,null,null,null,null,null,null,null,null,null,null,null,null,null,null,null,null,null,null,null,null,null,null,null,null,null,null,null,null,null,null,null,null,null,null,null,null,null,null,null,null,null,null,null,null,null,null,null,null,null,null,null,null,null,null,null,null,null,null,null,null,null,null,null,null,null,6,"DKYHVOE8A2Y62APTY37363Y7T","","X","3","0","ZPERSAREA","","","0","","","",null,null,null,null,null,null,null,null,null,null,null,null,null,null,null,null,null,null,null,null,null,null,null,null,null,null,null,null,null,null,null,null,null,null,null,null,null,9,"DKYHVMZOKYLTQE1QRN36L6M0P","","","0004","0001","0","0000","I","EQ","50258124","0ORGUNIT","50258124","","1","","4","","CE Corporate Policy","","","","ORGEH","1","","000","1","20150930","1","","","00"]
[null,null,null,null,null,null,null,null,null,null,null,null,null,null,null,null,null,null,null,null,null,null,null,null,null,null,null,null,null,null,null,null,null,null,null,null,null,null,null,null,null,null,null,null,null,null,null,null,null,null,null,null,null,null,null,null,null,null,null,null,null,null,null,null,null,null,null,null,null,null,null,null,null,null,null,null,null,null,null,null,null,null,null,null,null,null,null,null,null,null,null,null,null,null,null,null,null,null,null,null,null,null,null,null,null,null,null,null,null,null,null,null,null,null,null,null,null,null,null,null,null,null,null,null,null,null,null,null,null,null,null,null,null,null,null,null,null,null,null,null,null,null,null,null,null,null,null,null,null,null,null,null,null,null,null,5,"DKYHVOE8A3EBFBKROFAYL39X5","","X","3","0","ZPERSAREA","","","0","","","",null,null,null,null,null,null,null,null,null,null,null,null,null,null,null,null,null,null,null,null,null,null,null,null,null,null,null,null,null,null,null,null,null,null,null,null,null,8,"DKYHVMZOKZ1Z3EWOHZ7205XQ1","","","0001","0001","0","0000","I","EQ","50004880","0ORGUNIT","50004880","","1","","4","","Corporate Services","","","","ORGEH","1","","000","1","20150930","1","","","00"]
[null,null,null,null,null,null,null,null,null,null,null,null,null,null,null,null,null,null,null,null,null,null,null,null,null,null,null,null,null,null,null,null,null,null,null,null,null,null,null,null,null,null,null,null,null,null,null,null,null,null,null,null,null,null,null,null,null,null,null,null,null,null,null,null,null,null,null,null,null,null,null,null,null,null,null,null,null,null,null,null,null,null,null,null,null,null,null,null,null,null,null,null,null,null,null,null,null,null,null,null,null,null,null,null,null,null,null,null,null,null,null,null,null,null,null,null,null,null,null,null,null,null,null,null,null,null,null,null,null,null,null,null,null,null,null,null,null,null,null,null,null,null,null,null,null,null,null,null,null,null,null,null,null,null,null,4,"DKYHVPQUQZULPFJJFF5CQ0U0P","","X","3","0","ZPERSAREA","","","0","","","",null,null,null,null,null,null,null,null,null,null,null,null,null,null,null,null,null,null,null,null,null,null,null,null,null,null,null,null,null,null,null,null,null,null,null,null,null,7,"DKYHVOE8A2I0P9UW7R37R4MIH","","","0001","0001","0","0000","I","EQ","0031","","0031","","1","","0","","Development and Regeneration","","","","","0","","","0","","0","","","00"]
[null,null,null,null,null,null,null,null,null,null,null,null,null,null,null,null,null,null,null,null,null,null,null,null,null,null,null,null,null,null,null,null,null,null,null,null,null,null,null,null,null,null,null,null,null,null,null,null,null,null,null,null,null,null,null,null,null,null,null,null,null,null,null,null,null,null,null,null,null,null,null,null,null,null,null,null,null,null,null,null,null,null,null,null,null,null,null,null,null,null,null,null,null,null,null,null,null,null,null,null,null,null,null,null,null,null,null,null,null,null,null,null,null,null,null,null,null,null,null,null,null,null,null,null,null,null,null,null,null,null,null,null,null,null,null,null,null,null,null,null,null,null,null,null,null,null,null,null,null,null,null,null,null,null,null,null,null,null,null,null,null,null,null,null,null,null,null,null,null,null,null,null,null,null,null,null,null,null,null,null,null,null,null,null,null,null,null,null,null,null,null,null,null,null,null,null,null,null,null,null,null,null,null,null,null,6,"DKYHVOE8A2Y62APTY37363Y7T","","","0001","0001","0","0000","I","EQ","0071","","0071","","1","","0","","Financial","","","","","0","","","0","","0","","","00"]
[null,null,null,null,null,null,null,null,null,null,null,null,null,null,null,null,null,null,null,null,null,null,null,null,null,null,null,null,null,null,null,null,null,null,null,null,null,null,null,null,null,null,null,null,null,null,null,null,null,null,null,null,null,null,null,null,null,null,null,null,null,null,null,null,null,null,null,null,null,null,null,null,null,null,null,null,null,null,null,null,null,null,null,null,null,null,null,null,null,null,null,null,null,null,null,null,null,null,null,null,null,null,null,null,null,null,null,null,null,null,null,null,null,null,null,null,null,null,null,null,null,null,null,null,null,null,null,null,null,null,null,null,null,null,null,null,null,null,null,null,null,null,null,null,null,null,null,null,null,null,null,null,null,null,null,null,null,null,null,null,null,null,null,null,null,null,null,null,null,null,null,null,null,null,null,null,null,null,null,null,null,null,null,null,null,null,null,null,null,null,null,null,null,null,null,null,null,null,null,null,null,null,null,null,null,5,"DKYHVOE8A3EBFBKROFAYL39X5","","","0001","0001","0","0000","I","EQ","0081","","0081","","1","","0","","Land and Environmental","","","","","0","","","0","","0","","","00"]
[null,null,null,null,null,null,null,null,null,null,null,null,null,null,null,null,null,null,null,null,null,null,null,null,null,null,null,null,null,null,null,null,null,null,null,null,null,null,null,null,null,null,null,null,null,null,null,null,null,null,null,null,null,null,null,null,null,null,null,null,null,null,null,null,null,null,null,null,null,null,null,null,null,null,null,null,null,null,null,null,null,null,null,null,null,null,null,null,null,null,null,null,null,null,null,null,null,null,null,null,null,null,null,null,null,null,null,null,null,null,null,null,null,null,null,null,null,null,null,null,null,null,null,null,null,null,null,null,null,null,null,null,null,null,null,null,null,null,null,null,null,null,null,null,null,null,null,null,null,null,null,null,null,null,null,null,null,null,null,null,null,null,null,null,null,null,null,null,null,null,null,null,null,null,null,null,null,null,null,null,null,null,null,null,null,null,null,null,null,null,null,null,null,null,null,null,null,null,null,null,null,null,null,null,null,4,"DKYHVPQUQZULPFJJFF5CQ0U0P","","","0001","0001","0","0000","I","EQ","0091","","0091","","1","","0","","Social Work","","","","","0","","","0","","0","","","00"]

{"sheet":"BExRepositorySheet","index":2,"n_rows":1,"n_cols":1,"rows_kept":1,"cut":false,"hidden":true,"merged":[]}
[7]

{"sheet":"Summary","index":3,"n_rows":35,"n_cols":17,"rows_kept":35,"cut":false,"hidden":false,"merged":[[16,13,17,14],[16,16,17,16],[2,0,2,2],[4,1,12,10],[16,0,17,0],[16,1,17,2],[16,4,17,5],[16,7,17,8],[16,10,17,11]]}
["WORKFORCE PROFILE BY SEXUAL ORIENTATION"]
["GLASGOW LIFE"]
["31 September 2019"]
[]
[null,"The table below has been simplified to provide a summary of the Company's workforce by Sexual Orientation.  The detailed information to support this is provided on Page 2"]
[]
[]
[]
[]
[]
[]
[]
[]
[]
[]
[]
[null,"Bisexual",null,null,"Heterosexual",null,null,"Lesbian/Gay",null,null,"Other",null,null,"Not disclosed",null,null,"Total"]
[]
[null,"Number ","%",null,"Number ","%",null,"Number ","%",null,"Number ","%",null,"Number ","%",null,"Number "]
[]
["Grade 1-4 Total",{"$f":"Breakdown!B8","v":12},{"$f":"B21/Q21","v":7.2727272727272727E-3},null,{"$f":"Breakdown!D8","v":521},{"$f":"E21/Q21","v":0.31575757575757574},null,{"$f":"Breakdown!F8","v":22},{"$f":"H21/Q21","v":1.3333333333333334E-2},null,{"$f":"Breakdown!H8","v":2},{"$f":"K21/Q21","v":1.2121212121212121E-3},null,{"$f":"Breakdown!J8","v":1093},{"$f":"N21/Q21","v":0.66242424242424247},null,{"$f":"Breakdown!L8","v":1650}]
[]
["Grade 5-7 Total",{"$f":"Breakdown!B12","v":3},{"$f":"B23/Q23","v":3.8119440914866584E-3},null,{"$f":"Breakdown!D12","v":215},{"$f":"E23/Q23","v":0.27318932655654382},null,{"$f":"Breakdown!F12","v":8},{"$f":"H23/Q23","v":1.0165184243964422E-2},null,{"$f":"Breakdown!H12","v":2},{"$f":"K23/Q23","v":2.5412960609911056E-3},null,{"$f":"Breakdown!J12","v":559},{"$f":"N23/Q23","v":0.71029224904701393},null,{"$f":"Breakdown!L12","v":787}]
[]
["Grade 8 Total",{"$f":"Breakdown!B16","v":0},{"$f":"B25/Q25","v":0},null,{"$f":"Breakdown!D16","v":15},{"$f":"E25/Q25","v":0.29411764705882354},null,{"$f":"Breakdown!F16","v":1},{"$f":"H25/Q25","v":1.9607843137254902E-2},null,{"$f":"Breakdown!H16","v":0},{"$f":"K25/Q25","v":0},null,{"$f":"Breakdown!J16","v":35},{"$f":"N25/Q25","v":0.68627450980392157},null,{"$f":"Breakdown!L16","v":51}]
[]
["Grade 9-15 Total",{"$f":"Breakdown!B24+Breakdown!B28","v":0},{"$f":"B27/Q27","v":0},null,{"$f":"Breakdown!D24+Breakdown!D28","v":10},{"$f":"E27/Q27","v":0.32258064516129031},null,{"$f":"Breakdown!F24+Breakdown!F28","v":1},{"$f":"H27/Q27","v":3.2258064516129031E-2},null,{"$f":"Breakdown!H24+Breakdown!H28","v":0},{"$f":"K27/Q27","v":0},null,{"$f":"Breakdown!J24+Breakdown!J28","v":20},{"$f":"N27/Q27","v":0.64516129032258063},null,{"$f":"Breakdown!L24+Breakdown!L28","v":31}]
[]
["Other Non Pay & Grading Structure",{"$f":"Breakdown!B32","v":0},{"$f":"B29/Q29","v":0},null,{"$f":"Breakdown!D32","v":6},{"$f":"E29/Q29","v":0.1111111111111111},null,{"$f":"Breakdown!F32","v":0},{"$f":"H29/Q29","v":0},null,{"$f":"Breakdown!H32","v":0},{"$f":"K29/Q29","v":0},null,{"$f":"Breakdown!J32","v":48},{"$f":"N29/Q29","v":0.88888888888888884},null,{"$f":"Breakdown!L32","v":54}]
[]
["Total FT Workforce",{"$f":"Breakdown!B34","v":4},{"$f":"B31/Q31","v":2.3995200959808036E-3},null,{"$f":"Breakdown!D34","v":454},{"$f":"E31/Q31","v":0.27234553089382124},null,{"$f":"Breakdown!F34","v":18},{"$f":"H31/Q31","v":1.0797840431913617E-2},null,{"$f":"Breakdown!H34","v":4},{"$f":"K31/Q31","v":2.3995200959808036E-3},null,{"$f":"Breakdown!J34","v":1187},{"$f":"N31/Q31","v":0.71205758848230349},null,{"$f":"Breakdown!L34","v":1667}]
[]
["Total PT Workforce",{"$f":"Breakdown!B36","v":11},{"$f":"B33/Q33","v":1.2141280353200883E-2},null,{"$f":"Breakdown!D36","v":313},{"$f":"E33/Q33","v":0.3454746136865342},null,{"$f":"Breakdown!F36","v":14},{"$f":"H33/Q33","v":1.5452538631346579E-2},null,{"$f":"Breakdown!H36","v":0},{"$f":"K33/Q33","v":0},null,{"$f":"Breakdown!J36","v":568},{"$f":"N33/Q33","v":0.6269315673289183},null,{"$f":"Breakdown!L36","v":906}]
[]
["Total Workforce",{"$f":"Breakdown!B38","v":15},{"$f":"B35/Q35","v":5.8297706956859695E-3},null,{"$f":"Breakdown!D38","v":767},{"$f":"E35/Q35","v":0.29809560823940923},null,{"$f":"Breakdown!F38","v":32},{"$f":"H35/Q35","v":1.2436844150796735E-2},null,{"$f":"Breakdown!H38","v":4},{"$f":"K35/Q35","v":1.5546055188495919E-3},null,{"$f":"Breakdown!J38","v":1755},{"$f":"N35/Q35","v":0.68208317139525843},null,{"$f":"Breakdown!L38","v":2573}]

{"sheet":"Breakdown","index":4,"n_rows":41,"n_cols":12,"rows_kept":41,"cut":false,"hidden":false,"merged":[[1,0,2,11]]}
["Q1 APRIL TO JUNE 2011"]
["SEXUAL ORIENTATION"]
[]
["GLASGOW LIFE ","Bi-Sexual","%","Heterosexual","%","Lesbian / Gay","%","Other","%","Not Disclosed","%","Totals"]
[]
["Grade 1-4 F/T",{"$f":"Query!B23","v":2},{"$f":"IF(L6=0,0,SUM(B6/L6))","v":2.2197558268590455E-3},{"$f":"Query!C23","v":249},{"$f":"IF(L6=0,0,SUM(D6/L6))","v":0.27635960044395119},{"$f":"Query!D23","v":9},{"$f":"IF(L6=0,0,SUM(F6/L6))","v":9.9889012208657056E-3},{"$f":"Query!F23","v":2},{"$f":"IF(L6=0,0,SUM(H6/L6))","v":2.2197558268590455E-3},{"$f":"Query!G23","v":639},{"$f":"IF(L6=0,0,SUM(J6/L6))","v":0.70921198668146501},{"$f":"SUM(B6,D6,F6,H6,J6)","v":901}]
["Grade 1-4 P/T",{"$f":"Query!B24","v":10},{"$f":"IF(L7=0,0,SUM(B7/L7))","v":1.335113484646195E-2},{"$f":"Query!C24","v":272},{"$f":"IF(L7=0,0,SUM(D7/L7))","v":0.36315086782376504},{"$f":"Query!D24","v":13},{"$f":"IF(L7=0,0,SUM(F7/L7))","v":1.7356475300400534E-2},{"$f":"Query!F24","v":0},{"$f":"IF(L7=0,0,SUM(H7/L7))","v":0},{"$f":"Query!G24","v":454},{"$f":"IF(L7=0,0,SUM(J7/L7))","v":0.60614152202937255},{"$f":"SUM(B7,D7,F7,H7,J7)","v":749}]
["Grade 1-4 Total",{"$f":"SUM(B6:B7)","v":12},{"$f":"IF(L8=0,0,SUM(B8/L8))","v":7.2727272727272727E-3},{"$f":"SUM(D6:D7)","v":521},{"$f":"IF(L8=0,0,SUM(D8/L8))","v":0.31575757575757574},{"$f":"SUM(F6:F7)","v":22},{"$f":"IF(L8=0,0,SUM(F8/L8))","v":1.3333333333333334E-2},{"$f":"SUM(H6:H7)","v":2},{"$f":"IF(L8=0,0,SUM(H8/L8))","v":1.2121212121212121E-3},{"$f":"SUM(J6:J7)","v":1093},{"$f":"IF(L8=0,0,SUM(J8/L8))","v":0.66242424242424247},{"$f":"SUM(L6:L7)","v":1650}]
[]
["Grade 5-7 F/T",{"$f":"Query!B26","v":2},{"$f":"IF(L10=0,0,SUM(B10/L10))","v":3.0487804878048782E-3},{"$f":"Query!C26","v":174},{"$f":"IF(L10=0,0,SUM(D10/L10))","v":0.2652439024390244},{"$f":"Query!D26","v":8},{"$f":"IF(L10=0,0,SUM(F10/L10))","v":1.2195121951219513E-2},{"$f":"Query!F26","v":2},{"$f":"IF(L10=0,0,SUM(H10/L10))","v":3.0487804878048782E-3},{"$f":"Query!G26","v":470},{"$f":"IF(L10=0,0,SUM(J10/L10))","v":0.71646341463414631},{"$f":"SUM(B10,D10,F10,H10,J10)","v":656}]
["Grade 5-7 P/T",{"$f":"Query!B27","v":1},{"$f":"IF(L11=0,0,SUM(B11/L11))","v":7.6335877862595417E-3},{"$f":"Query!C27","v":41},{"$f":"IF(L11=0,0,SUM(D11/L11))","v":0.31297709923664124},{"$f":"Query!D27","v":0},{"$f":"IF(L11=0,0,SUM(F11/L11))","v":0},{"$f":"Query!F27","v":0},{"$f":"IF(L11=0,0,SUM(H11/L11))","v":0},{"$f":"Query!G27","v":89},{"$f":"IF(L11=0,0,SUM(J11/L11))","v":0.67938931297709926},{"$f":"SUM(B11,D11,F11,H11,J11)","v":131}]
["Grade 5-7 Total",{"$f":"SUM(B10:B11)","v":3},{"$f":"IF(L12=0,0,SUM(B12/L12))","v":3.8119440914866584E-3},{"$f":"SUM(D10:D11)","v":215},{"$f":"IF(L12=0,0,SUM(D12/L12))","v":0.27318932655654382},{"$f":"SUM(F10:F11)","v":8},{"$f":"IF(L12=0,0,SUM(F12/L12))","v":1.0165184243964422E-2},{"$f":"SUM(H10:H11)","v":2},{"$f":"IF(L12=0,0,SUM(H12/L12))","v":2.5412960609911056E-3},{"$f":"SUM(J10:J11)","v":559},{"$f":"IF(L12=0,0,SUM(J12/L12))","v":0.71029224904701393},{"$f":"SUM(L10:L11)","v":787}]
[]
["Grade 8 F/T",{"$f":"Query!B29","v":0},{"$f":"IF(L14=0,0,SUM(B14/L14))","v":0},{"$f":"Query!C29","v":15},{"$f":"IF(L14=0,0,SUM(D14/L14))","v":0.3125},{"$f":"Query!D29","v":0},{"$f":"IF(L14=0,0,SUM(F14/L14))","v":0},{"$f":"Query!F29","v":0},{"$f":"IF(L14=0,0,SUM(H14/L14))","v":0},{"$f":"Query!G29","v":33},{"$f":"IF(L14=0,0,SUM(J14/L14))","v":0.6875},{"$f":"SUM(B14,D14,F14,H14,J14)","v":48}]
["Grade 8 P/T",{"$f":"Query!B30","v":0},{"$f":"IF(L15=0,0,SUM(B15/L15))","v":0},{"$f":"Query!C30","v":0},{"$f":"IF(L15=0,0,SUM(D15/L15))","v":0},{"$f":"Query!D30","v":1},{"$f":"IF(L15=0,0,SUM(F15/L15))","v":0.33333333333333331},{"$f":"Query!F30","v":0},{"$f":"IF(L15=0,0,SUM(H15/L15))","v":0},{"$f":"Query!G30","v":2},{"$f":"IF(L15=0,0,SUM(J15/L15))","v":0.66666666666666663},{"$f":"SUM(B15,D15,F15,H15,J15)","v":3}]
["Grade 8 Total",{"$f":"SUM(B14:B15)","v":0},{"$f":"IF(L16=0,0,SUM(B16/L16))","v":0},{"$f":"SUM(D14:D15)","v":15},{"$f":"IF(L16=0,0,SUM(D16/L16))","v":0.29411764705882354},{"$f":"SUM(F14:F15)","v":1},{"$f":"IF(L16=0,0,SUM(F16/L16))","v":1.9607843137254902E-2},{"$f":"SUM(H14:H15)","v":0},{"$f":"IF(L16=0,0,SUM(H16/L16))","v":0},{"$f":"SUM(J14:J15)","v":35},{"$f":"IF(L16=0,0,SUM(J16/L16))","v":0.68627450980392157},{"$f":"SUM(L14:L15)","v":51}]
[]
["Grade ACZ 8 F/T",{"$f":"Query!B32","v":0},{"$f":"IF(L18=0,0,SUM(B18/L18))","v":0},{"$f":"Query!C32","v":0},{"$f":"IF(L18=0,0,SUM(D18/L18))","v":0},{"$f":"Query!D32","v":0},{"$f":"IF(L18=0,0,SUM(F18/L18))","v":0},{"$f":"Query!F32","v":0},{"$f":"IF(L18=0,0,SUM(H18/L18))","v":0},{"$f":"Query!G32","v":0},{"$f":"IF(L18=0,0,SUM(J18/L18))","v":0},{"$f":"SUM(B18,D18,F18,H18,J18)","v":0}]
["Grade ACZ 8 P/T",{"$f":"Query!B33","v":0},{"$f":"IF(L19=0,0,SUM(B19/L19))","v":0},{"$f":"Query!C33","v":0},{"$f":"IF(L19=0,0,SUM(D19/L19))","v":0},{"$f":"Query!D33","v":0},{"$f":"IF(L19=0,0,SUM(F19/L19))","v":0},{"$f":"Query!F33","v":0},{"$f":"IF(L19=0,0,SUM(H19/L19))","v":0},{"$f":"Query!G33","v":0},{"$f":"IF(L19=0,0,SUM(J19/L19))","v":0},{"$f":"SUM(B19,D19,F19,H19,J19)","v":0}]
["Grade ACZ 8 Total",{"$f":"SUM(B18:B19)","v":0},{"$f":"IF(L20=0,0,SUM(B20/L20))","v":0},{"$f":"SUM(D18:D19)","v":0},{"$f":"IF(L20=0,0,SUM(D20/L20))","v":0},{"$f":"SUM(F18:F19)","v":0},{"$f":"IF(L20=0,0,SUM(F20/L20))","v":0},{"$f":"SUM(H18:H19)","v":0},{"$f":"IF(L20=0,0,SUM(H20/L20))","v":0},{"$f":"SUM(J18:J19)","v":0},{"$f":"IF(L20=0,0,SUM(J20/L20))","v":0},{"$f":"SUM(L18:L19)","v":0}]
[]
["Grade 9-15 F/T",{"$f":"Query!B35","v":0},{"$f":"IF(L22=0,0,SUM(B22/L22))","v":0},{"$f":"Query!C35","v":10},{"$f":"IF(L22=0,0,SUM(D22/L22))","v":0.32258064516129031},{"$f":"Query!D35","v":1},{"$f":"IF(L22=0,0,SUM(F22/L22))","v":3.2258064516129031E-2},{"$f":"Query!F35","v":0},{"$f":"IF(L22=0,0,SUM(H22/L22))","v":0},{"$f":"Query!G35","v":20},{"$f":"IF(L22=0,0,SUM(J22/L22))","v":0.64516129032258063},{"$f":"SUM(B22,D22,F22,H22,J22)","v":31}]
["Grade 9-15 P/T",{"$f":"Query!B36","v":0},{"$f":"IF(L23=0,0,SUM(B23/L23))","v":0},{"$f":"Query!C36","v":0},{"$f":"IF(L23=0,0,SUM(D23/L23))","v":0},{"$f":"Query!D36","v":0},{"$f":"IF(L23=0,0,SUM(F23/L23))","v":0},{"$f":"Query!F36","v":0},{"$f":"IF(L23=0,0,SUM(H23/L23))","v":0},{"$f":"Query!G36","v":0},{"$f":"IF(L23=0,0,SUM(J23/L23))","v":0},{"$f":"SUM(B23,D23,F23,H23,J23)","v":0}]
["Grade 9-15 Total",{"$f":"SUM(B22:B23)","v":0},{"$f":"IF(L24=0,0,SUM(B24/L24))","v":0},{"$f":"SUM(D22:D23)","v":10},{"$f":"IF(L24=0,0,SUM(D24/L24))","v":0.32258064516129031},{"$f":"SUM(F22:F23)","v":1},{"$f":"IF(L24=0,0,SUM(F24/L24))","v":3.2258064516129031E-2},{"$f":"SUM(H22:H23)","v":0},{"$f":"IF(L24=0,0,SUM(H24/L24))","v":0},{"$f":"SUM(J22:J23)","v":20},{"$f":"IF(L24=0,0,SUM(J24/L24))","v":0.64516129032258063},{"$f":"SUM(L22:L23)","v":31}]
[]
["Grade ACZ 9-15 F/T",{"$f":"Query!B38","v":0},{"$f":"IF(L26=0,0,SUM(B26/L26))","v":0},{"$f":"Query!C38","v":0},{"$f":"IF(L26=0,0,SUM(D26/L26))","v":0},{"$f":"Query!D38","v":0},{"$f":"IF(L26=0,0,SUM(F26/L26))","v":0},{"$f":"Query!F38","v":0},{"$f":"IF(L26=0,0,SUM(H26/L26))","v":0},{"$f":"Query!G38","v":0},{"$f":"IF(L26=0,0,SUM(J26/L26))","v":0},{"$f":"SUM(B26,D26,F26,H26,J26)","v":0}]
["Grade ACZ 9-15 P/T",{"$f":"Query!B39","v":0},{"$f":"IF(L27=0,0,SUM(B27/L27))","v":0},{"$f":"Query!C39","v":0},{"$f":"IF(L27=0,0,SUM(D27/L27))","v":0},{"$f":"Query!D39","v":0},{"$f":"IF(L27=0,0,SUM(F27/L27))","v":0},{"$f":"Query!F39","v":0},{"$f":"IF(L27=0,0,SUM(H27/L27))","v":0},{"$f":"Query!G39","v":0},{"$f":"IF(L27=0,0,SUM(J27/L27))","v":0},{"$f":"SUM(B27,D27,F27,H27,J27)","v":0}]
["Grade ACZ 9-15 Total",{"$f":"SUM(B26:B27)","v":0},{"$f":"IF(L28=0,0,SUM(B28/L28))","v":0},{"$f":"SUM(D26:D27)","v":0},{"$f":"IF(L28=0,0,SUM(D28/L28))","v":0},{"$f":"SUM(F26:F27)","v":0},{"$f":"IF(L28=0,0,SUM(F28/L28))","v":0},{"$f":"SUM(H26:H27)","v":0},{"$f":"IF(L28=0,0,SUM(H28/L28))","v":0},{"$f":"SUM(J26:J27)","v":0},{"$f":"IF(L28=0,0,SUM(J28/L28))","v":0},{"$f":"SUM(L26:L27)","v":0}]
[]
["Other Non Pay & Grading Structure F/T",{"$f":"Query!B41","v":0},{"$f":"IF(L30=0,0,SUM(B30/L30))","v":0},{"$f":"Query!C41","v":6},{"$f":"IF(L30=0,0,SUM(D30/L30))","v":0.19354838709677419},{"$f":"Query!D41","v":0},{"$f":"IF(L30=0,0,SUM(F30/L30))","v":0},{"$f":"Query!F41","v":0},{"$f":"IF(L30=0,0,SUM(H30/L30))","v":0},{"$f":"Query!G41","v":25},{"$f":"IF(L30=0,0,SUM(J30/L30))","v":0.80645161290322576},{"$f":"SUM(B30,D30,F30,H30,J30)","v":31}]
["Other Non Pay & Grading Structure P/T",{"$f":"Query!B42","v":0},{"$f":"IF(L31=0,0,SUM(B31/L31))","v":0},{"$f":"Query!C42","v":0},{"$f":"IF(L31=0,0,SUM(D31/L31))","v":0},{"$f":"Query!D42","v":0},{"$f":"IF(L31=0,0,SUM(F31/L31))","v":0},{"$f":"Query!F42","v":0},{"$f":"IF(L31=0,0,SUM(H31/L31))","v":0},{"$f":"Query!G42","v":23},{"$f":"IF(L31=0,0,SUM(J31/L31))","v":1},{"$f":"SUM(B31,D31,F31,H31,J31)","v":23}]
["Other Non P&G Structure Total",{"$f":"SUM(B30:B31)","v":0},{"$f":"IF(L32=0,0,SUM(B32/L32))","v":0},{"$f":"SUM(D30:D31)","v":6},{"$f":"IF(L32=0,0,SUM(D32/L32))","v":0.1111111111111111},{"$f":"SUM(F30:F31)","v":0},{"$f":"IF(L32=0,0,SUM(F32/L32))","v":0},{"$f":"SUM(H30:H31)","v":0},0,{"$f":"SUM(J30:J31)","v":48},0.88888888888888884,{"$f":"SUM(L30:L31)","v":54}]
[]
["Total Workforce F/T",{"$f":"SUM(B6,B10,B14,B18,B22,B26,B30)","v":4},{"$f":"IF(L34=0,0,SUM(B34/L34))","v":2.3995200959808036E-3},{"$f":"SUM(D6,D10,D14,D18,D22,D26,D30)","v":454},{"$f":"IF(L34=0,0,SUM(D34/L34))","v":0.27234553089382124},18,{"$f":"IF(L34=0,0,SUM(F34/L34))","v":1.0797840431913617E-2},4,2.3995200959808036E-3,1187,0.71205758848230349,{"$f":"SUM(B34,D34,F34,H34,J34)","v":1667}]
[]
["Total Workforce P/T",{"$f":"SUM(B7,B11,B15,B19,B23,B27,B31)","v":11},{"$f":"IF(L36=0,0,SUM(B36/L36))","v":1.2141280353200883E-2},{"$f":"SUM(D7,D11,D15,D19,D23,D27,D31)","v":313},{"$f":"IF(L36=0,0,SUM(D36/L36))","v":0.3454746136865342},14,{"$f":"IF(L36=0,0,SUM(F36/L36))","v":1.5452538631346579E-2},0,0,568,0.6269315673289183,{"$f":"SUM(B36,D36,F36,H36,J36)","v":906}]
[]
["Total Workforce",{"$f":"SUM(B34,B36)","v":15},{"$f":"IF(L38=0,0,SUM(B38/L38))","v":5.8297706956859695E-3},{"$f":"SUM(D34,D36)","v":767},{"$f":"IF(L38=0,0,SUM(D38/L38))","v":0.29809560823940923},32,{"$f":"IF(L38=0,0,SUM(F38/L38))","v":1.2436844150796735E-2},4,1.5546055188495919E-3,1755,0.68208317139525843,{"$f":"SUM(L34,L36)","v":2573}]
[]
["Fields update automatically"]
["CBS Complete"]

{"sheet":"Query","index":5,"n_rows":56,"n_cols":9,"rows_kept":56,"cut":false,"hidden":true,"merged":[]}
["Workforce Profile Sexual Orientation (2011) Revised"]
[]
["Payroll Area",""]
["ZPersonal Area","0161"]
["Organizational Unit",""]
["Personnel Subarea","]GL Bank["]
["Checkbox for Part-Ti",""]
["ZPrimary Employee ID",""]
["Sexual Orientation - Rev 2011",""]
["WP Bandings",""]
[]
["Employee Subgroup","]Foreign Lang Asst[, ]Teachers 35.00 M1[, ]Teachers 35.00 M2[, ]Skillseekers[, ]External Non Payroll[, ]Traineeship Program[..."]
["Employment Status","Active"]
["Organizational Unit","CSG, ]CE00112561[, ]DR00000029[, ]DR00000035[, ]EP10000000[, ]LS00000500[, ]GL00000001[, ]DR00000145[, ]L000000A00["]
["Personnel Subarea","]ZZZZ["]
["Employment End",">= 30/09/2019"]
["Employment Start","<= 30/09/2019"]
["ZPersonal Area","]9980..9991[, ]0021[, 0161"]
[]
["Contract Type",""]
[]
["","Bi-Sexual","Heterosexual","Lesbian/Gay","Transgender","Other","Not Disclosed"]
["Grade 1 - 4 F/T",2,249,9,null,2,639,{"$f":"SUM(B23:G23)","v":901}]
["Grade 1 - 4 P/T",10,272,13,null,null,454,749]
["Grade 1 - 4 Total",12,521,22,null,2,1093]
["Grade 5 - 7 F/T",2,174,8,null,2,470,656]
["Grade 5 - 7 P/T",1,41,null,null,null,89,131]
["Grade 5 - 7 Total",3,215,8,null,2,559]
["Grade 8 F/T",null,15,null,null,null,33,48]
["Grade 8 P/T",null,null,1,null,null,2,3]
["Grade 8 Total",null,15,1,null,null,35]
["ACZ Grade 8 F/T",null,null,null,null,null,null,0]
["ACZ Grade 8 P/T",null,null,null,null,null,null,0]
["ACZ Grade 8 Total"]
["Grade 9 - 15 F/T",null,10,1,null,null,20,31]
["Grade 9 - 15 P/T",null,null,null,null,null,null,0]
["Grade 9 - 15 Total",null,10,1,null,null,20]
["ACZ Grade 9 - 15 F/T",null,null,null,null,null,null,0]
["ACZ Grade 9 - 15 P/T",null,null,null,null,null,null,0]
["ACZ Grade 9 - 15 Total"]
["Other (Not Migrated) F/T",0,6,0,null,0,25,31]
["Other (Not Migrated) P/T",0,0,0,null,null,23,23]
["Other (Not Migrated) Total",0,6,0,null,0,48]
["Total Teaching Staff F/T"]
["Total Teaching Staff P/T"]
["Total Teaching Staff"]
["Total Non-Teaching Staff F/T",4,454,18,null,4,1187]
["Total Non-Teaching Staff P/T",11,313,14,null,null,568]
["Total Non-Teaching Staff",15,767,32,null,4,1755]
["Total - All WPBR Grades F/T",4,448,18,null,4,1162]
["Total - All WPBR Grades P/T",11,313,14,null,null,545]
["Total Workforce - All WPBR Grades",15,761,32,null,4,1707]
["Total Workforce (All) F/T",4,454,18,null,4,1187]
["Total Workforce (All) P/T",11,313,14,null,null,568]
["Total Workforce (All)",15,767,32,null,4,1755]
[null,null,null,null,null,null,null,{"$f":"SUM(H23:H42)","v":2573},"TOTAL"]